Workbook

Sheet S1
A1: Strains from this study | M1: MIC (ng/ul)
A2: Strain ID | B2: source | C2: origin Province | D2: Year of isolation | E2: assembly level | F2: assemly method | G2: number of scaffold (>500bp) | H2: sequence length | I2: N50 | J2: N90 | K2: Cefotaxime | L2: Ceftazidime | M2: Cefepime | N2: Ertapenem | O2: Imipenem | P2: Meropenem | Q2: Amikacin | R2: Ciprofloxacin | S2: Amoxicillin | T2: Polymyxin B
A3: AH10 | B3: This study | C3: Anhui | D3: 2015 | E3: scaffold | F3: SPAdes v.3.9.1 | G3: 121 | H3: 5693242 | I3: 151791 | J3: 34549 | K3: ＞256 | L3: 256 | M3: ＞256 | N3: ＞128 | O3: 64 | P3: ＞128 | Q3: ＞256 | R3: 32 | S3: ＞256 | T3: 1
A4: AH11 | B4: This study | C4: Anhui | D4: 2015 | E4: scaffold | F4: SPAdes v.3.9.1 | G4: 96 | H4: 5547999 | I4: 195948 | J4: 61211 | K4: ＞256 | L4: 256 | M4: ＞256 | N4: ＞128 | O4: ＞128 | P4: ＞128 | Q4: ＞256 | R4: 16 | S4: ＞256 | T4: 1
A5: AH12 | B5: This study | C5: Anhui | D5: 2015 | E5: scaffold | F5: SPAdes v.3.9.1 | G5: 99 | H5: 5549595 | I5: 176066 | J5: 55162 | K5: ＞256 | L5: 256 | M5: ＞256 | N5: ＞128 | O5: ＞128 | P5: ＞128 | Q5: ＞256 | R5: 16 | S5: ＞256 | T5: 1
A6: BJ-A1040 | B6: This study | C6: Beijing | D6: 2015 | E6: scaffold | F6: SPAdes v.3.9.1 | G6: 161 | H6: 5475333 | I6: 110021 | J6: 26346 | K6: ＞256 | L6: ＞256 | M6: 64 | N6: 32 | O6: 32 | P6: 16 | Q6: 2 | R6: ≤0.5 | S6: ＞256 | T6: ≤0.25
A7: BJK6 | B7: This study | C7: Beijing | D7: 2015 | E7: scaffold | F7: SPAdes v.3.9.1 | G7: 139 | H7: 5489720 | I7: 151791 | J7: 31828 | K7: ＞256 | L7: ＞256 | M7: 64 | N7: 32 | O7: 4 | P7: 4 | Q7: 1 | R7: ≤0.5 | S7: ＞256 | T7: ≤0.25
A8: BJK7 | B8: This study | C8: Beijing | D8: 2015 | E8: scaffold | F8: SPAdes v.3.9.1 | G8: 137 | H8: 5488635 | I8: 156763 | J8: 26346 | K8: ＞256 | L8: ＞256 | M8: 64 | N8: ＞128 | O8: 64 | P8: 64 | Q8: ＞256 | R8: 256 | S8: ＞256 | T8: ≤0.25
A9: BJK8 | B9: This study | C9: Beijing | D9: 2015 | E9: scaffold | F9: SPAdes v.3.9.1 | G9: 131 | H9: 5485139 | I9: 157690 | J9: 31828 | K9: ＞256 | L9: ＞256 | M9: 64 | N9: 32 | O9: 16 | P9: 8 | Q9: 8 | R9: 16 | S9: 256 | T9: ≤0.25
A10: FJ10 | B10: This study | C10: Fujian | D10: 2015 | E10: scaffold | F10: SPAdes v.3.9.1 | G10: 100 | H10: 5620804 | I10: 151791 | J10: 46437 | K10: ＞256 | L10: ＞256 | M10: 128 | N10: ＞128 | O10: 16 | P10: 64 | Q10: ＞256 | R10: 32 | S10: ＞256 | T10: ≤0.25
A11: FJ11 | B11: This study | C11: Fujian | D11: 2015 | E11: scaffold | F11: SPAdes v.3.9.1 | G11: 109 | H11: 5742636 | I11: 156044 | J11: 37781 | K11: ＞256 | L11: ＞256 | M11: ＞256 | N11: 128 | O11: 32 | P11: 64 | Q11: 1 | R11: 16 | S11: ＞256 | T11: ≤0.25
A12: GD4 | B12: This study | C12: Guangdong | D12: 2015 | E12: Complete genome | F12: SPAdes v.3.9.1 | G12: 2 | H12: 5537631 | I12: 5366808 | J12: 170823 | K12: ＞256 | L12: ＞256 | M12: 256 | N12: 32 | O12: 16 | P12: 16 | Q12: 2 | R12: 1 | S12: 64 | T12: ≤0.25
A13: GD-KPC30 | B13: This study | C13: Guangdong | D13: 2015 | E13: scaffold | F13: SPAdes v.3.9.1 | G13: 132 | H13: 5741272 | I13: 169916 | J13: 28544 | K13: ＞256 | L13: ＞256 | M13: 64 | N13: ＞128 | O13: 64 | P13: 64 | Q13: ＞256 | R13: ＞256 | S13: ＞256 | T13: ≤0.25
A14: HN-26 | B14: This study | C14: Henan | D14: 2015 | E14: scaffold | F14: SPAdes v.3.9.1 | G14: 140 | H14: 5785890 | I14: 151373 | J14: 30927 | K14: ＞256 | L14: 256 | M14: 128 | N14: ＞128 | O14: 32 | P14: 64 | Q14: ≤0.5 | R14: 32 | S14: ＞256 | T14: ≤0.25
A15: HN34-1 | B15: This study | C15: Henan | D15: 2015 | E15: scaffold | F15: SPAdes v.3.9.1 | G15: 167 | H15: 5519507 | I15: 97294 | J15: 19808 | K15: ＞256 | L15: ＞256 | M15: ＞256 | N15: 128 | O15: 32 | P15: 128 | Q15: ＞256 | R15: 32 | S15: ＞256 | T15: 2
A16: HN34-2 | B16: This study | C16: Henan | D16: 2015 | E16: scaffold | F16: SPAdes v.3.9.1 | G16: 113 | H16: 5792460 | I16: 151791 | J16: 34549 | K16: ＞256 | L16: ＞256 | M16: 256 | N16: ＞128 | O16: 16 | P16: 128 | Q16: 1 | R16: 32 | S16: ＞256 | T16: ≤0.25
A17: JXR113 | B17: This study | C17: Zhejiang | D17: 2015 | E17: scaffold | F17: SPAdes v.3.9.1 | G17: 122 | H17: 5712976 | I17: 176066 | J17: 31828 | K17: ＞256 | L17: 64 | M17: 128 | N17: ＞128 | O17: 32 | P17: 128 | Q17: ＞256 | R17: 16 | S17: ＞256 | T17: ≤0.25
A18: JXR114 | B18: This study | C18: Zhejiang | D18: 2015 | E18: scaffold | F18: SPAdes v.3.9.1 | G18: 111 | H18: 5562831 | I18: 141255 | J18: 34549 | K18: ＞256 | L18: 64 | M18: 256 | N18: ＞128 | O18: 64 | P18: 128 | Q18: ＞256 | R18: 16 | S18: ＞256 | T18: ≤0.25
A19: FJ8 | B19: This study | C19: Fujian | D19: 2015 | E19: scaffold | F19: SPAdes v.3.9.1 | G19: 90 | H19: 5619946 | I19: 176066 | J19: 52283 | K19: ＞256 | L19: ＞256 | M19: ＞256 | N19: ＞128 | O19: 128 | P19: ＞128 | Q19: ＞256 | R19: 2 | S19: ＞256 | T19: ≤0.25
A20: SH-1 | B20: This study | C20: Shanghai | D20: 2015 | E20: scaffold | F20: SPAdes v.3.9.1 | G20: 129 | H20: 5719880 | I20: 129798 | J20: 34549 | K20: ＞256 | L20: 256 | M20: 256 | N20: ＞128 | O20: 64 | P20: 128 | Q20: ＞256 | R20: ≤0.5 | S20: ＞256 | T20: 1
A21: SH-16 | B21: This study | C21: Shanghai | D21: 2015 | E21: scaffold | F21: SPAdes v.3.9.1 | G21: 136 | H21: 5739574 | I21: 129690 | J21: 31828 | K21: ＞256 | L21: 128 | M21: 128 | N21: 128 | O21: 32 | P21: 64 | Q21: ＞256 | R21: 64 | S21: ＞256 | T21: 1
A22: SH-2 | B22: This study | C22: Shanghai | D22: 2015 | E22: scaffold | F22: SPAdes v.3.9.1 | G22: 117 | H22: 5826799 | I22: 132102 | J22: 37781 | K22: ＞256 | L22: 64 | M22: 256 | N22: ＞128 | O22: 64 | P22: ＞128 | Q22: ＞256 | R22: 64 | S22: ≤ 0.5 | T22: 1
A23: SH-9 | B23: This study | C23: Shanghai | D23: 2015 | E23: scaffold | F23: SPAdes v.3.9.1 | G23: 129 | H23: 5739793 | I23: 129690 | J23: 32363 | K23: ＞256 | L23: 128 | M23: 128 | N23: ＞128 | O23: 16 | P23: 128 | Q23: ＞256 | R23: 64 | S23: ＞256 | T23: ≤0.25
A24: XJ126 | B24: This study | C24: Shanxi | D24: 2015 | E24: scaffold | F24: SPAdes v.3.9.1 | G24: 87 | H24: 5603218 | I24: 134034 | J24: 52283 | K24: ＞256 | L24: ＞256 | M24: 128 | N24: 128 | O24: 16 | P24: 64 | Q24: ＞256 | R24: 64 | S24: ＞256 | T24: 1
A25: AH-29 | B25: This study | C25: Anhui | D25: 2015 | E25: scaffold | F25: SPAdes v.3.9.1 | G25: 91 | H25: 5579775 | I25: 178089 | J25: 55162 | K25: ＞256 | L25: 128 | M25: 256 | N25: 128 | O25: ＞128 | P25: ＞128 | Q25: ＞256 | R25: ≤0.5 | S25: ＞256 | T25: ≤0.25
A26: AH-9 | B26: This study | C26: Anhui | D26: 2015 | E26: scaffold | F26: SPAdes v.3.9.1 | G26: 92 | H26: 5582007 | I26: 198350 | J26: 51358 | K26: ＞256 | L26: 256 | M26: ＞256 | N26: ＞128 | O26: ＞128 | P26: ＞128 | Q26: ＞256 | R26: 8 | S26: ＞256 | T26: 1
A27: BJK20 | B27: This study | C27: Beijing | D27: 2015 | E27: scaffold | F27: SPAdes v.3.9.1 | G27: 130 | H27: 5477670 | I27: 156320 | J27: 26346 | K27: ＞256 | L27: ＞256 | M27: 128 | N27: 8 | O27: 8 | P27: 8 | Q27: 1 | R27: 4 | S27: ＞256 | T27: ≤0.25
A28: BJK22 | B28: This study | C28: Beijing | D28: 2015 | E28: scaffold | F28: SPAdes v.3.9.1 | G28: 124 | H28: 5481029 | I28: 159606 | J28: 31828 | K28: ＞256 | L28: ＞256 | M28: 64 | N28: 32 | O28: 16 | P28: 8 | Q28: ＞256 | R28: 16 | S28: ＞256 | T28: ≤0.25
A29: BJK23 | B29: This study | C29: Beijing | D29: 2015 | E29: scaffold | F29: SPAdes v.3.9.1 | G29: 127 | H29: 5477543 | I29: 151791 | J29: 31703 | K29: ＞256 | L29: ＞256 | M29: 256 | N29: 32 | O29: 16 | P29: 32 | Q29: 2 | R29: ≤0.5 | S29: ＞256 | T29: ≤0.25
A30: GD108 | B30: This study | C30: Guangdong | D30: 2015 | E30: scaffold | F30: SPAdes v.3.9.1 | G30: 96 | H30: 5415704 | I30: 190461 | J30: 55162 | K30: >256 | L30: >256 | M30: 256 | N30: >128 | O30: 16 | P30: 128 | Q30: >256 | R30: 64 | S30: >256 | T30: ≤0.25
A31: HA2-17 | B31: This study | C31: Henan | D31: 2015 | E31: scaffold | F31: SPAdes v.3.9.1 | G31: 99 | H31: 5557502 | I31: 203714 | J31: 45955 | K31: ＞256 | L31: 256 | M31: 128 | N31: ＞128 | O31: 32 | P31: 64 | Q31: ＞256 | R31: 32 | S31: ＞256 | T31: ≤0.25
A32: HA-74 | B32: This study | C32: Henan | D32: 2015 | E32: scaffold | F32: SPAdes v.3.9.1 | G32: 95 | H32: 5567939 | I32: 196385 | J32: 48207 | K32: ＞256 | L32: 64 | M32: 32 | N32: 8 | O32: 32 | P32: 64 | Q32: ＞256 | R32: 64 | S32: ＞256 | T32: 4
A33: HA-99 | B33: This study | C33: Henan | D33: 2015 | E33: scaffold | F33: SPAdes v.3.9.1 | G33: 105 | H33: 5593438 | I33: 190942 | J33: 45955 | K33: ＞256 | L33: ＞256 | M33: ＞256 | N33: 32 | O33: 64 | P33: 64 | Q33: ＞256 | R33: 64 | S33: 256 | T33: ≤0.25
A35: Strains from NCBI database
A36: Strain ID | B36: Accession | C36: source | D36: origin | F36: isolation source | G36: assembly_method | H36: assembly level | I36: length_bp | J36: number of contigs | K36: Note
A37: KP41 | B37: GCA_001856605.1 | C37: NCBI database | D37: Xinhua Hospital, Shanghai Jiao Tong University School of Medicine | F37: central venous catheter | G37: SPAdes v. 3.9.0; Mauve v. 2.4.0 | H37: Scaffold | I37: 5565024 | J37: 110 | K37: assembled scaffolds were downloaded
A38: KP6 | B38: GCA_001866785.1 | C38: NCBI database | D38: Xinhua Hospital, Shanghai Jiao Tong University School of Medicine | F38: urine | G38: SPAdes v. 3.9.0 | H38: Scaffold | I38: 5640726 | J38: 129 | K38: assembled scaffolds were downloaded
A39: SWU01 | B39: GCA_001902475.1 | C39: NCBI database | D39: Southwest Medical University | F39: blood specimen | G39: SOAPdenovo v. v2.04 | H39: Complete Genome | I39: 5699058 | J39: 2 | K39: assembled scaffolds were downloaded
A40: TR187 | B40: GCA_001613565.1 | C40: NCBI database | D40: Chinese Center for Disease Control and Prevention | F40: abdominal drainage | G40: SOAPdenovo v. 2.04 | H40: Scaffold | I40: 5546703 | J40: 87 | K40: assembled scaffolds were downloaded
A41: TR191 | B41: GCA_001613715.1 | C41: NCBI database | D41: Chinese Center for Disease Control and Prevention | F41: sputum | G41: SOAPdenovo v. 2.04 | H41: Scaffold | I41: 5534841 | J41: 104 | K41: assembled scaffolds were downloaded
A42: TR198 | B42: GCA_001613595.1 | C42: NCBI database | D42: Chinese Center for Disease Control and Prevention | F42: sputum | G42: SOAPdenovo v. 2.04 | H42: Scaffold | I42: 5544407 | J42: 74 | K42: assembled scaffolds were downloaded
A43: TR200 | B43: GCA_001613655.1 | C43: NCBI database | D43: Chinese Center for Disease Control and Prevention | F43: urine | G43: SOAPdenovo v. 2.04 | H43: Scaffold | I43: 5546912 | J43: 102 | K43: assembled scaffolds were downloaded
A44: TR262 | B44: GCA_001613665.1 | C44: NCBI database | D44: Chinese Center for Disease Control and Prevention | F44: sputum | G44: SOAPdenovo v. 2.04 | H44: Scaffold | I44: 5574386 | J44: 103 | K44: assembled scaffolds were downloaded
A45: TRqt-37 | B45: GCA_001613585.1 | C45: NCBI database | D45: Chinese Center for Disease Control and Prevention | F45: nose | G45: SOAPdenovo v. 2.04 | H45: Scaffold | I45: 5541511 | J45: 85 | K45: assembled scaffolds were downloaded
A46: TRqt-41 | B46: GCA_001613575.1 | C46: NCBI database | D46: Chinese Center for Disease Control and Prevention | F46: nose | G46: SOAPdenovo v. 2.04 | H46: Scaffold | I46: 5550293 | J46: 92 | K46: assembled scaffolds were downloaded
A47: TRqt-49 | B47: GCA_001613645.1 | C47: NCBI database | D47: Chinese Center for Disease Control and Prevention | F47: nose | G47: SOAPdenovo v. 2.04 | H47: Scaffold | I47: 5545016 | J47: 76 | K47: assembled scaffolds were downloaded
A48: WCHKP649 | B48: GCA_001887985.1 | C48: NCBI database | D48: West China Hospital, Sichuan University | F48: Secreta | G48: SPAdes v. 3.9.0 | H48: Contig | I48: 5582397 | J48: 150 | K48: assembled scaffolds were downloaded
A49: XL-1 | B49: GCA_001939845.1 | C49: NCBI database | D49: Fifth Affiliated Hospital of Wenzhou Medical University | F49: blood | G49: SPAdes v. 3.5 | H49: Scaffold | I49: 5520425 | J49: 84 | K49: assembled scaffolds were downloaded
A50: kp10 | B50: GCA_001856585.1 | C50: NCBI database | D50: Xinhua Hospital, Shanghai Jiao Tong University School of Medicine | F50: blood | G50: SPAdes v. 3.9.0; plasmidspades v. 3.9.0 | H50: Scaffold | I50: 5727930 | J50: 107 | K50: assembled scaffolds were downloaded
A51: HS11286 | B51: GCA_000240185.2 | C51: NCBI database | D51: Huanshan hospital, Shanghai,China | F51: sputum | G51: Newbler | H51: Complete Genome | I51: 5682322 | J51: 7 | K51: assembled scaffolds were downloaded
A52: JM45 | B52: GCA_000445405.1 | C52: NCBI database | D52: the Second Affiliated Hospital Zhejiang University School of Medicine, Hangzhou, China | F52: blood | G52: Newbler | H52: Complete Genome | I52: 5603174 | J52: 3 | K52: assembled scaffolds were downloaded
A53: K6 | B53: SRR2064877 | C53: NCBI database | D53: QuZhou People's Hospital, Zhejiang, China, | F53: Blood | G53: SPAdes v.3.9.1 | H53: Scaffold | I53: 5591567 | J53: 79 | K53: Only original reads avaiable in the database, assembled in this study
A54: K11 | B54: SRR2064844 | C54: NCBI database | D54: QuZhou People's Hospital, Zhejiang, China, | F54: Catheter | G54: SPAdes v.3.9.1 | H54: Scaffold | I54: 5684140 | J54: 94 | K54: Only original reads avaiable in the database, assembled in this study
A55: K15 | B55: SRR2064879 | C55: NCBI database | D55: QuZhou People's Hospital, Zhejiang, China, | F55: Blood | G55: SPAdes v.3.9.1 | H55: Scaffold | I55: 5537094 | J55: 88 | K55: Only original reads avaiable in the database, assembled in this study
A56: K22-1 | B56: SRR2064885 | C56: NCBI database | D56: QuZhou People's Hospital, Zhejiang, China, | F56: Blood | G56: SPAdes v.3.9.1 | H56: Scaffold | I56: 5525229 | J56: 119 | K56: Only original reads avaiable in the database, assembled in this study
A57: K22-2 | B57: SRR2064887 | C57: NCBI database | D57: QuZhou People's Hospital, Zhejiang, China, | F57: Blood | G57: SPAdes v.3.9.1 | H57: Scaffold | I57: 5524438 | J57: 112 | K57: Only original reads avaiable in the database, assembled in this study
A58: K28-1 | B58: SRR2064888 | C58: NCBI database | D58: QuZhou People's Hospital, Zhejiang, China, | F58: Blood | G58: SPAdes v.3.9.1 | H58: Scaffold | I58: 5522729 | J58: 111 | K58: Only original reads avaiable in the database, assembled in this study
A59: K45 | B59: SRR2070616 | C59: NCBI database | D59: QuZhou People's Hospital, Zhejiang, China, | F59: Catheter | G59: SPAdes v.3.9.1 | H59: Scaffold | I59: 5538061 | J59: 87 | K59: Only original reads avaiable in the database, assembled in this study
A60: K47 | B60: SRR2070618 | C60: NCBI database | D60: QuZhou People's Hospital, Zhejiang, China, | F60: Blood | G60: SPAdes v.3.9.1 | H60: Scaffold | I60: 5539584 | J60: 88 | K60: Only original reads avaiable in the database, assembled in this study
A61: K48 | B61: SRR2070619 | C61: NCBI database | D61: QuZhou People's Hospital, Zhejiang, China, | F61: Catheter | G61: SPAdes v.3.9.1 | H61: Scaffold | I61: 5540063 | J61: 91 | K61: Only original reads avaiable in the database, assembled in this study
A62: K49 | B62: SRR2070620 | C62: NCBI database | D62: QuZhou People's Hospital, Zhejiang, China, | F62: Pleural effusion | G62: SPAdes v.3.9.1 | H62: Scaffold | I62: 5540513 | J62: 89 | K62: Only original reads avaiable in the database, assembled in this study
A63: K50 | B63: SRR2070621 | C63: NCBI database | D63: QuZhou People's Hospital, Zhejiang, China, | F63: cerebrospinal fluid | G63: SPAdes v.3.9.1 | H63: Scaffold | I63: 5538471 | J63: 87 | K63: Only original reads avaiable in the database, assembled in this study

Sheet S2
A1: Assembly | B1: Best match locus | C1: Match confidence | D1: Problems | E1: Coverage | F1: Identity | G1: Length discrepancy | H1: Expected genes in locus | I1: Expected genes in locus, details | J1: Missing expected genes | K1: Other genes in locus | L1: Other genes in locus, details | M1: Expected genes outside locus | N1: Expected genes outside locus, details | O1: Other genes outside locus | P1: Other genes outside locus, details | Q1: wzc | R1: wzi
A2: AH10 | B2: KL47 | C2: Good | D2: ?- | E2: 1 | F2: 0.9941 | G2: n/a | H2: 17 / 19 (89.5%) | I2: KL47_01_galF,99.33%;KL47_02_cpsACP,96.67%;KL47_03_wzi,100.0%;KL47_04_wza,100.0%;KL47_05_wzb,100.0%;KL47_06_wzc,100.0%;KL47_07_wcaJ,100.0%;KL47_08_wcaA,99.67%;KL47_09,100.0%;KL47_10_wcqC,100.0%;KL47_11_wzy,99.76%;KL47_12_wcuT,100.0%;KL47_13_wzx,99.79%;KL47_14_gnd,100.0%;KL47_16_rmlA,99.66%;KL47_17_rmlD,99.66%;KL47_19_ugd,100.0% | J2: KL47_15_rmlB;KL47_18_rmlC | K2: 0 | M2: 0 / 19 (0%) | O2: 1 | P2: KL150_19_gmd,98.81% | Q2: 47 | R2: 209
A3: AH11 | B3: KL47 | C3: Good | D3: ?- | E3: 1 | F3: 0.9939 | G3: n/a | H3: 16 / 19 (84.2%) | I3: KL47_01_galF,99.33%;KL47_02_cpsACP,96.67%;KL47_03_wzi,100.0%;KL47_04_wza,100.0%;KL47_05_wzb,100.0%;KL47_06_wzc,99.86%;KL47_08_wcaA,99.67%;KL47_09,100.0%;KL47_10_wcqC,100.0%;KL47_11_wzy,99.76%;KL47_12_wcuT,100.0%;KL47_13_wzx,99.79%;KL47_14_gnd,100.0%;KL47_16_rmlA,99.66%;KL47_17_rmlD,99.66%;KL47_19_ugd,100.0% | J3: KL47_07_wcaJ;KL47_15_rmlB;KL47_18_rmlC | K3: 0 | M3: 0 / 19 (0%) | O3: 1 | P3: KL150_19_gmd,98.81% | Q3: 47 | R3: 209
A4: AH12 | B4: KL47 | C4: Good | D4: ?- | E4: 1 | F4: 0.9937 | G4: n/a | H4: 16 / 19 (84.2%) | I4: KL47_01_galF,99.33%;KL47_02_cpsACP,96.67%;KL47_03_wzi,100.0%;KL47_04_wza,100.0%;KL47_05_wzb,100.0%;KL47_06_wzc,99.86%;KL47_08_wcaA,99.67%;KL47_09,100.0%;KL47_10_wcqC,100.0%;KL47_11_wzy,99.76%;KL47_12_wcuT,100.0%;KL47_13_wzx,99.79%;KL47_14_gnd,100.0%;KL47_16_rmlA,99.31%;KL47_17_rmlD,99.66%;KL47_19_ugd,100.0% | J4: KL47_07_wcaJ;KL47_15_rmlB;KL47_18_rmlC | K4: 0 | M4: 0 / 19 (0%) | O4: 1 | P4: KL150_19_gmd,98.81% | Q4: 47 | R4: 209
A5: AH-29 | B5: KL64 | C5: Very high | E5: 1 | F5: 0.999 | G5: 0 bp | H5: 24 / 24 (100%) | I5: KL64_01_galF,100.0%;KL64_02_cpsACP,99.52%;KL64_03_wzi,100.0%;KL64_04_wza,100.0%;KL64_05_wzb,100.0%;KL64_06_wzc,100.0%;KL64_07_wzx,99.59%;KL64_08_wcoV,100.0%;KL64_09,100.0%;KL64_10_wzy,100.0%;KL64_11_wcoU,99.68%;KL64_12_wcoT,100.0%;KL64_13_wcsF,100.0%;KL64_14_wcuK,100.0%;KL64_15_wbaZ,100.0%;KL64_16_wcaJ,100.0%;KL64_17_gnd,100.0%;KL64_18_manC,100.0%;KL64_19_manB,100.0%;KL64_20_rmlB,100.0%;KL64_21_rmlA,99.66%;KL64_22_rmlD,100.0%;KL64_23_rmlC,100.0%;KL64_24_ugd,99.74% | K5: 0 | M5: 0 / 24 (0%) | O5: 2 | P5: KL40_05_rfaG,97.64%;KL150_19_gmd,98.81% | Q5: 64 | R5: 64
A6: AH-9 | B6: KL64 | C6: Very high | E6: 1 | F6: 0.999 | G6: 0 bp | H6: 24 / 24 (100%) | I6: KL64_01_galF,100.0%;KL64_02_cpsACP,99.52%;KL64_03_wzi,100.0%;KL64_04_wza,100.0%;KL64_05_wzb,100.0%;KL64_06_wzc,100.0%;KL64_07_wzx,99.59%;KL64_08_wcoV,100.0%;KL64_09,100.0%;KL64_10_wzy,100.0%;KL64_11_wcoU,99.68%;KL64_12_wcoT,100.0%;KL64_13_wcsF,100.0%;KL64_14_wcuK,100.0%;KL64_15_wbaZ,100.0%;KL64_16_wcaJ,100.0%;KL64_17_gnd,100.0%;KL64_18_manC,100.0%;KL64_19_manB,100.0%;KL64_20_rmlB,100.0%;KL64_21_rmlA,99.66%;KL64_22_rmlD,100.0%;KL64_23_rmlC,100.0%;KL64_24_ugd,99.74% | K6: 0 | M6: 0 / 24 (0%) | O6: 2 | P6: KL40_05_rfaG,97.64%;KL150_19_gmd,98.81% | Q6: 64 | R6: 64
A7: BJ-A1040 | B7: KL47 | C7: None | D7: ?- | E7: 0.956 | F7: 0.9946 | G7: n/a | H7: 14 / 19 (73.7%) | I7: KL47_01_galF,99.33%;KL47_03_wzi,100.0%;KL47_04_wza,100.0%;KL47_05_wzb,100.0%;KL47_06_wzc,99.72%;KL47_07_wcaJ,100.0%;KL47_08_wcaA,99.29%;KL47_09,98.64%;KL47_10_wcqC,100.0%;KL47_13_wzx,99.79%;KL47_14_gnd,100.0%;KL47_16_rmlA,99.31%;KL47_17_rmlD,99.66%;KL47_19_ugd,100.0% | J7: KL47_02_cpsACP;KL47_11_wzy;KL47_12_wcuT;KL47_15_rmlB;KL47_18_rmlC | K7: 0 | M7: 0 / 19 (0%) | O7: 1 | P7: KL150_19_gmd,98.81% | Q7: 47 | R7: 209
A8: BJK20 | B8: KL47 | C8: None | D8: ?- | E8: 0.9571 | F8: 0.9953 | G8: n/a | H8: 15 / 19 (78.9%) | I8: KL47_01_galF,99.33%;KL47_03_wzi,100.0%;KL47_04_wza,100.0%;KL47_05_wzb,100.0%;KL47_06_wzc,99.72%;KL47_07_wcaJ,100.0%;KL47_08_wcaA,99.67%;KL47_09,100.0%;KL47_10_wcqC,100.0%;KL47_12_wcuT,100.0%;KL47_13_wzx,99.79%;KL47_14_gnd,100.0%;KL47_16_rmlA,99.66%;KL47_17_rmlD,99.66%;KL47_19_ugd,100.0% | J8: KL47_02_cpsACP;KL47_11_wzy;KL47_15_rmlB;KL47_18_rmlC | K8: 0 | M8: 0 / 19 (0%) | O8: 1 | P8: KL150_19_gmd,98.81% | Q8: 47 | R8: 209
A9: BJK22 | B9: KL47 | C9: None | D9: ?- | E9: 0.9571 | F9: 0.9953 | G9: n/a | H9: 15 / 19 (78.9%) | I9: KL47_01_galF,99.33%;KL47_03_wzi,100.0%;KL47_04_wza,100.0%;KL47_05_wzb,100.0%;KL47_06_wzc,99.72%;KL47_07_wcaJ,100.0%;KL47_08_wcaA,99.67%;KL47_09,100.0%;KL47_10_wcqC,100.0%;KL47_12_wcuT,100.0%;KL47_13_wzx,99.79%;KL47_14_gnd,100.0%;KL47_16_rmlA,99.66%;KL47_17_rmlD,99.66%;KL47_19_ugd,100.0% | J9: KL47_02_cpsACP;KL47_11_wzy;KL47_15_rmlB;KL47_18_rmlC | K9: 0 | M9: 0 / 19 (0%) | O9: 1 | P9: KL150_19_gmd,98.81% | Q9: 47 | R9: 209
A10: BJK23 | B10: KL47 | C10: None | D10: ?- | E10: 0.9571 | F10: 0.9953 | G10: n/a | H10: 15 / 19 (78.9%) | I10: KL47_01_galF,99.33%;KL47_03_wzi,100.0%;KL47_04_wza,100.0%;KL47_05_wzb,100.0%;KL47_06_wzc,99.72%;KL47_07_wcaJ,100.0%;KL47_08_wcaA,99.67%;KL47_09,100.0%;KL47_10_wcqC,100.0%;KL47_12_wcuT,100.0%;KL47_13_wzx,99.79%;KL47_14_gnd,100.0%;KL47_16_rmlA,99.66%;KL47_17_rmlD,99.66%;KL47_19_ugd,100.0% | J10: KL47_02_cpsACP;KL47_11_wzy;KL47_15_rmlB;KL47_18_rmlC | K10: 0 | M10: 0 / 19 (0%) | O10: 1 | P10: KL150_19_gmd,98.81% | Q10: 47 | R10: 209
A11: BJK6 | B11: KL47 | C11: None | D11: ?- | E11: 0.9571 | F11: 0.9956 | G11: n/a | H11: 15 / 19 (78.9%) | I11: KL47_01_galF,99.33%;KL47_03_wzi,100.0%;KL47_04_wza,100.0%;KL47_05_wzb,100.0%;KL47_06_wzc,99.72%;KL47_07_wcaJ,100.0%;KL47_08_wcaA,99.67%;KL47_09,100.0%;KL47_10_wcqC,100.0%;KL47_12_wcuT,100.0%;KL47_13_wzx,99.79%;KL47_14_gnd,100.0%;KL47_16_rmlA,99.31%;KL47_17_rmlD,99.66%;KL47_19_ugd,100.0% | J11: KL47_02_cpsACP;KL47_11_wzy;KL47_15_rmlB;KL47_18_rmlC | K11: 0 | M11: 0 / 19 (0%) | O11: 1 | P11: KL150_19_gmd,98.81% | Q11: 47 | R11: 209
A12: BJK7 | B12: KL47 | C12: None | D12: ?- | E12: 0.9681 | F12: 0.9951 | G12: n/a | H12: 15 / 19 (78.9%) | I12: KL47_01_galF,99.33%;KL47_03_wzi,100.0%;KL47_04_wza,100.0%;KL47_05_wzb,100.0%;KL47_06_wzc,99.72%;KL47_07_wcaJ,100.0%;KL47_08_wcaA,99.67%;KL47_09,100.0%;KL47_10_wcqC,100.0%;KL47_12_wcuT,100.0%;KL47_13_wzx,99.79%;KL47_14_gnd,100.0%;KL47_16_rmlA,99.66%;KL47_17_rmlD,99.66%;KL47_19_ugd,100.0% | J12: KL47_02_cpsACP;KL47_11_wzy;KL47_15_rmlB;KL47_18_rmlC | K12: 0 | M12: 0 / 19 (0%) | O12: 1 | P12: KL150_19_gmd,98.81% | Q12: 47 | R12: 209
A13: BJK8 | B13: KL47 | C13: None | D13: ?- | E13: 0.9571 | F13: 0.9955 | G13: n/a | H13: 15 / 19 (78.9%) | I13: KL47_01_galF,99.33%;KL47_03_wzi,100.0%;KL47_04_wza,100.0%;KL47_05_wzb,100.0%;KL47_06_wzc,99.72%;KL47_07_wcaJ,100.0%;KL47_08_wcaA,99.67%;KL47_09,100.0%;KL47_10_wcqC,100.0%;KL47_12_wcuT,100.0%;KL47_13_wzx,99.79%;KL47_14_gnd,100.0%;KL47_16_rmlA,99.66%;KL47_17_rmlD,99.66%;KL47_19_ugd,100.0% | J13: KL47_02_cpsACP;KL47_11_wzy;KL47_15_rmlB;KL47_18_rmlC | K13: 0 | M13: 0 / 19 (0%) | O13: 1 | P13: KL150_19_gmd,98.81% | Q13: 47 | R13: 209
A14: FJ10 | B14: KL47 | C14: Good | D14: ?- | E14: 1 | F14: 0.994 | G14: n/a | H14: 17 / 19 (89.5%) | I14: KL47_01_galF,99.33%;KL47_02_cpsACP,96.67%;KL47_03_wzi,100.0%;KL47_04_wza,100.0%;KL47_05_wzb,100.0%;KL47_06_wzc,100.0%;KL47_07_wcaJ,100.0%;KL47_08_wcaA,99.67%;KL47_09,100.0%;KL47_10_wcqC,100.0%;KL47_11_wzy,100.0%;KL47_12_wcuT,100.0%;KL47_13_wzx,99.79%;KL47_14_gnd,100.0%;KL47_16_rmlA,99.66%;KL47_17_rmlD,99.66%;KL47_19_ugd,100.0% | J14: KL47_15_rmlB;KL47_18_rmlC | K14: 0 | M14: 0 / 19 (0%) | O14: 1 | P14: KL150_19_gmd,98.81% | Q14: 47 | R14: 209
A15: FJ11 | B15: KL47 | C15: Good | D15: ?- | E15: 1 | F15: 0.9941 | G15: n/a | H15: 17 / 19 (89.5%) | I15: KL47_01_galF,99.33%;KL47_02_cpsACP,96.67%;KL47_03_wzi,100.0%;KL47_04_wza,100.0%;KL47_05_wzb,100.0%;KL47_06_wzc,100.0%;KL47_07_wcaJ,100.0%;KL47_08_wcaA,99.67%;KL47_09,100.0%;KL47_10_wcqC,100.0%;KL47_11_wzy,100.0%;KL47_12_wcuT,100.0%;KL47_13_wzx,99.79%;KL47_14_gnd,100.0%;KL47_16_rmlA,99.66%;KL47_17_rmlD,99.66%;KL47_19_ugd,100.0% | J15: KL47_15_rmlB;KL47_18_rmlC | K15: 0 | M15: 0 / 19 (0%) | O15: 1 | P15: KL150_19_gmd,98.81% | Q15: 47 | R15: 209
A16: FJ8 | B16: KL47 | C16: Good | D16: ?- | E16: 1 | F16: 0.9941 | G16: n/a | H16: 17 / 19 (89.5%) | I16: KL47_01_galF,99.33%;KL47_02_cpsACP,96.67%;KL47_03_wzi,100.0%;KL47_04_wza,100.0%;KL47_05_wzb,100.0%;KL47_06_wzc,100.0%;KL47_07_wcaJ,100.0%;KL47_08_wcaA,99.67%;KL47_09,100.0%;KL47_10_wcqC,100.0%;KL47_11_wzy,100.0%;KL47_12_wcuT,100.0%;KL47_13_wzx,99.79%;KL47_14_gnd,100.0%;KL47_16_rmlA,99.31%;KL47_17_rmlD,99.66%;KL47_19_ugd,100.0% | J16: KL47_15_rmlB;KL47_18_rmlC | K16: 0 | M16: 0 / 19 (0%) | O16: 1 | P16: KL150_19_gmd,98.81% | Q16: 47 | R16: 209
A17: GD108 | B17: KL47 | C17: Good | D17: ?- | E17: 1 | F17: 0.9938 | G17: n/a | H17: 17 / 19 (89.5%) | I17: KL47_01_galF,99.33%;KL47_02_cpsACP,96.19%;KL47_03_wzi,100.0%;KL47_04_wza,100.0%;KL47_05_wzb,100.0%;KL47_06_wzc,100.0%;KL47_07_wcaJ,100.0%;KL47_08_wcaA,99.67%;KL47_09,100.0%;KL47_10_wcqC,100.0%;KL47_11_wzy,100.0%;KL47_12_wcuT,100.0%;KL47_13_wzx,99.79%;KL47_14_gnd,100.0%;KL47_16_rmlA,99.66%;KL47_17_rmlD,99.66%;KL47_19_ugd,100.0% | J17: KL47_15_rmlB;KL47_18_rmlC | K17: 0 | M17: 0 / 19 (0%) | O17: 1 | P17: KL150_19_gmd,98.81% | Q17: 47 | R17: 209
A18: GD4 | B18: KL47 | C18: Very high | E18: 1 | F18: 0.9942 | G18: -13 bp | H18: 19 / 19 (100%) | I18: KL47_01_galF,99.33%;KL47_02_cpsACP,96.67%;KL47_03_wzi,100.0%;KL47_04_wza,100.0%;KL47_05_wzb,100.0%;KL47_06_wzc,100.0%;KL47_07_wcaJ,100.0%;KL47_08_wcaA,99.67%;KL47_09,100.0%;KL47_10_wcqC,100.0%;KL47_11_wzy,100.0%;KL47_12_wcuT,100.0%;KL47_13_wzx,99.79%;KL47_14_gnd,100.0%;KL47_15_rmlB,99.72%;KL47_16_rmlA,99.31%;KL47_17_rmlD,99.66%;KL47_18_rmlC,100.0%;KL47_19_ugd,100.0% | K18: 0 | M18: 0 / 19 (0%) | O18: 5 | P18: KL18_17_rmlB,99.44%;KL150_19_gmd,98.81%;KL52_20_rmlD,99.36%;KL12_20_rmlA,99.31%;KL12_22_rmlC,99.46% | Q18: 47 | R18: 209
A19: GD-KPC30 | B19: KL47 | C19: Good | D19: ?- | E19: 1 | F19: 0.993 | G19: n/a | H19: 17 / 19 (89.5%) | I19: KL47_01_galF,99.33%;KL47_02_cpsACP,96.67%;KL47_03_wzi,100.0%;KL47_04_wza,100.0%;KL47_05_wzb,100.0%;KL47_06_wzc,100.0%;KL47_07_wcaJ,100.0%;KL47_08_wcaA,99.34%;KL47_09,99.5%;KL47_10_wcqC,99.61%;KL47_11_wzy,99.52%;KL47_12_wcuT,98.24%;KL47_13_wzx,99.79%;KL47_14_gnd,100.0%;KL47_16_rmlA,99.66%;KL47_17_rmlD,99.66%;KL47_19_ugd,100.0% | J19: KL47_15_rmlB;KL47_18_rmlC | K19: 0 | M19: 0 / 19 (0%) | O19: 1 | P19: KL150_19_gmd,98.81% | Q19: 47 | R19: 209
A20: HA2-17 | B20: KL47 | C20: Good | D20: ?-* | E20: 1 | F20: 0.9931 | G20: n/a | H20: 17 / 19 (89.5%) | I20: KL47_01_galF,99.33%;KL47_02_cpsACP,91.75%;KL47_03_wzi,100.0%;KL47_04_wza,100.0%;KL47_05_wzb,100.0%;KL47_06_wzc,100.0%;KL47_07_wcaJ,100.0%;KL47_08_wcaA,99.67%;KL47_09,100.0%;KL47_10_wcqC,97.23%;KL47_11_wzy,99.04%;KL47_12_wcuT,100.0%;KL47_13_wzx,99.79%;KL47_14_gnd,100.0%;KL47_16_rmlA,99.31%;KL47_17_rmlD,99.66%;KL47_19_ugd,100.0% | J20: KL47_15_rmlB;KL47_18_rmlC | K20: 0 | M20: 0 / 19 (0%) | O20: 1 | P20: KL150_19_gmd,98.81% | Q20: 47 | R20: 209
A21: HA-74 | B21: KL47 | C21: Good | D21: ?-* | E21: 1 | F21: 0.9938 | G21: n/a | H21: 17 / 19 (89.5%) | I21: KL47_01_galF,99.33%;KL47_02_cpsACP,91.75%;KL47_03_wzi,100.0%;KL47_04_wza,100.0%;KL47_05_wzb,100.0%;KL47_06_wzc,100.0%;KL47_07_wcaJ,100.0%;KL47_08_wcaA,99.67%;KL47_09,100.0%;KL47_10_wcqC,100.0%;KL47_11_wzy,100.0%;KL47_12_wcuT,100.0%;KL47_13_wzx,99.79%;KL47_14_gnd,100.0%;KL47_16_rmlA,99.66%;KL47_17_rmlD,99.66%;KL47_19_ugd,100.0% | J21: KL47_15_rmlB;KL47_18_rmlC | K21: 0 | M21: 0 / 19 (0%) | O21: 1 | P21: KL150_19_gmd,98.81% | Q21: 47 | R21: 209
A22: HA-99 | B22: KL47 | C22: Good | D22: ?-* | E22: 1 | F22: 0.9939 | G22: n/a | H22: 16 / 19 (84.2%) | I22: KL47_01_galF,99.33%;KL47_02_cpsACP,91.75%;KL47_03_wzi,100.0%;KL47_04_wza,100.0%;KL47_05_wzb,100.0%;KL47_06_wzc,100.0%;KL47_08_wcaA,99.67%;KL47_09,100.0%;KL47_10_wcqC,100.0%;KL47_11_wzy,100.0%;KL47_12_wcuT,100.0%;KL47_13_wzx,99.79%;KL47_14_gnd,100.0%;KL47_16_rmlA,99.66%;KL47_17_rmlD,99.66%;KL47_19_ugd,100.0% | J22: KL47_07_wcaJ;KL47_15_rmlB;KL47_18_rmlC | K22: 0 | M22: 0 / 19 (0%) | O22: 1 | P22: KL150_19_gmd,98.81% | Q22: 47 | R22: 209
A23: HN-26 | B23: KL64 | C23: None | D23: ?- | E23: 0.9682 | F23: 0.9986 | G23: n/a | H23: 19 / 24 (79.2%) | I23: KL64_01_galF,100.0%;KL64_02_cpsACP,99.52%;KL64_03_wzi,100.0%;KL64_04_wza,100.0%;KL64_05_wzb,100.0%;KL64_06_wzc,100.0%;KL64_08_wcoV,100.0%;KL64_09,100.0%;KL64_10_wzy,100.0%;KL64_15_wbaZ,100.0%;KL64_16_wcaJ,100.0%;KL64_17_gnd,100.0%;KL64_18_manC,100.0%;KL64_19_manB,100.0%;KL64_20_rmlB,100.0%;KL64_21_rmlA,99.66%;KL64_22_rmlD,100.0%;KL64_23_rmlC,100.0%;KL64_24_ugd,99.74% | J23: KL64_07_wzx;KL64_11_wcoU;KL64_12_wcoT;KL64_13_wcsF;KL64_14_wcuK | K23: 0 | M23: 0 / 24 (0%) | O23: 2 | P23: KL40_05_rfaG,98.16%;KL150_19_gmd,98.81% | Q23: 64 | R23: 64
A24: HN34-1 | B24: KL47 | C24: None | D24: ?-* | E24: 0.9113 | F24: 0.99 | G24: n/a | H24: 12 / 19 (63.2%) | I24: KL47_01_galF,99.33%;KL47_02_cpsACP,91.75%;KL47_03_wzi,100.0%;KL47_04_wza,100.0%;KL47_05_wzb,100.0%;KL47_11_wzy,99.27%;KL47_14_gnd,100.0%;KL47_15_rmlB,98.87%;KL47_16_rmlA,99.66%;KL47_17_rmlD,99.66%;KL47_18_rmlC,100.0%;KL47_19_ugd,100.0% | J24: KL47_06_wzc;KL47_07_wcaJ;KL47_08_wcaA;KL47_09;KL47_10_wcqC;KL47_12_wcuT;KL47_13_wzx | K24: 0 | M24: 0 / 19 (0%) | O24: 1 | P24: KL150_19_gmd,98.81% | Q24: 47 | R24: 209
A25: HN34-2 | B25: KL64 | C25: Good | D25: ? | E25: 1 | F25: 0.9991 | G25: n/a | H25: 24 / 24 (100%) | I25: KL64_01_galF,100.0%;KL64_02_cpsACP,99.52%;KL64_03_wzi,100.0%;KL64_04_wza,100.0%;KL64_05_wzb,100.0%;KL64_06_wzc,100.0%;KL64_07_wzx,99.59%;KL64_08_wcoV,100.0%;KL64_09,100.0%;KL64_10_wzy,100.0%;KL64_11_wcoU,99.68%;KL64_12_wcoT,100.0%;KL64_13_wcsF,100.0%;KL64_14_wcuK,100.0%;KL64_15_wbaZ,100.0%;KL64_16_wcaJ,100.0%;KL64_17_gnd,100.0%;KL64_18_manC,100.0%;KL64_19_manB,100.0%;KL64_20_rmlB,100.0%;KL64_21_rmlA,99.66%;KL64_22_rmlD,100.0%;KL64_23_rmlC,100.0%;KL64_24_ugd,99.74% | K25: 0 | M25: 0 / 24 (0%) | O25: 2 | P25: KL40_05_rfaG,98.16%;KL150_19_gmd,98.81% | Q25: 64 | R25: 64
A26: HS11286 | B26: KL103 | C26: Very high | D26: * | E26: 1 | F26: 0.9669 | G26: +1197 bp | H26: 21 / 21 (100%) | I26: KL103_01_galF,98.98%;KL103_02_cpsACP,94.29%;KL103_03_wzi,98.33%;KL103_04_wza,100.0%;KL103_05_wzb,100.0%;KL103_06_wzc,99.44%;KL103_07_wbaP,99.79%;KL103_08_wcaA,99.34%;KL103_09,97.75%;KL103_10,100.0%;KL103_11_wcaN,98.98%;KL103_12_wzy,98.78%;KL103_13_wcpL,98.93%;KL103_14_wcuT,98.92%;KL103_15_wzx,98.96%;KL103_16_gnd,99.79%;KL103_17_rmlB,99.15%;KL103_18_rmlA,97.92%;KL103_19_rmlD,98.99%;KL103_20_rmlC,98.92%;KL103_21_ugd,99.74% | K26: 0 | M26: 0 / 21 (0%) | O26: 2 | P26: KL40_05_rfaG,97.63%;KL150_19_gmd,99.1% | Q26: 927 | R26: 74
A27: JM45 | B27: KL125 | C27: High | D27: -* | E27: 1 | F27: 0.9039 | G27: -11 bp | H27: 17 / 18 (94.4%) | I27: KL125_01_galF,98.66%;KL125_02_cpsACP,96.67%;KL125_03_wzi,98.33%;KL125_04_wza,98.94%;KL125_05_wzb,94.41%;KL125_06_wzc,96.38%;KL125_07_wbaP,93.28%;KL125_08_wcaN,90.62%;KL125_10,87.57%;KL125_11,91.48%;KL125_12_wcaG,92.73%;KL125_13_wcuH,91.91%;KL125_14_wzx,91.53%;KL125_15,86.39%;KL125_16,85.85%;KL125_17_gnd,97.65%;KL125_18_ugd,99.74% | J27: KL125_09_wzy | K27: 0 | M27: 0 / 18 (0%) | O27: 4 | P27: KL50_10,99.43%;KL60_18_manC,98.94%;KL30_19_manB,99.78%;KL150_19_gmd,99.1% | Q27: 930 | R27: 177
A28: JXR113 | B28: KL64 | C28: Good | D28: ?- | E28: 0.9978 | F28: 0.9989 | G28: n/a | H28: 23 / 24 (95.8%) | I28: KL64_01_galF,100.0%;KL64_02_cpsACP,99.52%;KL64_03_wzi,100.0%;KL64_04_wza,100.0%;KL64_05_wzb,100.0%;KL64_06_wzc,100.0%;KL64_07_wzx,99.59%;KL64_08_wcoV,100.0%;KL64_09,100.0%;KL64_10_wzy,100.0%;KL64_12_wcoT,100.0%;KL64_13_wcsF,100.0%;KL64_14_wcuK,99.7%;KL64_15_wbaZ,100.0%;KL64_16_wcaJ,100.0%;KL64_17_gnd,100.0%;KL64_18_manC,100.0%;KL64_19_manB,100.0%;KL64_20_rmlB,100.0%;KL64_21_rmlA,99.66%;KL64_22_rmlD,100.0%;KL64_23_rmlC,100.0%;KL64_24_ugd,99.74% | J28: KL64_11_wcoU | K28: 0 | M28: 0 / 24 (0%) | O28: 2 | P28: KL40_05_rfaG,98.16%;KL150_19_gmd,98.81% | Q28: 64 | R28: 64
A29: JXR114 | B29: KL64 | C29: Good | D29: ?- | E29: 0.9929 | F29: 0.999 | G29: n/a | H29: 23 / 24 (95.8%) | I29: KL64_01_galF,100.0%;KL64_02_cpsACP,99.52%;KL64_03_wzi,100.0%;KL64_04_wza,100.0%;KL64_05_wzb,100.0%;KL64_06_wzc,100.0%;KL64_07_wzx,99.59%;KL64_08_wcoV,100.0%;KL64_09,100.0%;KL64_10_wzy,100.0%;KL64_11_wcoU,99.36%;KL64_13_wcsF,100.0%;KL64_14_wcuK,100.0%;KL64_15_wbaZ,100.0%;KL64_16_wcaJ,100.0%;KL64_17_gnd,100.0%;KL64_18_manC,100.0%;KL64_19_manB,100.0%;KL64_20_rmlB,100.0%;KL64_21_rmlA,99.66%;KL64_22_rmlD,100.0%;KL64_23_rmlC,100.0%;KL64_24_ugd,99.74% | J29: KL64_12_wcoT | K29: 0 | M29: 0 / 24 (0%) | O29: 2 | P29: KL40_05_rfaG,98.16%;KL150_19_gmd,98.81% | Q29: 64 | R29: 64
A30: K11 | B30: KL64 | C30: Very high | E30: 1 | F30: 0.9991 | G30: 0 bp | H30: 24 / 24 (100%) | I30: KL64_01_galF,100.0%;KL64_02_cpsACP,99.52%;KL64_03_wzi,100.0%;KL64_04_wza,100.0%;KL64_05_wzb,100.0%;KL64_06_wzc,100.0%;KL64_07_wzx,99.59%;KL64_08_wcoV,100.0%;KL64_09,100.0%;KL64_10_wzy,100.0%;KL64_11_wcoU,99.68%;KL64_12_wcoT,100.0%;KL64_13_wcsF,100.0%;KL64_14_wcuK,100.0%;KL64_15_wbaZ,100.0%;KL64_16_wcaJ,100.0%;KL64_17_gnd,100.0%;KL64_18_manC,100.0%;KL64_19_manB,100.0%;KL64_20_rmlB,100.0%;KL64_21_rmlA,99.66%;KL64_22_rmlD,100.0%;KL64_23_rmlC,100.0%;KL64_24_ugd,99.74% | K30: 0 | M30: 0 / 24 (0%) | O30: 2 | P30: KL40_05_rfaG,98.16%;KL150_19_gmd,98.81% | Q30: 64 | R30: 64
A31: K15 | B31: KL47 | C31: Very high | E31: 1 | F31: 0.9941 | G31: -13 bp | H31: 19 / 19 (100%) | I31: KL47_01_galF,99.33%;KL47_02_cpsACP,96.67%;KL47_03_wzi,100.0%;KL47_04_wza,100.0%;KL47_05_wzb,100.0%;KL47_06_wzc,100.0%;KL47_07_wcaJ,100.0%;KL47_08_wcaA,99.67%;KL47_09,100.0%;KL47_10_wcqC,100.0%;KL47_11_wzy,100.0%;KL47_12_wcuT,100.0%;KL47_13_wzx,99.79%;KL47_14_gnd,100.0%;KL47_15_rmlB,99.72%;KL47_16_rmlA,99.66%;KL47_17_rmlD,99.66%;KL47_18_rmlC,100.0%;KL47_19_ugd,100.0% | K31: 0 | M31: 0 / 19 (0%) | O31: 5 | P31: KL109_18_rmlB,99.15%;KL150_19_gmd,98.81%;KL52_20_rmlD,99.36%;KL12_20_rmlA,99.31%;KL12_22_rmlC,99.46% | Q31: 47 | R31: 209
A32: K22-1 | B32: KL47 | C32: Good | D32: ?- | E32: 1 | F32: 0.994 | G32: n/a | H32: 17 / 19 (89.5%) | I32: KL47_01_galF,99.33%;KL47_02_cpsACP,96.67%;KL47_03_wzi,100.0%;KL47_04_wza,100.0%;KL47_05_wzb,100.0%;KL47_06_wzc,100.0%;KL47_07_wcaJ,100.0%;KL47_08_wcaA,99.67%;KL47_09,100.0%;KL47_10_wcqC,100.0%;KL47_11_wzy,100.0%;KL47_12_wcuT,100.0%;KL47_13_wzx,99.79%;KL47_14_gnd,100.0%;KL47_16_rmlA,99.66%;KL47_17_rmlD,99.66%;KL47_19_ugd,100.0% | J32: KL47_15_rmlB;KL47_18_rmlC | K32: 0 | M32: 0 / 19 (0%) | O32: 1 | P32: KL150_19_gmd,98.81% | Q32: 47 | R32: 209
A33: K22-2 | B33: KL47 | C33: Good | D33: ?- | E33: 1 | F33: 0.9939 | G33: n/a | H33: 17 / 19 (89.5%) | I33: KL47_01_galF,99.33%;KL47_02_cpsACP,96.67%;KL47_03_wzi,100.0%;KL47_04_wza,100.0%;KL47_05_wzb,100.0%;KL47_06_wzc,100.0%;KL47_07_wcaJ,100.0%;KL47_08_wcaA,99.67%;KL47_09,100.0%;KL47_10_wcqC,100.0%;KL47_11_wzy,100.0%;KL47_12_wcuT,100.0%;KL47_13_wzx,99.79%;KL47_14_gnd,100.0%;KL47_16_rmlA,99.66%;KL47_17_rmlD,99.66%;KL47_19_ugd,100.0% | J33: KL47_15_rmlB;KL47_18_rmlC | K33: 0 | M33: 0 / 19 (0%) | O33: 1 | P33: KL150_19_gmd,98.81% | Q33: 47 | R33: 209
A34: K28-1 | B34: KL47 | C34: Good | D34: ?- | E34: 1 | F34: 0.9938 | G34: n/a | H34: 17 / 19 (89.5%) | I34: KL47_01_galF,99.33%;KL47_02_cpsACP,96.67%;KL47_03_wzi,100.0%;KL47_04_wza,100.0%;KL47_05_wzb,100.0%;KL47_06_wzc,100.0%;KL47_07_wcaJ,100.0%;KL47_08_wcaA,99.67%;KL47_09,100.0%;KL47_10_wcqC,100.0%;KL47_11_wzy,100.0%;KL47_12_wcuT,100.0%;KL47_13_wzx,99.79%;KL47_14_gnd,100.0%;KL47_16_rmlA,99.31%;KL47_17_rmlD,99.66%;KL47_19_ugd,100.0% | J34: KL47_15_rmlB;KL47_18_rmlC | K34: 0 | M34: 0 / 19 (0%) | O34: 1 | P34: KL150_19_gmd,98.81% | Q34: 47 | R34: 209
A35: K45 | B35: KL47 | C35: Very high | E35: 1 | F35: 0.9939 | G35: -13 bp | H35: 19 / 19 (100%) | I35: KL47_01_galF,99.33%;KL47_02_cpsACP,96.67%;KL47_03_wzi,100.0%;KL47_04_wza,100.0%;KL47_05_wzb,100.0%;KL47_06_wzc,100.0%;KL47_07_wcaJ,100.0%;KL47_08_wcaA,99.67%;KL47_09,100.0%;KL47_10_wcqC,100.0%;KL47_11_wzy,100.0%;KL47_12_wcuT,100.0%;KL47_13_wzx,99.79%;KL47_14_gnd,100.0%;KL47_15_rmlB,99.44%;KL47_16_rmlA,99.31%;KL47_17_rmlD,99.66%;KL47_18_rmlC,100.0%;KL47_19_ugd,100.0% | K35: 0 | M35: 0 / 19 (0%) | O35: 5 | P35: KL127_15_rmlB,99.44%;KL150_19_gmd,98.81%;KL52_20_rmlD,99.36%;KL17_17_rmlA,99.31%;KL12_22_rmlC,99.46% | Q35: 47 | R35: 209
A36: K47 | B36: KL47 | C36: Very high | E36: 1 | F36: 0.9941 | G36: -13 bp | H36: 19 / 19 (100%) | I36: KL47_01_galF,99.33%;KL47_02_cpsACP,96.67%;KL47_03_wzi,100.0%;KL47_04_wza,100.0%;KL47_05_wzb,100.0%;KL47_06_wzc,100.0%;KL47_07_wcaJ,100.0%;KL47_08_wcaA,99.67%;KL47_09,100.0%;KL47_10_wcqC,100.0%;KL47_11_wzy,100.0%;KL47_12_wcuT,100.0%;KL47_13_wzx,99.79%;KL47_14_gnd,100.0%;KL47_15_rmlB,99.72%;KL47_16_rmlA,99.31%;KL47_17_rmlD,99.66%;KL47_18_rmlC,100.0%;KL47_19_ugd,100.0% | K36: 0 | M36: 0 / 19 (0%) | O36: 5 | P36: KL109_18_rmlB,99.15%;KL150_19_gmd,98.81%;KL52_20_rmlD,99.36%;KL17_17_rmlA,99.31%;KL12_22_rmlC,99.46% | Q36: 47 | R36: 209
A37: K48 | B37: KL47 | C37: Very high | E37: 1 | F37: 0.9942 | G37: -13 bp | H37: 19 / 19 (100%) | I37: KL47_01_galF,99.33%;KL47_02_cpsACP,96.67%;KL47_03_wzi,100.0%;KL47_04_wza,100.0%;KL47_05_wzb,100.0%;KL47_06_wzc,100.0%;KL47_07_wcaJ,100.0%;KL47_08_wcaA,99.67%;KL47_09,100.0%;KL47_10_wcqC,100.0%;KL47_11_wzy,100.0%;KL47_12_wcuT,100.0%;KL47_13_wzx,99.79%;KL47_14_gnd,100.0%;KL47_15_rmlB,99.72%;KL47_16_rmlA,99.66%;KL47_17_rmlD,99.66%;KL47_18_rmlC,100.0%;KL47_19_ugd,100.0% | K37: 0 | M37: 0 / 19 (0%) | O37: 5 | P37: KL109_18_rmlB,99.15%;KL150_19_gmd,98.81%;KL52_20_rmlD,99.36%;KL12_20_rmlA,99.31%;KL12_22_rmlC,99.46% | Q37: 47 | R37: 209
A38: K49 | B38: KL47 | C38: Very high | E38: 1 | F38: 0.994 | G38: -13 bp | H38: 19 / 19 (100%) | I38: KL47_01_galF,99.33%;KL47_02_cpsACP,96.67%;KL47_03_wzi,100.0%;KL47_04_wza,100.0%;KL47_05_wzb,100.0%;KL47_06_wzc,100.0%;KL47_07_wcaJ,100.0%;KL47_08_wcaA,99.67%;KL47_09,100.0%;KL47_10_wcqC,100.0%;KL47_11_wzy,100.0%;KL47_12_wcuT,100.0%;KL47_13_wzx,99.79%;KL47_14_gnd,100.0%;KL47_15_rmlB,99.44%;KL47_16_rmlA,99.66%;KL47_17_rmlD,99.66%;KL47_18_rmlC,100.0%;KL47_19_ugd,100.0% | K38: 0 | M38: 0 / 19 (0%) | O38: 5 | P38: KL18_17_rmlB,99.44%;KL150_19_gmd,98.81%;KL52_20_rmlD,99.36%;KL12_20_rmlA,99.31%;KL12_22_rmlC,99.46% | Q38: 47 | R38: 209
A39: K50 | B39: KL47 | C39: Very high | E39: 1 | F39: 0.994 | G39: -13 bp | H39: 19 / 19 (100%) | I39: KL47_01_galF,99.33%;KL47_02_cpsACP,96.67%;KL47_03_wzi,100.0%;KL47_04_wza,100.0%;KL47_05_wzb,100.0%;KL47_06_wzc,100.0%;KL47_07_wcaJ,100.0%;KL47_08_wcaA,99.67%;KL47_09,100.0%;KL47_10_wcqC,100.0%;KL47_11_wzy,100.0%;KL47_12_wcuT,100.0%;KL47_13_wzx,99.79%;KL47_14_gnd,100.0%;KL47_15_rmlB,99.44%;KL47_16_rmlA,99.66%;KL47_17_rmlD,99.66%;KL47_18_rmlC,100.0%;KL47_19_ugd,100.0% | K39: 0 | M39: 0 / 19 (0%) | O39: 5 | P39: KL18_17_rmlB,99.44%;KL150_19_gmd,98.81%;KL52_20_rmlD,99.36%;KL12_20_rmlA,99.31%;KL12_22_rmlC,99.46% | Q39: 47 | R39: 209
A40: K6 | B40: KL64 | C40: Very high | E40: 1 | F40: 0.9991 | G40: 0 bp | H40: 24 / 24 (100%) | I40: KL64_01_galF,100.0%;KL64_02_cpsACP,99.52%;KL64_03_wzi,100.0%;KL64_04_wza,100.0%;KL64_05_wzb,100.0%;KL64_06_wzc,100.0%;KL64_07_wzx,99.59%;KL64_08_wcoV,100.0%;KL64_09,100.0%;KL64_10_wzy,100.0%;KL64_11_wcoU,99.68%;KL64_12_wcoT,100.0%;KL64_13_wcsF,100.0%;KL64_14_wcuK,100.0%;KL64_15_wbaZ,100.0%;KL64_16_wcaJ,100.0%;KL64_17_gnd,100.0%;KL64_18_manC,100.0%;KL64_19_manB,100.0%;KL64_20_rmlB,100.0%;KL64_21_rmlA,99.66%;KL64_22_rmlD,100.0%;KL64_23_rmlC,100.0%;KL64_24_ugd,99.74% | K40: 0 | M40: 0 / 24 (0%) | O40: 2 | P40: KL40_05_rfaG,98.16%;KL150_19_gmd,98.81% | Q40: 64 | R40: 64
A41: kp10 | B41: KL64 | C41: Perfect | E41: 1 | F41: 1 | G41: 0 bp | H41: 24 / 24 (100%) | I41: KL64_01_galF,99.67%;KL64_02_cpsACP,100.0%;KL64_03_wzi,100.0%;KL64_04_wza,100.0%;KL64_05_wzb,100.0%;KL64_06_wzc,100.0%;KL64_07_wzx,100.0%;KL64_08_wcoV,100.0%;KL64_09,100.0%;KL64_10_wzy,100.0%;KL64_11_wcoU,100.0%;KL64_12_wcoT,100.0%;KL64_13_wcsF,100.0%;KL64_14_wcuK,100.0%;KL64_15_wbaZ,100.0%;KL64_16_wcaJ,100.0%;KL64_17_gnd,100.0%;KL64_18_manC,100.0%;KL64_19_manB,100.0%;KL64_20_rmlB,100.0%;KL64_21_rmlA,100.0%;KL64_22_rmlD,100.0%;KL64_23_rmlC,100.0%;KL64_24_ugd,100.0% | K41: 0 | M41: 0 / 24 (0%) | O41: 2 | P41: KL40_05_rfaG,98.16%;KL150_19_gmd,98.81% | Q41: 64 | R41: 64
A42: KP41 | B42: KL47 | C42: Good | D42: ? | E42: 1 | F42: 0.9938 | G42: n/a | H42: 19 / 19 (100%) | I42: KL47_01_galF,99.33%;KL47_02_cpsACP,96.67%;KL47_03_wzi,100.0%;KL47_04_wza,100.0%;KL47_05_wzb,100.0%;KL47_06_wzc,100.0%;KL47_07_wcaJ,100.0%;KL47_08_wcaA,99.67%;KL47_09,100.0%;KL47_10_wcqC,100.0%;KL47_11_wzy,100.0%;KL47_12_wcuT,100.0%;KL47_13_wzx,99.79%;KL47_14_gnd,100.0%;KL47_15_rmlB,99.72%;KL47_16_rmlA,99.31%;KL47_17_rmlD,99.66%;KL47_18_rmlC,98.92%;KL47_19_ugd,100.0% | K42: 0 | M42: 0 / 19 (0%) | O42: 1 | P42: KL150_19_gmd,98.81% | Q42: 47 | R42: 209
A43: KP6 | B43: KL47 | C43: Good | D43: ?- | E43: 1 | F43: 0.9942 | G43: n/a | H43: 17 / 19 (89.5%) | I43: KL47_01_galF,99.33%;KL47_02_cpsACP,96.67%;KL47_03_wzi,100.0%;KL47_04_wza,100.0%;KL47_05_wzb,100.0%;KL47_06_wzc,100.0%;KL47_07_wcaJ,100.0%;KL47_08_wcaA,99.67%;KL47_09,100.0%;KL47_10_wcqC,100.0%;KL47_11_wzy,100.0%;KL47_12_wcuT,100.0%;KL47_13_wzx,99.79%;KL47_14_gnd,100.0%;KL47_16_rmlA,99.31%;KL47_17_rmlD,99.66%;KL47_19_ugd,100.0% | J43: KL47_15_rmlB;KL47_18_rmlC | K43: 0 | M43: 0 / 19 (0%) | O43: 1 | P43: KL150_19_gmd,98.81% | Q43: 47 | R43: 209
A44: SH-16 | B44: KL47 | C44: Good | D44: ?- | E44: 0.9999 | F44: 0.994 | G44: n/a | H44: 16 / 19 (84.2%) | I44: KL47_01_galF,99.33%;KL47_02_cpsACP,96.67%;KL47_03_wzi,100.0%;KL47_04_wza,100.0%;KL47_05_wzb,100.0%;KL47_06_wzc,100.0%;KL47_07_wcaJ,100.0%;KL47_08_wcaA,99.66%;KL47_10_wcqC,100.0%;KL47_11_wzy,99.76%;KL47_12_wcuT,100.0%;KL47_13_wzx,99.79%;KL47_14_gnd,100.0%;KL47_16_rmlA,99.66%;KL47_17_rmlD,99.66%;KL47_19_ugd,100.0% | J44: KL47_09;KL47_15_rmlB;KL47_18_rmlC | K44: 0 | M44: 0 / 19 (0%) | O44: 1 | P44: KL150_19_gmd,98.81% | Q44: 47 | R44: 209
A45: SH-1 | B45: KL47 | C45: Good | D45: ?- | E45: 1 | F45: 0.9939 | G45: n/a | H45: 17 / 19 (89.5%) | I45: KL47_01_galF,99.33%;KL47_02_cpsACP,96.67%;KL47_03_wzi,100.0%;KL47_04_wza,100.0%;KL47_05_wzb,100.0%;KL47_06_wzc,100.0%;KL47_07_wcaJ,100.0%;KL47_08_wcaA,99.67%;KL47_09,100.0%;KL47_10_wcqC,100.0%;KL47_11_wzy,99.76%;KL47_12_wcuT,100.0%;KL47_13_wzx,99.79%;KL47_14_gnd,100.0%;KL47_16_rmlA,99.66%;KL47_17_rmlD,99.66%;KL47_19_ugd,100.0% | J45: KL47_15_rmlB;KL47_18_rmlC | K45: 0 | M45: 0 / 19 (0%) | O45: 1 | P45: KL150_19_gmd,98.81% | Q45: 47 | R45: 209
A46: SH-2 | B46: KL64 | C46: Very high | E46: 1 | F46: 0.9991 | G46: 0 bp | H46: 24 / 24 (100%) | I46: KL64_01_galF,100.0%;KL64_02_cpsACP,99.52%;KL64_03_wzi,100.0%;KL64_04_wza,100.0%;KL64_05_wzb,100.0%;KL64_06_wzc,100.0%;KL64_07_wzx,99.59%;KL64_08_wcoV,100.0%;KL64_09,100.0%;KL64_10_wzy,100.0%;KL64_11_wcoU,99.68%;KL64_12_wcoT,100.0%;KL64_13_wcsF,100.0%;KL64_14_wcuK,100.0%;KL64_15_wbaZ,100.0%;KL64_16_wcaJ,100.0%;KL64_17_gnd,100.0%;KL64_18_manC,100.0%;KL64_19_manB,100.0%;KL64_20_rmlB,100.0%;KL64_21_rmlA,99.66%;KL64_22_rmlD,100.0%;KL64_23_rmlC,100.0%;KL64_24_ugd,99.74% | K46: 0 | M46: 0 / 24 (0%) | O46: 2 | P46: KL40_05_rfaG,98.16%;KL150_19_gmd,98.81% | Q46: 64 | R46: 64
A47: SH-9 | B47: KL47 | C47: Good | D47: ?- | E47: 1 | F47: 0.994 | G47: n/a | H47: 17 / 19 (89.5%) | I47: KL47_01_galF,99.33%;KL47_02_cpsACP,96.67%;KL47_03_wzi,100.0%;KL47_04_wza,100.0%;KL47_05_wzb,100.0%;KL47_06_wzc,100.0%;KL47_07_wcaJ,100.0%;KL47_08_wcaA,99.67%;KL47_09,100.0%;KL47_10_wcqC,100.0%;KL47_11_wzy,99.76%;KL47_12_wcuT,100.0%;KL47_13_wzx,99.79%;KL47_14_gnd,100.0%;KL47_16_rmlA,99.66%;KL47_17_rmlD,99.66%;KL47_19_ugd,100.0% | J47: KL47_15_rmlB;KL47_18_rmlC | K47: 0 | M47: 0 / 19 (0%) | O47: 1 | P47: KL150_19_gmd,98.81% | Q47: 47 | R47: 209
A48: SWU01 | B48: KL47 | C48: Very high | E48: 1 | F48: 0.994 | G48: -13 bp | H48: 19 / 19 (100%) | I48: KL47_01_galF,99.33%;KL47_02_cpsACP,96.67%;KL47_03_wzi,100.0%;KL47_04_wza,100.0%;KL47_05_wzb,100.0%;KL47_06_wzc,99.72%;KL47_07_wcaJ,100.0%;KL47_08_wcaA,99.67%;KL47_09,100.0%;KL47_10_wcqC,100.0%;KL47_11_wzy,100.0%;KL47_12_wcuT,100.0%;KL47_13_wzx,99.79%;KL47_14_gnd,100.0%;KL47_15_rmlB,99.72%;KL47_16_rmlA,99.31%;KL47_17_rmlD,99.66%;KL47_18_rmlC,100.0%;KL47_19_ugd,100.0% | K48: 0 | M48: 0 / 19 (0%) | O48: 5 | P48: KL18_17_rmlB,99.44%;KL150_19_gmd,98.81%;KL52_20_rmlD,99.36%;KL12_20_rmlA,99.31%;KL12_22_rmlC,99.46% | Q48: 47 | R48: 209
A49: TR187 | B49: KL47 | C49: Good | D49: ?- | E49: 0.9982 | F49: 0.9741 | G49: n/a | H49: 16 / 19 (84.2%) | I49: KL47_01_galF,99.33%;KL47_02_cpsACP,96.67%;KL47_03_wzi,100.0%;KL47_04_wza,100.0%;KL47_05_wzb,100.0%;KL47_06_wzc,100.0%;KL47_07_wcaJ,100.0%;KL47_08_wcaA,99.67%;KL47_09,100.0%;KL47_10_wcqC,100.0%;KL47_11_wzy,100.0%;KL47_12_wcuT,100.0%;KL47_13_wzx,99.79%;KL47_14_gnd,100.0%;KL47_16_rmlA,99.31%;KL47_19_ugd,100.0% | J49: KL47_15_rmlB;KL47_17_rmlD;KL47_18_rmlC | K49: 0 | M49: 0 / 19 (0%) | O49: 1 | P49: KL150_19_gmd,98.81% | Q49: 47 | R49: 209
A50: TR191 | B50: KL47 | C50: Good | D50: ?- | E50: 1 | F50: 0.9731 | G50: n/a | H50: 18 / 19 (94.7%) | I50: KL47_01_galF,99.33%;KL47_02_cpsACP,96.67%;KL47_03_wzi,100.0%;KL47_04_wza,100.0%;KL47_05_wzb,100.0%;KL47_06_wzc,100.0%;KL47_07_wcaJ,100.0%;KL47_08_wcaA,99.67%;KL47_09,100.0%;KL47_10_wcqC,100.0%;KL47_11_wzy,100.0%;KL47_12_wcuT,100.0%;KL47_13_wzx,99.79%;KL47_14_gnd,100.0%;KL47_16_rmlA,99.65%;KL47_17_rmlD,99.66%;KL47_18_rmlC,98.92%;KL47_19_ugd,100.0% | J50: KL47_15_rmlB | K50: 0 | M50: 0 / 19 (0%) | O50: 1 | P50: KL150_19_gmd,98.81% | Q50: 47 | R50: 209
A51: TR198 | B51: KL47 | C51: Good | D51: ?- | E51: 0.9808 | F51: 0.9739 | G51: n/a | H51: 16 / 19 (84.2%) | I51: KL47_01_galF,99.33%;KL47_02_cpsACP,96.67%;KL47_03_wzi,100.0%;KL47_04_wza,100.0%;KL47_05_wzb,100.0%;KL47_06_wzc,100.0%;KL47_07_wcaJ,100.0%;KL47_08_wcaA,99.67%;KL47_09,100.0%;KL47_10_wcqC,100.0%;KL47_11_wzy,100.0%;KL47_12_wcuT,100.0%;KL47_13_wzx,99.79%;KL47_14_gnd,100.0%;KL47_15_rmlB,99.72%;KL47_19_ugd,100.0% | J51: KL47_16_rmlA;KL47_17_rmlD;KL47_18_rmlC | K51: 0 | M51: 0 / 19 (0%) | O51: 2 | P51: KL150_19_gmd,98.81%;KL18_17_rmlB,99.69% | Q51: 47 | R51: 209
A52: TR200 | B52: KL47 | C52: Good | D52: ? | E52: 1 | F52: 0.975 | G52: n/a | H52: 19 / 19 (100%) | I52: KL47_01_galF,99.33%;KL47_02_cpsACP,96.67%;KL47_03_wzi,100.0%;KL47_04_wza,100.0%;KL47_05_wzb,100.0%;KL47_06_wzc,100.0%;KL47_07_wcaJ,100.0%;KL47_08_wcaA,99.67%;KL47_09,100.0%;KL47_10_wcqC,100.0%;KL47_11_wzy,100.0%;KL47_12_wcuT,100.0%;KL47_13_wzx,99.79%;KL47_14_gnd,100.0%;KL47_15_rmlB,99.7%;KL47_16_rmlA,99.65%;KL47_17_rmlD,99.66%;KL47_18_rmlC,98.92%;KL47_19_ugd,100.0% | K52: 0 | M52: 0 / 19 (0%) | O52: 3 | P52: KL150_19_gmd,98.81%;KL18_17_rmlB,99.4%;KL12_20_rmlA,99.3% | Q52: 47 | R52: 209
A53: TR262 | B53: KL47 | C53: Good | D53: ?- | E53: 1 | F53: 0.9722 | G53: n/a | H53: 16 / 19 (84.2%) | I53: KL47_01_galF,99.33%;KL47_02_cpsACP,96.67%;KL47_03_wzi,100.0%;KL47_04_wza,100.0%;KL47_05_wzb,100.0%;KL47_06_wzc,100.0%;KL47_07_wcaJ,100.0%;KL47_08_wcaA,99.67%;KL47_09,100.0%;KL47_10_wcqC,100.0%;KL47_11_wzy,100.0%;KL47_12_wcuT,100.0%;KL47_13_wzx,99.79%;KL47_14_gnd,100.0%;KL47_16_rmlA,99.66%;KL47_19_ugd,100.0% | J53: KL47_15_rmlB;KL47_17_rmlD;KL47_18_rmlC | K53: 0 | M53: 0 / 19 (0%) | O53: 2 | P53: KL150_19_gmd,98.81%;KL12_20_rmlA,99.31% | Q53: 47 | R53: 209
A54: TRqt-37 | B54: KL47 | C54: Good | D54: ?- | E54: 1 | F54: 0.975 | G54: n/a | H54: 17 / 19 (89.5%) | I54: KL47_01_galF,99.33%;KL47_02_cpsACP,96.67%;KL47_03_wzi,100.0%;KL47_04_wza,100.0%;KL47_05_wzb,100.0%;KL47_06_wzc,100.0%;KL47_07_wcaJ,100.0%;KL47_08_wcaA,99.67%;KL47_09,100.0%;KL47_10_wcqC,100.0%;KL47_11_wzy,100.0%;KL47_12_wcuT,100.0%;KL47_13_wzx,99.79%;KL47_14_gnd,100.0%;KL47_15_rmlB,99.4%;KL47_16_rmlA,99.65%;KL47_19_ugd,100.0% | J54: KL47_17_rmlD;KL47_18_rmlC | K54: 0 | M54: 0 / 19 (0%) | O54: 2 | P54: KL150_19_gmd,98.81%;KL18_17_rmlB,99.7% | Q54: 47 | R54: 209
A55: TRqt-41 | B55: KL47 | C55: Good | D55: ?- | E55: 1 | F55: 0.9732 | G55: n/a | H55: 18 / 19 (94.7%) | I55: KL47_01_galF,99.33%;KL47_02_cpsACP,96.67%;KL47_03_wzi,100.0%;KL47_04_wza,100.0%;KL47_05_wzb,100.0%;KL47_06_wzc,100.0%;KL47_07_wcaJ,100.0%;KL47_08_wcaA,99.67%;KL47_09,100.0%;KL47_10_wcqC,100.0%;KL47_11_wzy,100.0%;KL47_12_wcuT,100.0%;KL47_13_wzx,99.79%;KL47_14_gnd,100.0%;KL47_15_rmlB,99.7%;KL47_16_rmlA,99.65%;KL47_18_rmlC,98.92%;KL47_19_ugd,100.0% | J55: KL47_17_rmlD | K55: 0 | M55: 0 / 19 (0%) | O55: 2 | P55: KL150_19_gmd,98.81%;KL18_17_rmlB,99.7% | Q55: 47 | R55: 209
A56: TRqt-49 | B56: KL47 | C56: Good | D56: ?- | E56: 0.9805 | F56: 0.9746 | G56: n/a | H56: 17 / 19 (89.5%) | I56: KL47_01_galF,99.33%;KL47_02_cpsACP,96.67%;KL47_03_wzi,100.0%;KL47_04_wza,100.0%;KL47_05_wzb,100.0%;KL47_06_wzc,100.0%;KL47_07_wcaJ,100.0%;KL47_08_wcaA,99.67%;KL47_09,99.83%;KL47_10_wcqC,100.0%;KL47_11_wzy,100.0%;KL47_12_wcuT,100.0%;KL47_13_wzx,99.79%;KL47_14_gnd,100.0%;KL47_15_rmlB,99.69%;KL47_16_rmlA,99.65%;KL47_19_ugd,100.0% | J56: KL47_17_rmlD;KL47_18_rmlC | K56: 0 | M56: 0 / 19 (0%) | O56: 2 | P56: KL150_19_gmd,98.81%;KL18_17_rmlB,99.69% | Q56: 47 | R56: 209
A57: WCHKP649 | B57: KL64 | C57: Very high | E57: 1 | F57: 0.9991 | G57: 0 bp | H57: 24 / 24 (100%) | I57: KL64_01_galF,100.0%;KL64_02_cpsACP,99.52%;KL64_03_wzi,100.0%;KL64_04_wza,100.0%;KL64_05_wzb,100.0%;KL64_06_wzc,100.0%;KL64_07_wzx,99.59%;KL64_08_wcoV,100.0%;KL64_09,100.0%;KL64_10_wzy,100.0%;KL64_11_wcoU,99.68%;KL64_12_wcoT,100.0%;KL64_13_wcsF,100.0%;KL64_14_wcuK,100.0%;KL64_15_wbaZ,100.0%;KL64_16_wcaJ,100.0%;KL64_17_gnd,100.0%;KL64_18_manC,100.0%;KL64_19_manB,100.0%;KL64_20_rmlB,100.0%;KL64_21_rmlA,99.66%;KL64_22_rmlD,100.0%;KL64_23_rmlC,100.0%;KL64_24_ugd,99.74% | K57: 0 | M57: 0 / 24 (0%) | O57: 2 | P57: KL40_05_rfaG,98.16%;KL150_19_gmd,98.81% | Q57: 64 | R57: 64
A58: XJ126 | B58: KL47 | C58: Good | D58: ?- | E58: 1 | F58: 0.994 | G58: n/a | H58: 17 / 19 (89.5%) | I58: KL47_01_galF,99.33%;KL47_02_cpsACP,96.67%;KL47_03_wzi,100.0%;KL47_04_wza,100.0%;KL47_05_wzb,100.0%;KL47_06_wzc,100.0%;KL47_07_wcaJ,100.0%;KL47_08_wcaA,99.67%;KL47_09,100.0%;KL47_10_wcqC,100.0%;KL47_11_wzy,100.0%;KL47_12_wcuT,100.0%;KL47_13_wzx,99.79%;KL47_14_gnd,100.0%;KL47_16_rmlA,99.66%;KL47_17_rmlD,99.66%;KL47_19_ugd,100.0% | J58: KL47_15_rmlB;KL47_18_rmlC | K58: 0 | M58: 0 / 19 (0%) | O58: 1 | P58: KL150_19_gmd,98.81% | Q58: 47 | R58: 209
A59: XL-1 | B59: KL105 | C59: Very high | E59: 1 | F59: 0.9999 | G59: 0 bp | H59: 22 / 22 (100%) | I59: KL105_01_galF,100.0%;KL105_02_cpsACP,100.0%;KL105_03_wzi,100.0%;KL105_04_wza,100.0%;KL105_05_wzb,100.0%;KL105_06_wzc,100.0%;KL105_07_wbaP,100.0%;KL105_08,100.0%;KL105_09,100.0%;KL105_10_wcaN,100.0%;KL105_11,100.0%;KL105_12,100.0%;KL105_13,100.0%;KL105_14_wzx,100.0%;KL105_15,100.0%;KL105_16,100.0%;KL105_17_gnd,100.0%;KL105_18_rmlB,100.0%;KL105_19,100.0%;KL105_20,100.0%;KL105_21,99.46%;KL105_22_ugd,100.0% | K59: 0 | M59: 0 / 22 (0%) | O59: 4 | P59: KL40_03_wcpO,98.79%;KL40_04,99.5%;KL40_05_rfaG,99.48%;KL150_19_gmd,99.1% | Q59: - | R59: 75
A60: KKBO-4 | B60: KL107 | C60: Very high | E60: 0.9999 | F60: 0.9999 | G60: 0 bp | H60: 16 / 16 (100%) | I60: KL107_01_galF,100.0%;KL107_02_cpsACP,100.0%;KL107_03_wzi,100.0%;KL107_04_wza,100.0%;KL107_05_wzb,100.0%;KL107_06_wzc,99.86%;KL107_07_wbaP,100.0%;KL107_08,100.0%;KL107_09,100.0%;KL107_10,100.0%;KL107_11_gnd,100.0%;KL107_12,100.0%;KL107_13,100.0%;KL107_14,100.0%;KL107_15,100.0%;KL107_16_ugd,100.0% | K60: 0 | M60: 0 / 16 (0%) | O60: 5 | P60: KL40_03_wcpO,99.19%;KL40_04,99.5%;KL40_05_rfaG,99.74%;KL150_19_gmd,99.1%;KL150_19_gmd,84.92% | Q60: 916 | R60: 154
A61: ATCCBAA-2146 | B61: KL74 | C61: Low | D61: ?+ | E61: 1 | F61: 0.9888 | G61: n/a | H61: 19 / 19 (100%) | I61: KL74_01_galF,98.67%;KL74_02_cpsACP,99.05%;KL74_03_wzi,98.75%;KL74_04_wza,98.68%;KL74_05_wzb,100.0%;KL74_06_wzc,99.45%;KL74_07_wbaP,99.37%;KL74_08_wcuD,99.49%;KL74_09_wcuE,99.09%;KL74_10_wbaZ,98.98%;KL74_11_wzy,99.51%;KL74_12,99.46%;KL74_13_wzx,99.8%;KL74_14_wcuL,99.69%;KL74_15_wcoW,99.39%;KL74_16_gnd,99.57%;KL74_17_manC,99.58%;KL74_18_manB,100.0%;KL74_19_ugd,100.0% | K61: 2 | L61: KL74_17_manC,99.58%;KL74_18_manB,98.46% | M61: 0 / 19 (0%) | O61: 2 | P61: KL50_10,92.83%;KL150_19_gmd,84.78% | Q61: 911 | R61: 174

Sheet S3 Plasmid replicon
B1: AH-29 | C1: AH-9 | D1: AH10 | E1: AH11 | F1: AH12 | G1: BJ-A1040 | H1: BJK20 | I1: BJK22 | J1: BJK23 | K1: BJK6 | L1: BJK7 | M1: BJK8 | N1: FJ10 | O1: FJ11 | P1: FJ8 | Q1: GD-KPC30 | R1: GD108 | S1: GD4 | T1: HA-74 | U1: HA-99 | V1: HA2-17 | W1: HN-26 | X1: HN34-1 | Y1: HN34-2 | Z1: HS11286 | AA1: JM45 | AB1: JXR113 | AC1: JXR114 | AD1: K11 | AE1: K15 | AF1: K22-1 | AG1: K22-2 | AH1: K28-1 | AI1: K45 | AJ1: K47 | AK1: K48 | AL1: K49 | AM1: K50 | AN1: K6 | AO1: KP41 | AP1: KP6 | AQ1: SH-1 | AR1: SH-16 | AS1: SH-2 | AT1: SH-9 | AU1: SWU01 | AV1: TR187 | AW1: TR191 | AX1: TR198 | AY1: TR200 | AZ1: TR262 | BA1: TRqt-37 | BB1: TRqt-41 | BC1: TRqt-49 | BD1: WCHKP649 | BE1: XJ126 | BF1: XL-1 | BG1: kp10
A2: Col(KPHS6)_1__NC_016841 | B2: 0 | C2: 0 | D2: 0 | E2: 0 | F2: 0 | G2: 0 | H2: 0 | I2: 0 | J2: 0 | K2: 0 | L2: 0 | M2: 0 | N2: 0 | O2: 0 | P2: 0 | Q2: 0 | R2: 0 | S2: 0 | T2: 0 | U2: 0 | V2: 0 | W2: 0 | X2: 0 | Y2: 0 | Z2: 100 | AA2: 0 | AB2: 0 | AC2: 0 | AD2: 0 | AE2: 0 | AF2: 0 | AG2: 0 | AH2: 0 | AI2: 0 | AJ2: 0 | AK2: 0 | AL2: 0 | AM2: 0 | AN2: 0 | AO2: 0 | AP2: 0 | AQ2: 0 | AR2: 0 | AS2: 0 | AT2: 0 | AU2: 0 | AV2: 0 | AW2: 0 | AX2: 0 | AY2: 0 | AZ2: 0 | BA2: 0 | BB2: 0 | BC2: 0 | BD2: 0 | BE2: 0 | BF2: 0 | BG2: 0
A3: Col(MG828)_1__NC_008486 | B3: 0 | C3: 0 | D3: 0 | E3: 0 | F3: 0 | G3: 0 | H3: 0 | I3: 0 | J3: 0 | K3: 0 | L3: 0 | M3: 0 | N3: 0 | O3: 0 | P3: 0 | Q3: 0 | R3: 0 | S3: 0 | T3: 0 | U3: 0 | V3: 0 | W3: 0 | X3: 0 | Y3: 0 | Z3: 0 | AA3: 0 | AB3: 0 | AC3: 0 | AD3: 0 | AE3: 0 | AF3: 0 | AG3: 0 | AH3: 0 | AI3: 0 | AJ3: 0 | AK3: 0 | AL3: 0 | AM3: 0 | AN3: 0 | AO3: 0 | AP3: 0 | AQ3: 0 | AR3: 0 | AS3: 0 | AT3: 0 | AU3: 0 | AV3: 0 | AW3: 0 | AX3: 0 | AY3: 0 | AZ3: 0 | BA3: 0 | BB3: 0 | BC3: 86.47 | BD3: 0 | BE3: 0 | BF3: 0 | BG3: 0
A4: Col156_1__NC_009781 | B4: 0 | C4: 0 | D4: 0 | E4: 0 | F4: 0 | G4: 0 | H4: 0 | I4: 0 | J4: 0 | K4: 0 | L4: 0 | M4: 0 | N4: 0 | O4: 0 | P4: 0 | Q4: 0 | R4: 0 | S4: 0 | T4: 0 | U4: 0 | V4: 0 | W4: 0 | X4: 0 | Y4: 0 | Z4: 94.81 | AA4: 0 | AB4: 0 | AC4: 0 | AD4: 0 | AE4: 0 | AF4: 0 | AG4: 0 | AH4: 0 | AI4: 0 | AJ4: 0 | AK4: 0 | AL4: 0 | AM4: 0 | AN4: 0 | AO4: 0 | AP4: 0 | AQ4: 0 | AR4: 0 | AS4: 0 | AT4: 0 | AU4: 0 | AV4: 0 | AW4: 0 | AX4: 0 | AY4: 0 | AZ4: 0 | BA4: 0 | BB4: 0 | BC4: 0 | BD4: 0 | BE4: 0 | BF4: 0 | BG4: 0
A5: Col8282_1__DQ995353 | B5: 0 | C5: 0 | D5: 0 | E5: 0 | F5: 0 | G5: 0 | H5: 0 | I5: 0 | J5: 0 | K5: 0 | L5: 0 | M5: 88.61 | N5: 0 | O5: 0 | P5: 0 | Q5: 0 | R5: 0 | S5: 0 | T5: 0 | U5: 0 | V5: 0 | W5: 0 | X5: 0 | Y5: 0 | Z5: 0 | AA5: 0 | AB5: 0 | AC5: 0 | AD5: 0 | AE5: 0 | AF5: 0 | AG5: 0 | AH5: 0 | AI5: 0 | AJ5: 0 | AK5: 0 | AL5: 0 | AM5: 0 | AN5: 0 | AO5: 0 | AP5: 0 | AQ5: 0 | AR5: 0 | AS5: 0 | AT5: 0 | AU5: 0 | AV5: 0 | AW5: 0 | AX5: 0 | AY5: 0 | AZ5: 0 | BA5: 0 | BB5: 0 | BC5: 0 | BD5: 0 | BE5: 0 | BF5: 0 | BG5: 0
A6: ColRNAI_1__DQ298019 | B6: 90.15 | C6: 90.15 | D6: 90.15 | E6: 90.15 | F6: 90.15 | G6: 90.15 | H6: 90.15 | I6: 90.15 | J6: 90.15 | K6: 90.15 | L6: 90.15 | M6: 90.15 | N6: 90.15 | O6: 90.15 | P6: 90.15 | Q6: 90.15 | R6: 90.15 | S6: 0 | T6: 90.15 | U6: 90.15 | V6: 90.15 | W6: 90.15 | X6: 90.15 | Y6: 90.15 | Z6: 0 | AA6: 99.23 | AB6: 90.15 | AC6: 90.15 | AD6: 90.15 | AE6: 90.15 | AF6: 90.15 | AG6: 90.15 | AH6: 90.15 | AI6: 90.15 | AJ6: 90.15 | AK6: 90.15 | AL6: 90.15 | AM6: 90.15 | AN6: 90.15 | AO6: 90.15 | AP6: 92.73 | AQ6: 98.46 | AR6: 98.46 | AS6: 90.15 | AT6: 98.46 | AU6: 0 | AV6: 99.23 | AW6: 99.23 | AX6: 90.15 | AY6: 99.23 | AZ6: 90.15 | BA6: 99.23 | BB6: 99.23 | BC6: 90.15 | BD6: 90.15 | BE6: 90.15 | BF6: 98.46 | BG6: 0
A7: ColpVC_1__JX133088 | B7: 0 | C7: 0 | D7: 0 | E7: 0 | F7: 0 | G7: 98.45 | H7: 98.45 | I7: 98.45 | J7: 98.45 | K7: 98.45 | L7: 98.45 | M7: 98.45 | N7: 0 | O7: 0 | P7: 0 | Q7: 0 | R7: 0 | S7: 0 | T7: 0 | U7: 0 | V7: 0 | W7: 0 | X7: 0 | Y7: 0 | Z7: 0 | AA7: 0 | AB7: 0 | AC7: 0 | AD7: 0 | AE7: 0 | AF7: 0 | AG7: 0 | AH7: 0 | AI7: 0 | AJ7: 0 | AK7: 0 | AL7: 0 | AM7: 0 | AN7: 0 | AO7: 0 | AP7: 0 | AQ7: 0 | AR7: 0 | AS7: 0 | AT7: 0 | AU7: 0 | AV7: 0 | AW7: 0 | AX7: 0 | AY7: 0 | AZ7: 0 | BA7: 0 | BB7: 0 | BC7: 0 | BD7: 0 | BE7: 0 | BF7: 0 | BG7: 0
A8: IncA/C2_1__JN157804 | B8: 0 | C8: 0 | D8: 0 | E8: 0 | F8: 0 | G8: 100 | H8: 100 | I8: 100 | J8: 100 | K8: 100 | L8: 100 | M8: 100 | N8: 0 | O8: 0 | P8: 0 | Q8: 0 | R8: 0 | S8: 0 | T8: 0 | U8: 0 | V8: 0 | W8: 0 | X8: 0 | Y8: 0 | Z8: 100 | AA8: 0 | AB8: 0 | AC8: 0 | AD8: 0 | AE8: 0 | AF8: 0 | AG8: 0 | AH8: 0 | AI8: 0 | AJ8: 0 | AK8: 0 | AL8: 0 | AM8: 0 | AN8: 0 | AO8: 0 | AP8: 0 | AQ8: 0 | AR8: 0 | AS8: 0 | AT8: 0 | AU8: 0 | AV8: 0 | AW8: 0 | AX8: 0 | AY8: 0 | AZ8: 0 | BA8: 0 | BB8: 0 | BC8: 0 | BD8: 0 | BE8: 0 | BF8: 0 | BG8: 0
A9: IncFIA(HI1)_1_HI1_AF250878 | B9: 0 | C9: 0 | D9: 98.45 | E9: 0 | F9: 0 | G9: 0 | H9: 0 | I9: 0 | J9: 0 | K9: 0 | L9: 0 | M9: 0 | N9: 0 | O9: 0 | P9: 0 | Q9: 0 | R9: 0 | S9: 0 | T9: 0 | U9: 0 | V9: 0 | W9: 0 | X9: 0 | Y9: 0 | Z9: 0 | AA9: 0 | AB9: 0 | AC9: 0 | AD9: 0 | AE9: 0 | AF9: 0 | AG9: 0 | AH9: 0 | AI9: 0 | AJ9: 0 | AK9: 0 | AL9: 0 | AM9: 0 | AN9: 0 | AO9: 0 | AP9: 0 | AQ9: 0 | AR9: 0 | AS9: 0 | AT9: 0 | AU9: 0 | AV9: 0 | AW9: 0 | AX9: 0 | AY9: 0 | AZ9: 0 | BA9: 0 | BB9: 0 | BC9: 0 | BD9: 0 | BE9: 0 | BF9: 0 | BG9: 0
A10: IncFIA_1__AP001918 | B10: 0 | C10: 0 | D10: 0 | E10: 100 | F10: 100 | G10: 0 | H10: 0 | I10: 0 | J10: 0 | K10: 0 | L10: 0 | M10: 0 | N10: 0 | O10: 0 | P10: 0 | Q10: 0 | R10: 0 | S10: 0 | T10: 0 | U10: 0 | V10: 0 | W10: 0 | X10: 0 | Y10: 0 | Z10: 0 | AA10: 0 | AB10: 0 | AC10: 0 | AD10: 0 | AE10: 0 | AF10: 0 | AG10: 0 | AH10: 0 | AI10: 0 | AJ10: 0 | AK10: 0 | AL10: 0 | AM10: 0 | AN10: 0 | AO10: 0 | AP10: 0 | AQ10: 0 | AR10: 0 | AS10: 0 | AT10: 0 | AU10: 0 | AV10: 0 | AW10: 0 | AX10: 0 | AY10: 0 | AZ10: 0 | BA10: 0 | BB10: 0 | BC10: 0 | BD10: 0 | BE10: 0 | BF10: 0 | BG10: 0
A11: IncFIB(AP001918)_1__AP001918 | B11: 0 | C11: 0 | D11: 0 | E11: 0 | F11: 0 | G11: 0 | H11: 0 | I11: 0 | J11: 0 | K11: 0 | L11: 0 | M11: 0 | N11: 0 | O11: 0 | P11: 0 | Q11: 0 | R11: 0 | S11: 0 | T11: 0 | U11: 0 | V11: 0 | W11: 96.63 | X11: 0 | Y11: 96.63 | Z11: 0 | AA11: 0 | AB11: 0 | AC11: 0 | AD11: 0 | AE11: 0 | AF11: 0 | AG11: 0 | AH11: 0 | AI11: 0 | AJ11: 0 | AK11: 0 | AL11: 0 | AM11: 0 | AN11: 0 | AO11: 0 | AP11: 0 | AQ11: 0 | AR11: 0 | AS11: 0 | AT11: 0 | AU11: 0 | AV11: 0 | AW11: 0 | AX11: 0 | AY11: 0 | AZ11: 0 | BA11: 0 | BB11: 0 | BC11: 0 | BD11: 0 | BE11: 0 | BF11: 0 | BG11: 0
A12: IncFIB(K)_1_Kpn3_JN233704 | B12: 0 | C12: 0 | D12: 100 | E12: 0 | F12: 0 | G12: 0 | H12: 0 | I12: 0 | J12: 0 | K12: 0 | L12: 0 | M12: 0 | N12: 0 | O12: 100 | P12: 0 | Q12: 98.93 | R12: 0 | S12: 0 | T12: 0 | U12: 0 | V12: 0 | W12: 91.25 | X12: 0 | Y12: 91.25 | Z12: 0 | AA12: 100 | AB12: 0 | AC12: 0 | AD12: 0 | AE12: 0 | AF12: 0 | AG12: 0 | AH12: 0 | AI12: 0 | AJ12: 0 | AK12: 0 | AL12: 0 | AM12: 0 | AN12: 0 | AO12: 0 | AP12: 0 | AQ12: 91.25 | AR12: 91.25 | AS12: 91.25 | AT12: 91.25 | AU12: 0 | AV12: 0 | AW12: 0 | AX12: 0 | AY12: 0 | AZ12: 0 | BA12: 0 | BB12: 0 | BC12: 0 | BD12: 0 | BE12: 0 | BF12: 0 | BG12: 100
A13: IncFIB(pKPHS1)_1_pKPHS1_CP003223 | B13: 0 | C13: 0 | D13: 0 | E13: 0 | F13: 0 | G13: 0 | H13: 0 | I13: 0 | J13: 0 | K13: 0 | L13: 0 | M13: 0 | N13: 0 | O13: 95.18 | P13: 0 | Q13: 0 | R13: 0 | S13: 0 | T13: 0 | U13: 0 | V13: 0 | W13: 0 | X13: 0 | Y13: 0 | Z13: 100 | AA13: 0 | AB13: 0 | AC13: 0 | AD13: 0 | AE13: 0 | AF13: 0 | AG13: 0 | AH13: 0 | AI13: 0 | AJ13: 0 | AK13: 0 | AL13: 0 | AM13: 0 | AN13: 0 | AO13: 0 | AP13: 0 | AQ13: 0 | AR13: 0 | AS13: 0 | AT13: 0 | AU13: 0 | AV13: 0 | AW13: 0 | AX13: 0 | AY13: 0 | AZ13: 0 | BA13: 0 | BB13: 0 | BC13: 0 | BD13: 0 | BE13: 0 | BF13: 0 | BG13: 0
A14: IncFII(p14)_1_p14_JQ418538 | B14: 0 | C14: 0 | D14: 0 | E14: 0 | F14: 0 | G14: 89.56 | H14: 89.56 | I14: 89.56 | J14: 89.56 | K14: 89.56 | L14: 89.56 | M14: 89.56 | N14: 0 | O14: 0 | P14: 0 | Q14: 0 | R14: 0 | S14: 0 | T14: 0 | U14: 0 | V14: 0 | W14: 0 | X14: 0 | Y14: 0 | Z14: 0 | AA14: 0 | AB14: 0 | AC14: 0 | AD14: 0 | AE14: 0 | AF14: 0 | AG14: 0 | AH14: 0 | AI14: 0 | AJ14: 0 | AK14: 0 | AL14: 0 | AM14: 0 | AN14: 0 | AO14: 0 | AP14: 0 | AQ14: 0 | AR14: 0 | AS14: 0 | AT14: 0 | AU14: 0 | AV14: 0 | AW14: 0 | AX14: 0 | AY14: 0 | AZ14: 0 | BA14: 0 | BB14: 0 | BC14: 0 | BD14: 0 | BE14: 0 | BF14: 0 | BG14: 0
A15: IncFII(pCRY)_1_pCRY_NC_005814 | B15: 0 | C15: 0 | D15: 0 | E15: 0 | F15: 0 | G15: 0 | H15: 0 | I15: 0 | J15: 0 | K15: 0 | L15: 0 | M15: 0 | N15: 0 | O15: 0 | P15: 0 | Q15: 0 | R15: 0 | S15: 0 | T15: 0 | U15: 0 | V15: 0 | W15: 0 | X15: 0 | Y15: 0 | Z15: 0 | AA15: 0 | AB15: 0 | AC15: 0 | AD15: 0 | AE15: 0 | AF15: 0 | AG15: 0 | AH15: 0 | AI15: 0 | AJ15: 0 | AK15: 0 | AL15: 0 | AM15: 0 | AN15: 0 | AO15: 0 | AP15: 0 | AQ15: 0 | AR15: 0 | AS15: 81.32 | AT15: 0 | AU15: 0 | AV15: 0 | AW15: 0 | AX15: 0 | AY15: 0 | AZ15: 0 | BA15: 0 | BB15: 0 | BC15: 0 | BD15: 0 | BE15: 0 | BF15: 0 | BG15: 81.32
A16: IncFII(pHN7A8)_1_pHN7A8_JN232517 | B16: 100 | C16: 100 | D16: 100 | E16: 100 | F16: 100 | G16: 0 | H16: 0 | I16: 0 | J16: 0 | K16: 0 | L16: 0 | M16: 0 | N16: 100 | O16: 100 | P16: 100 | Q16: 100 | R16: 100 | S16: 100 | T16: 100 | U16: 100 | V16: 100 | W16: 99.62 | X16: 100 | Y16: 99.62 | Z16: 0 | AA16: 0 | AB16: 100 | AC16: 100 | AD16: 100 | AE16: 100 | AF16: 100 | AG16: 100 | AH16: 100 | AI16: 100 | AJ16: 100 | AK16: 100 | AL16: 100 | AM16: 100 | AN16: 100 | AO16: 100 | AP16: 100 | AQ16: 100 | AR16: 100 | AS16: 100 | AT16: 100 | AU16: 100 | AV16: 100 | AW16: 100 | AX16: 100 | AY16: 100 | AZ16: 100 | BA16: 100 | BB16: 100 | BC16: 100 | BD16: 100 | BE16: 100 | BF16: 0 | BG16: 0
A17: IncFII_1__AY458016 | B17: 0 | C17: 0 | D17: 0 | E17: 0 | F17: 0 | G17: 0 | H17: 0 | I17: 0 | J17: 0 | K17: 0 | L17: 0 | M17: 0 | N17: 0 | O17: 0 | P17: 0 | Q17: 0 | R17: 0 | S17: 0 | T17: 0 | U17: 0 | V17: 0 | W17: 100 | X17: 0 | Y17: 100 | Z17: 0 | AA17: 0 | AB17: 0 | AC17: 0 | AD17: 0 | AE17: 0 | AF17: 0 | AG17: 0 | AH17: 0 | AI17: 0 | AJ17: 0 | AK17: 0 | AL17: 0 | AM17: 0 | AN17: 0 | AO17: 0 | AP17: 0 | AQ17: 0 | AR17: 0 | AS17: 0 | AT17: 0 | AU17: 0 | AV17: 0 | AW17: 0 | AX17: 0 | AY17: 0 | AZ17: 0 | BA17: 0 | BB17: 0 | BC17: 0 | BD17: 0 | BE17: 0 | BF17: 0 | BG17: 0
A18: IncFII_1_pKP91_CP000966 | B18: 0 | C18: 0 | D18: 0 | E18: 0 | F18: 0 | G18: 0 | H18: 0 | I18: 0 | J18: 0 | K18: 0 | L18: 0 | M18: 0 | N18: 0 | O18: 88.38 | P18: 0 | Q18: 96.07 | R18: 0 | S18: 0 | T18: 0 | U18: 0 | V18: 0 | W18: 0 | X18: 0 | Y18: 0 | Z18: 89.58 | AA18: 88.38 | AB18: 0 | AC18: 0 | AD18: 0 | AE18: 0 | AF18: 0 | AG18: 0 | AH18: 0 | AI18: 0 | AJ18: 0 | AK18: 0 | AL18: 0 | AM18: 0 | AN18: 0 | AO18: 0 | AP18: 0 | AQ18: 0 | AR18: 0 | AS18: 0 | AT18: 0 | AU18: 0 | AV18: 0 | AW18: 0 | AX18: 0 | AY18: 0 | AZ18: 0 | BA18: 0 | BB18: 0 | BC18: 0 | BD18: 0 | BE18: 0 | BF18: 88.75 | BG18: 88.38
A19: IncHI1B_1_pNDM-MAR_JN420336 | B19: 0 | C19: 0 | D19: 0 | E19: 0 | F19: 0 | G19: 0 | H19: 0 | I19: 0 | J19: 0 | K19: 0 | L19: 0 | M19: 0 | N19: 0 | O19: 0 | P19: 0 | Q19: 0 | R19: 0 | S19: 0 | T19: 0 | U19: 0 | V19: 0 | W19: 99.15 | X19: 0 | Y19: 99.15 | Z19: 0 | AA19: 0 | AB19: 0 | AC19: 0 | AD19: 0 | AE19: 0 | AF19: 0 | AG19: 0 | AH19: 0 | AI19: 0 | AJ19: 0 | AK19: 0 | AL19: 0 | AM19: 0 | AN19: 0 | AO19: 0 | AP19: 0 | AQ19: 99.15 | AR19: 99.15 | AS19: 99.15 | AT19: 99.15 | AU19: 0 | AV19: 0 | AW19: 0 | AX19: 0 | AY19: 0 | AZ19: 0 | BA19: 0 | BB19: 0 | BC19: 0 | BD19: 0 | BE19: 0 | BF19: 0 | BG19: 0
A20: IncI1_1_Alpha_AP005147 | B20: 0 | C20: 0 | D20: 0 | E20: 0 | F20: 0 | G20: 0 | H20: 0 | I20: 0 | J20: 0 | K20: 0 | L20: 0 | M20: 0 | N20: 0 | O20: 0 | P20: 0 | Q20: 0 | R20: 0 | S20: 0 | T20: 0 | U20: 0 | V20: 0 | W20: 0 | X20: 0 | Y20: 0 | Z20: 0 | AA20: 0 | AB20: 95.65 | AC20: 0 | AD20: 98.59 | AE20: 0 | AF20: 0 | AG20: 0 | AH20: 0 | AI20: 0 | AJ20: 0 | AK20: 0 | AL20: 0 | AM20: 0 | AN20: 0 | AO20: 0 | AP20: 0 | AQ20: 0 | AR20: 0 | AS20: 0 | AT20: 0 | AU20: 0 | AV20: 0 | AW20: 0 | AX20: 0 | AY20: 0 | AZ20: 0 | BA20: 0 | BB20: 0 | BC20: 0 | BD20: 0 | BE20: 0 | BF20: 0 | BG20: 100
A21: IncL/M(pOXA-48)_1_pOXA-48_JN626286 | B21: 0 | C21: 0 | D21: 0 | E21: 0 | F21: 0 | G21: 0 | H21: 0 | I21: 0 | J21: 0 | K21: 0 | L21: 0 | M21: 0 | N21: 0 | O21: 0 | P21: 0 | Q21: 0 | R21: 0 | S21: 0 | T21: 0 | U21: 0 | V21: 0 | W21: 0 | X21: 0 | Y21: 0 | Z21: 0 | AA21: 0 | AB21: 0 | AC21: 0 | AD21: 0 | AE21: 0 | AF21: 0 | AG21: 0 | AH21: 0 | AI21: 0 | AJ21: 0 | AK21: 0 | AL21: 0 | AM21: 0 | AN21: 0 | AO21: 100 | AP21: 0 | AQ21: 0 | AR21: 0 | AS21: 0 | AT21: 0 | AU21: 0 | AV21: 100 | AW21: 100 | AX21: 100 | AY21: 100 | AZ21: 100 | BA21: 100 | BB21: 100 | BC21: 100 | BD21: 0 | BE21: 0 | BF21: 0 | BG21: 0
A22: IncN_1__AY046276 | B22: 0 | C22: 0 | D22: 0 | E22: 0 | F22: 0 | G22: 0 | H22: 0 | I22: 0 | J22: 0 | K22: 0 | L22: 0 | M22: 0 | N22: 0 | O22: 0 | P22: 0 | Q22: 0 | R22: 0 | S22: 0 | T22: 0 | U22: 99.61 | V22: 0 | W22: 0 | X22: 0 | Y22: 0 | Z22: 0 | AA22: 0 | AB22: 0 | AC22: 0 | AD22: 0 | AE22: 0 | AF22: 0 | AG22: 0 | AH22: 0 | AI22: 0 | AJ22: 0 | AK22: 0 | AL22: 0 | AM22: 0 | AN22: 0 | AO22: 99.81 | AP22: 0 | AQ22: 0 | AR22: 0 | AS22: 0 | AT22: 0 | AU22: 0 | AV22: 0 | AW22: 0 | AX22: 0 | AY22: 0 | AZ22: 0 | BA22: 0 | BB22: 0 | BC22: 0 | BD22: 0 | BE22: 0 | BF22: 0 | BG22: 0
A23: IncQ1_1__HE654726 | B23: 0 | C23: 0 | D23: 0 | E23: 0 | F23: 0 | G23: 100 | H23: 100 | I23: 100 | J23: 100 | K23: 100 | L23: 100 | M23: 100 | N23: 0 | O23: 0 | P23: 0 | Q23: 0 | R23: 0 | S23: 0 | T23: 0 | U23: 0 | V23: 0 | W23: 0 | X23: 0 | Y23: 0 | Z23: 0 | AA23: 0 | AB23: 0 | AC23: 0 | AD23: 0 | AE23: 0 | AF23: 0 | AG23: 0 | AH23: 0 | AI23: 0 | AJ23: 0 | AK23: 0 | AL23: 0 | AM23: 0 | AN23: 0 | AO23: 0 | AP23: 0 | AQ23: 0 | AR23: 0 | AS23: 0 | AT23: 0 | AU23: 0 | AV23: 0 | AW23: 0 | AX23: 0 | AY23: 0 | AZ23: 0 | BA23: 0 | BB23: 0 | BC23: 0 | BD23: 0 | BE23: 0 | BF23: 0 | BG23: 0
A24: IncR_1__DQ449578 | B24: 99.2 | C24: 99.2 | D24: 99.2 | E24: 99.2 | F24: 99.2 | G24: 0 | H24: 0 | I24: 0 | J24: 0 | K24: 0 | L24: 0 | M24: 0 | N24: 99.2 | O24: 99.2 | P24: 99.2 | Q24: 99.2 | R24: 99.2 | S24: 99.2 | T24: 99.2 | U24: 99.2 | V24: 99.2 | W24: 99.2 | X24: 99.2 | Y24: 99.2 | Z24: 99.2 | AA24: 100 | AB24: 99.2 | AC24: 99.2 | AD24: 99.2 | AE24: 0 | AF24: 0 | AG24: 0 | AH24: 0 | AI24: 0 | AJ24: 0 | AK24: 0 | AL24: 0 | AM24: 0 | AN24: 99.2 | AO24: 99.2 | AP24: 99.2 | AQ24: 99.2 | AR24: 99.2 | AS24: 99.2 | AT24: 99.2 | AU24: 99.2 | AV24: 99.2 | AW24: 99.2 | AX24: 99.2 | AY24: 99.2 | AZ24: 99.2 | BA24: 99.2 | BB24: 99.2 | BC24: 99.2 | BD24: 99.2 | BE24: 99.2 | BF24: 99.2 | BG24: 100
A25: IncX1_1__EU370913 | B25: 0 | C25: 0 | D25: 0 | E25: 0 | F25: 0 | G25: 0 | H25: 0 | I25: 0 | J25: 0 | K25: 0 | L25: 0 | M25: 0 | N25: 0 | O25: 0 | P25: 0 | Q25: 0 | R25: 0 | S25: 0 | T25: 0 | U25: 0 | V25: 0 | W25: 0 | X25: 0 | Y25: 0 | Z25: 0 | AA25: 0 | AB25: 98.66 | AC25: 0 | AD25: 0 | AE25: 0 | AF25: 0 | AG25: 0 | AH25: 0 | AI25: 0 | AJ25: 0 | AK25: 0 | AL25: 0 | AM25: 0 | AN25: 0 | AO25: 0 | AP25: 0 | AQ25: 0 | AR25: 0 | AS25: 0 | AT25: 0 | AU25: 0 | AV25: 0 | AW25: 0 | AX25: 0 | AY25: 0 | AZ25: 0 | BA25: 0 | BB25: 0 | BC25: 0 | BD25: 0 | BE25: 0 | BF25: 0 | BG25: 0
A26: pENTAS02_1__CP003028 | B26: 0 | C26: 0 | D26: 0 | E26: 0 | F26: 0 | G26: 0 | H26: 0 | I26: 0 | J26: 0 | K26: 0 | L26: 0 | M26: 0 | N26: 0 | O26: 0 | P26: 0 | Q26: 0 | R26: 0 | S26: 0 | T26: 0 | U26: 0 | V26: 0 | W26: 0 | X26: 0 | Y26: 0 | Z26: 0 | AA26: 0 | AB26: 0 | AC26: 0 | AD26: 0 | AE26: 0 | AF26: 0 | AG26: 0 | AH26: 0 | AI26: 0 | AJ26: 0 | AK26: 0 | AL26: 0 | AM26: 0 | AN26: 0 | AO26: 0 | AP26: 0 | AQ26: 0 | AR26: 0 | AS26: 0 | AT26: 0 | AU26: 0 | AV26: 0 | AW26: 0 | AX26: 0 | AY26: 0 | AZ26: 86.67 | BA26: 0 | BB26: 0 | BC26: 0 | BD26: 0 | BE26: 0 | BF26: 0 | BG26: 0
A27: TOTAL | B27: 2.8935 | C27: 2.8935 | D27: 4.878 | E27: 3.8935 | F27: 3.8935 | G27: 4.7816 | H27: 4.7816 | I27: 4.7816 | J27: 4.7816 | K27: 4.7816 | L27: 4.7816 | M27: 5.6677 | N27: 2.8935 | O27: 5.7291 | P27: 2.8935 | Q27: 4.8435 | R27: 2.8935 | S27: 1.992 | T27: 2.8935 | U27: 3.8896 | V27: 2.8935 | W27: 6.76 | X27: 2.8935 | Y27: 6.76 | Z27: 5.8359 | AA27: 3.8761 | AB27: 4.8366 | AC27: 2.8935 | AD27: 3.8794 | AE27: 1.9015 | AF27: 1.9015 | AG27: 1.9015 | AH27: 1.9015 | AI27: 1.9015 | AJ27: 1.9015 | AK27: 1.9015 | AL27: 1.9015 | AM27: 1.9015 | AN27: 2.8935 | AO27: 4.8916 | AP27: 2.9193 | AQ27: 4.8806 | AR27: 4.8806 | AS27: 5.6107 | AT27: 4.8806 | AU27: 1.992 | AV27: 3.9843 | AW27: 3.9843 | AX27: 3.8935 | AY27: 3.9843 | AZ27: 4.7602 | BA27: 3.9843 | BB27: 3.9843 | BC27: 4.7582 | BD27: 2.8935 | BE27: 2.8935 | BF27: 2.8641 | BG27: 4.697

Sheet S3 AMR
B1: AH-29 | C1: AH-9 | D1: AH10 | E1: AH11 | F1: AH12 | G1: BJ-A1040 | H1: BJK20 | I1: BJK22 | J1: BJK23 | K1: BJK6 | L1: BJK7 | M1: BJK8 | N1: FJ10 | O1: FJ11 | P1: FJ8 | Q1: GD-KPC30 | R1: GD108 | S1: GD4 | T1: HA-74 | U1: HA-99 | V1: HA2-17 | W1: HN-26 | X1: HN34-1 | Y1: HN34-2 | Z1: HS11286 | AA1: JM45 | AB1: JXR113 | AC1: JXR114 | AD1: K11 | AE1: K15 | AF1: K22-1 | AG1: K22-2 | AH1: K28-1 | AI1: K45 | AJ1: K47 | AK1: K48 | AL1: K49 | AM1: K50 | AN1: K6 | AO1: KP41 | AP1: KP6 | AQ1: SH-1 | AR1: SH-16 | AS1: SH-2 | AT1: SH-9 | AU1: SWU01 | AV1: TR187 | AW1: TR191 | AX1: TR198 | AY1: TR200 | AZ1: TR262 | BA1: TRqt-37 | BB1: TRqt-41 | BC1: TRqt-49 | BD1: WCHKP649 | BE1: XJ126 | BF1: XL-1 | BG1: kp10
A2: ARR-3_4_FM207631 | B2: 0 | C2: 0 | D2: 99.19 | E2: 0 | F2: 0 | G2: 0 | H2: 0 | I2: 0 | J2: 0 | K2: 0 | L2: 0 | M2: 0 | N2: 0 | O2: 0 | P2: 0 | Q2: 0 | R2: 0 | S2: 0 | T2: 0 | U2: 0 | V2: 0 | W2: 0 | X2: 0 | Y2: 0 | Z2: 0 | AA2: 0 | AB2: 0 | AC2: 0 | AD2: 99.18 | AE2: 0 | AF2: 0 | AG2: 0 | AH2: 0 | AI2: 0 | AJ2: 0 | AK2: 0 | AL2: 0 | AM2: 0 | AN2: 0 | AO2: 99.19 | AP2: 0 | AQ2: 0 | AR2: 0 | AS2: 0 | AT2: 0 | AU2: 0 | AV2: 0 | AW2: 0 | AX2: 0 | AY2: 0 | AZ2: 0 | BA2: 0 | BB2: 0 | BC2: 0 | BD2: 0 | BE2: 0 | BF2: 0 | BG2: 0 | BH2: =SUM(B2:BG2) -> 297.56
A3: QnrB4_1_DQ303921 | B3: 0 | C3: 0 | D3: 0 | E3: 0 | F3: 0 | G3: 0 | H3: 0 | I3: 0 | J3: 0 | K3: 0 | L3: 0 | M3: 0 | N3: 0 | O3: 0 | P3: 0 | Q3: 0 | R3: 0 | S3: 0 | T3: 0 | U3: 0 | V3: 0 | W3: 0 | X3: 0 | Y3: 0 | Z3: 0 | AA3: 0 | AB3: 0 | AC3: 0 | AD3: 0 | AE3: 0 | AF3: 0 | AG3: 0 | AH3: 0 | AI3: 0 | AJ3: 0 | AK3: 0 | AL3: 0 | AM3: 0 | AN3: 0 | AO3: 0 | AP3: 0 | AQ3: 0 | AR3: 0 | AS3: 0 | AT3: 0 | AU3: 0 | AV3: 0 | AW3: 0 | AX3: 0 | AY3: 0 | AZ3: 0 | BA3: 0 | BB3: 0 | BC3: 0 | BD3: 0 | BE3: 0 | BF3: 0 | BG3: 100 | BH3: =SUM(B3:BG3) -> 100
A4: QnrB6_3_EF523819 | B4: 0 | C4: 0 | D4: 100 | E4: 0 | F4: 0 | G4: 0 | H4: 0 | I4: 0 | J4: 0 | K4: 0 | L4: 0 | M4: 0 | N4: 0 | O4: 0 | P4: 0 | Q4: 0 | R4: 0 | S4: 0 | T4: 0 | U4: 0 | V4: 0 | W4: 0 | X4: 0 | Y4: 0 | Z4: 0 | AA4: 0 | AB4: 0 | AC4: 0 | AD4: 0 | AE4: 0 | AF4: 0 | AG4: 0 | AH4: 0 | AI4: 0 | AJ4: 0 | AK4: 0 | AL4: 0 | AM4: 0 | AN4: 0 | AO4: 0 | AP4: 0 | AQ4: 0 | AR4: 0 | AS4: 0 | AT4: 0 | AU4: 0 | AV4: 0 | AW4: 0 | AX4: 0 | AY4: 0 | AZ4: 0 | BA4: 0 | BB4: 0 | BC4: 0 | BD4: 0 | BE4: 0 | BF4: 0 | BG4: 0 | BH4: =SUM(B4:BG4) -> 100
A5: QnrS1_1_AB187515 | B5: 0 | C5: 0 | D5: 0 | E5: 0 | F5: 0 | G5: 0 | H5: 0 | I5: 0 | J5: 0 | K5: 0 | L5: 0 | M5: 0 | N5: 0 | O5: 0 | P5: 0 | Q5: 100 | R5: 0 | S5: 0 | T5: 0 | U5: 100 | V5: 0 | W5: 0 | X5: 0 | Y5: 0 | Z5: 0 | AA5: 0 | AB5: 100 | AC5: 0 | AD5: 0 | AE5: 0 | AF5: 0 | AG5: 0 | AH5: 0 | AI5: 0 | AJ5: 0 | AK5: 0 | AL5: 0 | AM5: 0 | AN5: 0 | AO5: 0 | AP5: 0 | AQ5: 0 | AR5: 0 | AS5: 100 | AT5: 0 | AU5: 0 | AV5: 0 | AW5: 0 | AX5: 0 | AY5: 0 | AZ5: 0 | BA5: 0 | BB5: 0 | BC5: 0 | BD5: 0 | BE5: 0 | BF5: 0 | BG5: 100 | BH5: =SUM(B5:BG5) -> 500
A6: aac(3)-IId_1_EU022314 | B6: 0 | C6: 0 | D6: 0 | E6: 0 | F6: 0 | G6: 99.88 | H6: 99.88 | I6: 99.88 | J6: 99.88 | K6: 99.88 | L6: 99.88 | M6: 99.88 | N6: 0 | O6: 99.88 | P6: 0 | Q6: 99.88 | R6: 0 | S6: 0 | T6: 0 | U6: 0 | V6: 0 | W6: 99.88 | X6: 0 | Y6: 99.88 | Z6: 99.86 | AA6: 0 | AB6: 0 | AC6: 0 | AD6: 0 | AE6: 0 | AF6: 0 | AG6: 0 | AH6: 0 | AI6: 0 | AJ6: 0 | AK6: 0 | AL6: 0 | AM6: 0 | AN6: 0 | AO6: 0 | AP6: 0 | AQ6: 0 | AR6: 0 | AS6: 0 | AT6: 0 | AU6: 0 | AV6: 0 | AW6: 0 | AX6: 0 | AY6: 0 | AZ6: 0 | BA6: 0 | BB6: 0 | BC6: 0 | BD6: 0 | BE6: 0 | BF6: 0 | BG6: 0 | BH6: =SUM(B6:BG6) -> 1198.54
A7: aac(3)-IVa_1_X01385 | B7: 0 | C7: 0 | D7: 0 | E7: 0 | F7: 0 | G7: 0 | H7: 0 | I7: 0 | J7: 0 | K7: 0 | L7: 0 | M7: 0 | N7: 0 | O7: 0 | P7: 0 | Q7: 0 | R7: 0 | S7: 0 | T7: 0 | U7: 0 | V7: 0 | W7: 0 | X7: 0 | Y7: 0 | Z7: 0 | AA7: 0 | AB7: 99.87 | AC7: 0 | AD7: 0 | AE7: 0 | AF7: 0 | AG7: 0 | AH7: 0 | AI7: 0 | AJ7: 0 | AK7: 0 | AL7: 0 | AM7: 0 | AN7: 0 | AO7: 0 | AP7: 0 | AQ7: 0 | AR7: 0 | AS7: 0 | AT7: 0 | AU7: 0 | AV7: 0 | AW7: 0 | AX7: 0 | AY7: 0 | AZ7: 0 | BA7: 0 | BB7: 0 | BC7: 0 | BD7: 0 | BE7: 0 | BF7: 99.75 | BG7: 0 | BH7: =SUM(B7:BG7) -> 199.62
A8: aac(6)Ib-cr_1_DQ303918 | B8: 0 | C8: 0 | D8: 100 | E8: 0 | F8: 0 | G8: 0 | H8: 0 | I8: 0 | J8: 0 | K8: 0 | L8: 0 | M8: 0 | N8: 0 | O8: 0 | P8: 0 | Q8: 0 | R8: 0 | S8: 0 | T8: 0 | U8: 0 | V8: 0 | W8: 0 | X8: 0 | Y8: 0 | Z8: 0 | AA8: 0 | AB8: 0 | AC8: 0 | AD8: 100 | AE8: 0 | AF8: 0 | AG8: 0 | AH8: 0 | AI8: 0 | AJ8: 0 | AK8: 0 | AL8: 0 | AM8: 0 | AN8: 0 | AO8: 100 | AP8: 0 | AQ8: 0 | AR8: 0 | AS8: 0 | AT8: 0 | AU8: 0 | AV8: 0 | AW8: 0 | AX8: 0 | AY8: 0 | AZ8: 0 | BA8: 0 | BB8: 0 | BC8: 0 | BD8: 0 | BE8: 0 | BF8: 0 | BG8: 0 | BH8: =SUM(B8:BG8) -> 300
A9: aadA16_1_EU675686 | B9: 0 | C9: 0 | D9: 99.65 | E9: 0 | F9: 0 | G9: 0 | H9: 0 | I9: 0 | J9: 0 | K9: 0 | L9: 0 | M9: 0 | N9: 0 | O9: 0 | P9: 0 | Q9: 0 | R9: 0 | S9: 0 | T9: 0 | U9: 0 | V9: 0 | W9: 0 | X9: 0 | Y9: 0 | Z9: 0 | AA9: 0 | AB9: 0 | AC9: 0 | AD9: 0 | AE9: 0 | AF9: 0 | AG9: 0 | AH9: 0 | AI9: 0 | AJ9: 0 | AK9: 0 | AL9: 0 | AM9: 0 | AN9: 0 | AO9: 99.65 | AP9: 0 | AQ9: 0 | AR9: 0 | AS9: 0 | AT9: 0 | AU9: 0 | AV9: 0 | AW9: 0 | AX9: 0 | AY9: 0 | AZ9: 0 | BA9: 0 | BB9: 0 | BC9: 0 | BD9: 0 | BE9: 0 | BF9: 0 | BG9: 0 | BH9: =SUM(B9:BG9) -> 199.3
A10: aadA2_2_JQ364967 | B10: 99.75 | C10: 99.75 | D10: 99.75 | E10: 99.75 | F10: 99.75 | G10: 100 | H10: 100 | I10: 100 | J10: 100 | K10: 100 | L10: 100 | M10: 100 | N10: 99.75 | O10: 99.87 | P10: 99.75 | Q10: 99.75 | R10: 99.75 | S10: 99.75 | T10: 99.75 | U10: 99.75 | V10: 99.75 | W10: 99.75 | X10: 99.75 | Y10: 99.75 | Z10: 100 | AA10: 100 | AB10: 0 | AC10: 0 | AD10: 99.75 | AE10: 99.75 | AF10: 99.75 | AG10: 99.75 | AH10: 99.75 | AI10: 99.75 | AJ10: 99.75 | AK10: 99.75 | AL10: 99.75 | AM10: 99.75 | AN10: 99.75 | AO10: 99.75 | AP10: 99.75 | AQ10: 0 | AR10: 0 | AS10: 99.75 | AT10: 0 | AU10: 99.75 | AV10: 99.75 | AW10: 99.75 | AX10: 99.75 | AY10: 99.75 | AZ10: 99.75 | BA10: 99.75 | BB10: 99.75 | BC10: 99.75 | BD10: 0 | BE10: 99.75 | BF10: 100 | BG10: 0 | BH10: =SUM(B10:BG10) -> 5089.87
A11: aadA5_1_AF137361 | B11: 0 | C11: 0 | D11: 0 | E11: 0 | F11: 0 | G11: 0 | H11: 0 | I11: 0 | J11: 0 | K11: 0 | L11: 0 | M11: 0 | N11: 0 | O11: 0 | P11: 0 | Q11: 0 | R11: 0 | S11: 0 | T11: 0 | U11: 0 | V11: 0 | W11: 100 | X11: 0 | Y11: 100 | Z11: 0 | AA11: 0 | AB11: 0 | AC11: 0 | AD11: 0 | AE11: 0 | AF11: 0 | AG11: 0 | AH11: 0 | AI11: 0 | AJ11: 0 | AK11: 0 | AL11: 0 | AM11: 0 | AN11: 0 | AO11: 0 | AP11: 0 | AQ11: 0 | AR11: 0 | AS11: 0 | AT11: 0 | AU11: 0 | AV11: 0 | AW11: 0 | AX11: 0 | AY11: 0 | AZ11: 0 | BA11: 0 | BB11: 0 | BC11: 0 | BD11: 0 | BE11: 0 | BF11: 0 | BG11: 0 | BH11: =SUM(B11:BG11) -> 200
A12: aadB_1_JN119852 | B12: 0 | C12: 0 | D12: 0 | E12: 0 | F12: 0 | G12: 0 | H12: 0 | I12: 0 | J12: 0 | K12: 0 | L12: 0 | M12: 0 | N12: 100 | O12: 100 | P12: 100 | Q12: 0 | R12: 0 | S12: 0 | T12: 0 | U12: 0 | V12: 0 | W12: 0 | X12: 0 | Y12: 0 | Z12: 0 | AA12: 0 | AB12: 0 | AC12: 0 | AD12: 0 | AE12: 0 | AF12: 0 | AG12: 0 | AH12: 0 | AI12: 0 | AJ12: 0 | AK12: 0 | AL12: 0 | AM12: 0 | AN12: 0 | AO12: 0 | AP12: 0 | AQ12: 0 | AR12: 0 | AS12: 0 | AT12: 0 | AU12: 100 | AV12: 0 | AW12: 0 | AX12: 0 | AY12: 0 | AZ12: 0 | BA12: 0 | BB12: 0 | BC12: 0 | BD12: 0 | BE12: 100 | BF12: 0 | BG12: 0 | BH12: =SUM(B12:BG12) -> 500
A13: aph(3)-Ia_1_V00359 | B13: 0 | C13: 0 | D13: 0 | E13: 0 | F13: 0 | G13: 0 | H13: 0 | I13: 0 | J13: 0 | K13: 0 | L13: 0 | M13: 0 | N13: 0 | O13: 0 | P13: 0 | Q13: 100 | R13: 0 | S13: 0 | T13: 0 | U13: 0 | V13: 0 | W13: 0 | X13: 0 | Y13: 0 | Z13: 0 | AA13: 100 | AB13: 0 | AC13: 0 | AD13: 0 | AE13: 0 | AF13: 0 | AG13: 0 | AH13: 0 | AI13: 0 | AJ13: 0 | AK13: 0 | AL13: 0 | AM13: 0 | AN13: 0 | AO13: 0 | AP13: 0 | AQ13: 0 | AR13: 0 | AS13: 0 | AT13: 0 | AU13: 0 | AV13: 0 | AW13: 0 | AX13: 0 | AY13: 0 | AZ13: 0 | BA13: 0 | BB13: 0 | BC13: 0 | BD13: 0 | BE13: 0 | BF13: 0 | BG13: 0 | BH13: =SUM(B13:BG13) -> 200
A14: aph(3)-Ic_1_X62115 | B14: 0 | C14: 0 | D14: 0 | E14: 0 | F14: 0 | G14: 100 | H14: 100 | I14: 100 | J14: 100 | K14: 0 | L14: 100 | M14: 100 | N14: 0 | O14: 0 | P14: 0 | Q14: 0 | R14: 0 | S14: 0 | T14: 0 | U14: 0 | V14: 0 | W14: 0 | X14: 0 | Y14: 0 | Z14: 0 | AA14: 0 | AB14: 0 | AC14: 0 | AD14: 0 | AE14: 0 | AF14: 0 | AG14: 0 | AH14: 0 | AI14: 0 | AJ14: 0 | AK14: 0 | AL14: 0 | AM14: 0 | AN14: 0 | AO14: 0 | AP14: 0 | AQ14: 0 | AR14: 0 | AS14: 0 | AT14: 0 | AU14: 0 | AV14: 0 | AW14: 0 | AX14: 0 | AY14: 0 | AZ14: 0 | BA14: 0 | BB14: 0 | BC14: 0 | BD14: 0 | BE14: 0 | BF14: 0 | BG14: 0 | BH14: =SUM(B14:BG14) -> 600
A15: aph(4)-Ia_1_V01499 | B15: 0 | C15: 0 | D15: 0 | E15: 0 | F15: 0 | G15: 0 | H15: 0 | I15: 0 | J15: 0 | K15: 0 | L15: 0 | M15: 0 | N15: 0 | O15: 0 | P15: 0 | Q15: 0 | R15: 0 | S15: 0 | T15: 0 | U15: 0 | V15: 0 | W15: 0 | X15: 0 | Y15: 0 | Z15: 0 | AA15: 0 | AB15: 100 | AC15: 0 | AD15: 0 | AE15: 0 | AF15: 0 | AG15: 0 | AH15: 0 | AI15: 0 | AJ15: 0 | AK15: 0 | AL15: 0 | AM15: 0 | AN15: 0 | AO15: 0 | AP15: 0 | AQ15: 0 | AR15: 0 | AS15: 0 | AT15: 0 | AU15: 0 | AV15: 0 | AW15: 0 | AX15: 0 | AY15: 0 | AZ15: 0 | BA15: 0 | BB15: 0 | BC15: 0 | BD15: 0 | BE15: 0 | BF15: 100 | BG15: 0 | BH15: =SUM(B15:BG15) -> 200
A16: armA_1_AY220558 | B16: 0 | C16: 0 | D16: 0 | E16: 0 | F16: 0 | G16: 0 | H16: 100 | I16: 100 | J16: 100 | K16: 100 | L16: 100 | M16: 100 | N16: 0 | O16: 0 | P16: 0 | Q16: 0 | R16: 0 | S16: 0 | T16: 0 | U16: 0 | V16: 0 | W16: 0 | X16: 0 | Y16: 0 | Z16: 0 | AA16: 0 | AB16: 0 | AC16: 0 | AD16: 0 | AE16: 0 | AF16: 0 | AG16: 0 | AH16: 0 | AI16: 0 | AJ16: 0 | AK16: 0 | AL16: 0 | AM16: 0 | AN16: 0 | AO16: 0 | AP16: 0 | AQ16: 0 | AR16: 0 | AS16: 0 | AT16: 0 | AU16: 0 | AV16: 0 | AW16: 0 | AX16: 0 | AY16: 0 | AZ16: 0 | BA16: 0 | BB16: 0 | BC16: 0 | BD16: 0 | BE16: 0 | BF16: 0 | BG16: 0 | BH16: =SUM(B16:BG16) -> 600
A17: blaCTX-M-14_1_AF252622 | B17: 0 | C17: 0 | D17: 0 | E17: 0 | F17: 0 | G17: 0 | H17: 0 | I17: 0 | J17: 0 | K17: 0 | L17: 0 | M17: 0 | N17: 0 | O17: 0 | P17: 0 | Q17: 100 | R17: 0 | S17: 0 | T17: 0 | U17: 0 | V17: 0 | W17: 0 | X17: 0 | Y17: 0 | Z17: 100 | AA17: 0 | AB17: 0 | AC17: 0 | AD17: 0 | AE17: 0 | AF17: 0 | AG17: 0 | AH17: 0 | AI17: 0 | AJ17: 0 | AK17: 0 | AL17: 0 | AM17: 0 | AN17: 0 | AO17: 0 | AP17: 0 | AQ17: 0 | AR17: 0 | AS17: 0 | AT17: 0 | AU17: 0 | AV17: 0 | AW17: 0 | AX17: 0 | AY17: 0 | AZ17: 0 | BA17: 0 | BB17: 0 | BC17: 0 | BD17: 0 | BE17: 0 | BF17: 0 | BG17: 0 | BH17: =SUM(B17:BG17) -> 200
A18: blaCTX-M-24_2_EF570050 | B18: 0 | C18: 0 | D18: 0 | E18: 0 | F18: 0 | G18: 0 | H18: 0 | I18: 0 | J18: 0 | K18: 0 | L18: 0 | M18: 0 | N18: 0 | O18: 0 | P18: 0 | Q18: 0 | R18: 0 | S18: 0 | T18: 0 | U18: 0 | V18: 0 | W18: 0 | X18: 0 | Y18: 0 | Z18: 0 | AA18: 100 | AB18: 0 | AC18: 0 | AD18: 0 | AE18: 0 | AF18: 0 | AG18: 0 | AH18: 0 | AI18: 0 | AJ18: 0 | AK18: 0 | AL18: 0 | AM18: 0 | AN18: 0 | AO18: 0 | AP18: 0 | AQ18: 0 | AR18: 0 | AS18: 0 | AT18: 0 | AU18: 0 | AV18: 0 | AW18: 0 | AX18: 0 | AY18: 0 | AZ18: 0 | BA18: 0 | BB18: 0 | BC18: 0 | BD18: 0 | BE18: 0 | BF18: 0 | BG18: 0 | BH18: =SUM(B18:BG18) -> 100
A19: blaCTX-M-3_2_EF437434 | B19: 0 | C19: 0 | D19: 0 | E19: 0 | F19: 0 | G19: 100 | H19: 100 | I19: 100 | J19: 100 | K19: 100 | L19: 100 | M19: 100 | N19: 0 | O19: 0 | P19: 0 | Q19: 0 | R19: 0 | S19: 0 | T19: 0 | U19: 0 | V19: 0 | W19: 0 | X19: 0 | Y19: 0 | Z19: 0 | AA19: 0 | AB19: 0 | AC19: 0 | AD19: 0 | AE19: 0 | AF19: 0 | AG19: 0 | AH19: 0 | AI19: 0 | AJ19: 0 | AK19: 0 | AL19: 0 | AM19: 0 | AN19: 0 | AO19: 0 | AP19: 0 | AQ19: 0 | AR19: 0 | AS19: 0 | AT19: 0 | AU19: 0 | AV19: 0 | AW19: 0 | AX19: 0 | AY19: 0 | AZ19: 0 | BA19: 0 | BB19: 0 | BC19: 0 | BD19: 0 | BE19: 0 | BF19: 0 | BG19: 0 | BH19: =SUM(B19:BG19) -> 700
A20: blaCTX-M-55_2_GQ456159 | B20: 0 | C20: 0 | D20: 0 | E20: 0 | F20: 0 | G20: 0 | H20: 0 | I20: 0 | J20: 0 | K20: 0 | L20: 0 | M20: 0 | N20: 0 | O20: 0 | P20: 0 | Q20: 0 | R20: 0 | S20: 0 | T20: 0 | U20: 0 | V20: 0 | W20: 0 | X20: 0 | Y20: 0 | Z20: 0 | AA20: 0 | AB20: 0 | AC20: 0 | AD20: 0 | AE20: 0 | AF20: 0 | AG20: 0 | AH20: 0 | AI20: 0 | AJ20: 0 | AK20: 0 | AL20: 0 | AM20: 0 | AN20: 0 | AO20: 0 | AP20: 0 | AQ20: 0 | AR20: 0 | AS20: 0 | AT20: 0 | AU20: 0 | AV20: 0 | AW20: 0 | AX20: 0 | AY20: 0 | AZ20: 0 | BA20: 0 | BB20: 0 | BC20: 0 | BD20: 0 | BE20: 0 | BF20: 0 | BG20: 100 | BH20: =SUM(B20:BG20) -> 100
A21: blaCTX-M-65_2_GQ456158 | B21: 100 | C21: 100 | D21: 0 | E21: 100 | F21: 100 | G21: 0 | H21: 0 | I21: 0 | J21: 0 | K21: 0 | L21: 0 | M21: 0 | N21: 100 | O21: 0 | P21: 99.89 | Q21: 0 | R21: 100 | S21: 100 | T21: 100 | U21: 100 | V21: 0 | W21: 0 | X21: 100 | Y21: 0 | Z21: 0 | AA21: 0 | AB21: 100 | AC21: 100 | AD21: 100 | AE21: 100 | AF21: 100 | AG21: 100 | AH21: 100 | AI21: 100 | AJ21: 100 | AK21: 100 | AL21: 100 | AM21: 100 | AN21: 100 | AO21: 100 | AP21: 100 | AQ21: 100 | AR21: 100 | AS21: 100 | AT21: 100 | AU21: 100 | AV21: 0 | AW21: 0 | AX21: 0 | AY21: 0 | AZ21: 0 | BA21: 0 | BB21: 0 | BC21: 0 | BD21: 100 | BE21: 100 | BF21: 0 | BG21: 0 | BH21: =SUM(B21:BG21) -> 3299.89
A22: blaDHA-1_1_Y16410 | B22: 0 | C22: 0 | D22: 0 | E22: 0 | F22: 0 | G22: 0 | H22: 0 | I22: 0 | J22: 0 | K22: 0 | L22: 0 | M22: 0 | N22: 0 | O22: 0 | P22: 0 | Q22: 0 | R22: 0 | S22: 0 | T22: 0 | U22: 0 | V22: 0 | W22: 0 | X22: 0 | Y22: 0 | Z22: 0 | AA22: 0 | AB22: 0 | AC22: 0 | AD22: 0 | AE22: 0 | AF22: 0 | AG22: 0 | AH22: 0 | AI22: 0 | AJ22: 0 | AK22: 0 | AL22: 0 | AM22: 0 | AN22: 0 | AO22: 0 | AP22: 0 | AQ22: 0 | AR22: 0 | AS22: 0 | AT22: 0 | AU22: 0 | AV22: 0 | AW22: 0 | AX22: 0 | AY22: 0 | AZ22: 0 | BA22: 0 | BB22: 0 | BC22: 0 | BD22: 0 | BE22: 0 | BF22: 0 | BG22: 100 | BH22: =SUM(B22:BG22) -> 100
A23: blaKPC-2_1_AY034847 | B23: 100 | C23: 100 | D23: 100 | E23: 100 | F23: 100 | G23: 100 | H23: 100 | I23: 100 | J23: 100 | K23: 100 | L23: 100 | M23: 100 | N23: 100 | O23: 99.89 | P23: 100 | Q23: 100 | R23: 100 | S23: 100 | T23: 100 | U23: 100 | V23: 100 | W23: 100 | X23: 100 | Y23: 100 | Z23: 100 | AA23: 100 | AB23: 100 | AC23: 100 | AD23: 100 | AE23: 100 | AF23: 100 | AG23: 100 | AH23: 100 | AI23: 100 | AJ23: 100 | AK23: 100 | AL23: 100 | AM23: 100 | AN23: 100 | AO23: 100 | AP23: 100 | AQ23: 100 | AR23: 100 | AS23: 100 | AT23: 100 | AU23: 100 | AV23: 100 | AW23: 100 | AX23: 100 | AY23: 100 | AZ23: 100 | BA23: 100 | BB23: 100 | BC23: 100 | BD23: 100 | BE23: 100 | BF23: 100 | BG23: 0 | BH23: =SUM(B23:BG23) -> 5699.89
A24: blaNDM-1_1_FN396876 | B24: 0 | C24: 0 | D24: 0 | E24: 0 | F24: 0 | G24: 0 | H24: 0 | I24: 0 | J24: 0 | K24: 0 | L24: 0 | M24: 0 | N24: 0 | O24: 0 | P24: 0 | Q24: 99.19 | R24: 0 | S24: 0 | T24: 0 | U24: 100 | V24: 0 | W24: 0 | X24: 0 | Y24: 0 | Z24: 0 | AA24: 0 | AB24: 0 | AC24: 0 | AD24: 0 | AE24: 0 | AF24: 0 | AG24: 0 | AH24: 0 | AI24: 0 | AJ24: 0 | AK24: 0 | AL24: 0 | AM24: 0 | AN24: 0 | AO24: 0 | AP24: 0 | AQ24: 0 | AR24: 0 | AS24: 0 | AT24: 0 | AU24: 0 | AV24: 0 | AW24: 0 | AX24: 0 | AY24: 0 | AZ24: 0 | BA24: 0 | BB24: 0 | BC24: 0 | BD24: 0 | BE24: 0 | BF24: 0 | BG24: 0 | BH24: =SUM(B24:BG24) -> 199.19
A25: blaOXA-1_1_J02967 | B25: 0 | C25: 0 | D25: 0 | E25: 0 | F25: 0 | G25: 0 | H25: 0 | I25: 0 | J25: 0 | K25: 0 | L25: 0 | M25: 0 | N25: 0 | O25: 0 | P25: 0 | Q25: 0 | R25: 0 | S25: 0 | T25: 0 | U25: 0 | V25: 0 | W25: 0 | X25: 0 | Y25: 0 | Z25: 0 | AA25: 0 | AB25: 0 | AC25: 0 | AD25: 100 | AE25: 0 | AF25: 0 | AG25: 0 | AH25: 0 | AI25: 0 | AJ25: 0 | AK25: 0 | AL25: 0 | AM25: 0 | AN25: 0 | AO25: 0 | AP25: 0 | AQ25: 0 | AR25: 0 | AS25: 0 | AT25: 0 | AU25: 0 | AV25: 0 | AW25: 0 | AX25: 0 | AY25: 0 | AZ25: 0 | BA25: 0 | BB25: 0 | BC25: 0 | BD25: 0 | BE25: 0 | BF25: 0 | BG25: 0 | BH25: =SUM(B25:BG25) -> 100
A26: blaSHV-11_2_HM751098 | B26: 100 | C26: 100 | D26: 0 | E26: 100 | F26: 100 | G26: 100 | H26: 100 | I26: 100 | J26: 100 | K26: 100 | L26: 100 | M26: 100 | N26: 0 | O26: 0 | P26: 0 | Q26: 0 | R26: 0 | S26: 0 | T26: 0 | U26: 0 | V26: 0 | W26: 0 | X26: 0 | Y26: 0 | Z26: 100 | AA26: 100 | AB26: 100 | AC26: 100 | AD26: 100 | AE26: 0 | AF26: 0 | AG26: 0 | AH26: 0 | AI26: 0 | AJ26: 0 | AK26: 0 | AL26: 0 | AM26: 0 | AN26: 100 | AO26: 0 | AP26: 0 | AQ26: 100 | AR26: 100 | AS26: 0 | AT26: 100 | AU26: 100 | AV26: 0 | AW26: 0 | AX26: 0 | AY26: 0 | AZ26: 0 | BA26: 0 | BB26: 0 | BC26: 0 | BD26: 100 | BE26: 0 | BF26: 100 | BG26: 0 | BH26: =SUM(B26:BG26) -> 2300
A27: blaSHV-11_7_GQ407109 | B27: 0 | C27: 0 | D27: 99.88 | E27: 0 | F27: 0 | G27: 0 | H27: 0 | I27: 0 | J27: 0 | K27: 0 | L27: 0 | M27: 0 | N27: 0 | O27: 0 | P27: 0 | Q27: 0 | R27: 0 | S27: 0 | T27: 0 | U27: 0 | V27: 0 | W27: 0 | X27: 0 | Y27: 0 | Z27: 0 | AA27: 0 | AB27: 0 | AC27: 0 | AD27: 0 | AE27: 0 | AF27: 0 | AG27: 0 | AH27: 0 | AI27: 0 | AJ27: 0 | AK27: 0 | AL27: 0 | AM27: 0 | AN27: 0 | AO27: 0 | AP27: 0 | AQ27: 0 | AR27: 0 | AS27: 0 | AT27: 0 | AU27: 0 | AV27: 0 | AW27: 0 | AX27: 0 | AY27: 0 | AZ27: 0 | BA27: 0 | BB27: 0 | BC27: 0 | BD27: 0 | BE27: 0 | BF27: 0 | BG27: 0 | BH27: =SUM(B27:BG27) -> 99.88
A28: blaSHV-11_8_GQ387358 | B28: 0 | C28: 0 | D28: 0 | E28: 0 | F28: 0 | G28: 0 | H28: 0 | I28: 0 | J28: 0 | K28: 0 | L28: 0 | M28: 0 | N28: 0 | O28: 0 | P28: 0 | Q28: 0 | R28: 0 | S28: 0 | T28: 0 | U28: 0 | V28: 0 | W28: 0 | X28: 100 | Y28: 0 | Z28: 0 | AA28: 0 | AB28: 0 | AC28: 0 | AD28: 0 | AE28: 0 | AF28: 0 | AG28: 0 | AH28: 0 | AI28: 0 | AJ28: 0 | AK28: 0 | AL28: 0 | AM28: 0 | AN28: 0 | AO28: 0 | AP28: 0 | AQ28: 0 | AR28: 0 | AS28: 0 | AT28: 0 | AU28: 0 | AV28: 0 | AW28: 0 | AX28: 0 | AY28: 0 | AZ28: 0 | BA28: 0 | BB28: 0 | BC28: 0 | BD28: 0 | BE28: 0 | BF28: 0 | BG28: 0 | BH28: =SUM(B28:BG28) -> 100
A29: blaSHV-12_1_AF462395 | B29: 0 | C29: 0 | D29: 0 | E29: 0 | F29: 0 | G29: 0 | H29: 0 | I29: 0 | J29: 0 | K29: 0 | L29: 0 | M29: 0 | N29: 100 | O29: 100 | P29: 100 | Q29: 99.88 | R29: 100 | S29: 100 | T29: 100 | U29: 100 | V29: 100 | W29: 100 | X29: 0 | Y29: 100 | Z29: 0 | AA29: 0 | AB29: 0 | AC29: 0 | AD29: 0 | AE29: 0 | AF29: 100 | AG29: 100 | AH29: 100 | AI29: 0 | AJ29: 0 | AK29: 0 | AL29: 100 | AM29: 0 | AN29: 0 | AO29: 100 | AP29: 100 | AQ29: 0 | AR29: 0 | AS29: 100 | AT29: 0 | AU29: 100 | AV29: 0 | AW29: 0 | AX29: 0 | AY29: 0 | AZ29: 100 | BA29: 0 | BB29: 100 | BC29: 99.88 | BD29: 0 | BE29: 100 | BF29: 0 | BG29: 100 | BH29: =SUM(B29:BG29) -> 2399.76
A30: blaSHV-155_1_JX121122 | B30: 0 | C30: 0 | D30: 0 | E30: 0 | F30: 0 | G30: 0 | H30: 0 | I30: 0 | J30: 0 | K30: 0 | L30: 0 | M30: 0 | N30: 0 | O30: 0 | P30: 0 | Q30: 0 | R30: 0 | S30: 0 | T30: 0 | U30: 0 | V30: 0 | W30: 0 | X30: 0 | Y30: 0 | Z30: 0 | AA30: 0 | AB30: 0 | AC30: 0 | AD30: 0 | AE30: 100 | AF30: 0 | AG30: 0 | AH30: 0 | AI30: 100 | AJ30: 100 | AK30: 100 | AL30: 0 | AM30: 100 | AN30: 0 | AO30: 0 | AP30: 0 | AQ30: 0 | AR30: 0 | AS30: 0 | AT30: 0 | AU30: 0 | AV30: 0 | AW30: 0 | AX30: 0 | AY30: 0 | AZ30: 0 | BA30: 0 | BB30: 0 | BC30: 0 | BD30: 0 | BE30: 0 | BF30: 0 | BG30: 0 | BH30: =SUM(B30:BG30) -> 500
A31: blaTEM-1B_1_JF910132 | B31: 100 | C31: 100 | D31: 0 | E31: 100 | F31: 100 | G31: 100 | H31: 100 | I31: 100 | J31: 100 | K31: 100 | L31: 100 | M31: 100 | N31: 100 | O31: 0 | P31: 100 | Q31: 100 | R31: 100 | S31: 100 | T31: 100 | U31: 100 | V31: 100 | W31: 100 | X31: 100 | Y31: 100 | Z31: 0 | AA31: 100 | AB31: 100 | AC31: 100 | AD31: 100 | AE31: 100 | AF31: 100 | AG31: 100 | AH31: 100 | AI31: 100 | AJ31: 100 | AK31: 100 | AL31: 100 | AM31: 100 | AN31: 100 | AO31: 100 | AP31: 100 | AQ31: 100 | AR31: 100 | AS31: 100 | AT31: 100 | AU31: 100 | AV31: 0 | AW31: 0 | AX31: 0 | AY31: 0 | AZ31: 0 | BA31: 0 | BB31: 0 | BC31: 0 | BD31: 100 | BE31: 100 | BF31: 0 | BG31: 0 | BH31: =SUM(B31:BG31) -> 4500
A32: blaTEM-1C_5_FJ560503 | B32: 0 | C32: 0 | D32: 0 | E32: 0 | F32: 0 | G32: 0 | H32: 0 | I32: 0 | J32: 0 | K32: 0 | L32: 0 | M32: 0 | N32: 0 | O32: 0 | P32: 0 | Q32: 0 | R32: 0 | S32: 0 | T32: 0 | U32: 0 | V32: 0 | W32: 0 | X32: 0 | Y32: 0 | Z32: 99.88 | AA32: 0 | AB32: 0 | AC32: 0 | AD32: 0 | AE32: 0 | AF32: 0 | AG32: 0 | AH32: 0 | AI32: 0 | AJ32: 0 | AK32: 0 | AL32: 0 | AM32: 0 | AN32: 0 | AO32: 0 | AP32: 0 | AQ32: 0 | AR32: 0 | AS32: 0 | AT32: 0 | AU32: 0 | AV32: 0 | AW32: 0 | AX32: 0 | AY32: 0 | AZ32: 0 | BA32: 0 | BB32: 0 | BC32: 0 | BD32: 0 | BE32: 0 | BF32: 0 | BG32: 0 | BH32: =SUM(B32:BG32) -> 99.88
A33: blaVEB-3_1_AY536519 | B33: 0 | C33: 0 | D33: 0 | E33: 0 | F33: 0 | G33: 0 | H33: 0 | I33: 0 | J33: 0 | K33: 0 | L33: 0 | M33: 0 | N33: 0 | O33: 0 | P33: 0 | Q33: 0 | R33: 0 | S33: 0 | T33: 0 | U33: 0 | V33: 0 | W33: 0 | X33: 0 | Y33: 0 | Z33: 0 | AA33: 100 | AB33: 0 | AC33: 0 | AD33: 0 | AE33: 0 | AF33: 0 | AG33: 0 | AH33: 0 | AI33: 0 | AJ33: 0 | AK33: 0 | AL33: 0 | AM33: 0 | AN33: 0 | AO33: 0 | AP33: 0 | AQ33: 0 | AR33: 0 | AS33: 0 | AT33: 0 | AU33: 0 | AV33: 0 | AW33: 0 | AX33: 0 | AY33: 0 | AZ33: 0 | BA33: 0 | BB33: 0 | BC33: 0 | BD33: 0 | BE33: 0 | BF33: 0 | BG33: 0 | BH33: =SUM(B33:BG33) -> 100
A34: catA1_1_V00622 | B34: 0 | C34: 0 | D34: 0 | E34: 0 | F34: 0 | G34: 0 | H34: 0 | I34: 0 | J34: 0 | K34: 0 | L34: 0 | M34: 0 | N34: 0 | O34: 0 | P34: 0 | Q34: 0 | R34: 0 | S34: 0 | T34: 0 | U34: 0 | V34: 0 | W34: 0 | X34: 0 | Y34: 0 | Z34: 0 | AA34: 99.85 | AB34: 0 | AC34: 0 | AD34: 0 | AE34: 0 | AF34: 0 | AG34: 0 | AH34: 0 | AI34: 0 | AJ34: 0 | AK34: 0 | AL34: 0 | AM34: 0 | AN34: 0 | AO34: 0 | AP34: 0 | AQ34: 0 | AR34: 0 | AS34: 0 | AT34: 0 | AU34: 0 | AV34: 0 | AW34: 0 | AX34: 0 | AY34: 0 | AZ34: 0 | BA34: 0 | BB34: 0 | BC34: 0 | BD34: 0 | BE34: 0 | BF34: 0 | BG34: 0 | BH34: =SUM(B34:BG34) -> 99.85
A35: catA2_1_X53796 | B35: 0 | C35: 0 | D35: 0 | E35: 0 | F35: 0 | G35: 0 | H35: 0 | I35: 0 | J35: 0 | K35: 0 | L35: 0 | M35: 0 | N35: 96.11 | O35: 96.11 | P35: 96.11 | Q35: 96.11 | R35: 96.11 | S35: 96.11 | T35: 96.11 | U35: 96.11 | V35: 96.11 | W35: 0 | X35: 96.11 | Y35: 0 | Z35: 0 | AA35: 0 | AB35: 0 | AC35: 0 | AD35: 96.11 | AE35: 0 | AF35: 0 | AG35: 0 | AH35: 0 | AI35: 0 | AJ35: 0 | AK35: 0 | AL35: 0 | AM35: 0 | AN35: 96.11 | AO35: 96.11 | AP35: 96.11 | AQ35: 96.11 | AR35: 96.11 | AS35: 96.11 | AT35: 96.11 | AU35: 0 | AV35: 96.11 | AW35: 96.11 | AX35: 96.11 | AY35: 96.11 | AZ35: 96.11 | BA35: 96.11 | BB35: 96.11 | BC35: 96.11 | BD35: 96.11 | BE35: 96.11 | BF35: 0 | BG35: 0 | BH35: =SUM(B35:BG35) -> 2691.08
A36: catB3_1_AJ009818 | B36: 0 | C36: 0 | D36: 0 | E36: 0 | F36: 0 | G36: 0 | H36: 0 | I36: 0 | J36: 0 | K36: 0 | L36: 0 | M36: 0 | N36: 0 | O36: 0 | P36: 0 | Q36: 0 | R36: 0 | S36: 0 | T36: 0 | U36: 0 | V36: 0 | W36: 0 | X36: 0 | Y36: 0 | Z36: 0 | AA36: 0 | AB36: 0 | AC36: 0 | AD36: 99.84 | AE36: 0 | AF36: 0 | AG36: 0 | AH36: 0 | AI36: 0 | AJ36: 0 | AK36: 0 | AL36: 0 | AM36: 0 | AN36: 0 | AO36: 0 | AP36: 0 | AQ36: 0 | AR36: 0 | AS36: 0 | AT36: 0 | AU36: 0 | AV36: 0 | AW36: 0 | AX36: 0 | AY36: 0 | AZ36: 0 | BA36: 0 | BB36: 0 | BC36: 0 | BD36: 0 | BE36: 0 | BF36: 0 | BG36: 0 | BH36: =SUM(B36:BG36) -> 99.84
A37: cmlA1_2_AB212941 | B37: 0 | C37: 0 | D37: 0 | E37: 0 | F37: 0 | G37: 0 | H37: 0 | I37: 0 | J37: 0 | K37: 0 | L37: 0 | M37: 0 | N37: 98.33 | O37: 98.33 | P37: 98.33 | Q37: 0 | R37: 0 | S37: 0 | T37: 0 | U37: 0 | V37: 0 | W37: 0 | X37: 0 | Y37: 0 | Z37: 0 | AA37: 0 | AB37: 0 | AC37: 0 | AD37: 0 | AE37: 0 | AF37: 0 | AG37: 0 | AH37: 0 | AI37: 0 | AJ37: 0 | AK37: 0 | AL37: 0 | AM37: 0 | AN37: 0 | AO37: 0 | AP37: 0 | AQ37: 0 | AR37: 0 | AS37: 0 | AT37: 0 | AU37: 98.33 | AV37: 0 | AW37: 0 | AX37: 0 | AY37: 0 | AZ37: 0 | BA37: 0 | BB37: 0 | BC37: 0 | BD37: 0 | BE37: 98.33 | BF37: 0 | BG37: 0 | BH37: =SUM(B37:BG37) -> 491.65
A38: dfrA12_1_AB571791 | B38: 0 | C38: 0 | D38: 0 | E38: 0 | F38: 0 | G38: 0 | H38: 0 | I38: 0 | J38: 0 | K38: 0 | L38: 0 | M38: 0 | N38: 0 | O38: 100 | P38: 0 | Q38: 0 | R38: 0 | S38: 0 | T38: 0 | U38: 0 | V38: 0 | W38: 0 | X38: 0 | Y38: 0 | Z38: 99.8 | AA38: 100 | AB38: 0 | AC38: 0 | AD38: 0 | AE38: 0 | AF38: 0 | AG38: 0 | AH38: 0 | AI38: 0 | AJ38: 0 | AK38: 0 | AL38: 0 | AM38: 0 | AN38: 0 | AO38: 0 | AP38: 0 | AQ38: 0 | AR38: 0 | AS38: 0 | AT38: 0 | AU38: 0 | AV38: 0 | AW38: 0 | AX38: 0 | AY38: 0 | AZ38: 0 | BA38: 0 | BB38: 0 | BC38: 0 | BD38: 0 | BE38: 0 | BF38: 100 | BG38: 0 | BH38: =SUM(B38:BG38) -> 399.8
A39: dfrA14_1_DQ388123 | B39: 0 | C39: 0 | D39: 0 | E39: 0 | F39: 0 | G39: 0 | H39: 0 | I39: 0 | J39: 0 | K39: 0 | L39: 0 | M39: 0 | N39: 0 | O39: 0 | P39: 0 | Q39: 0 | R39: 0 | S39: 0 | T39: 0 | U39: 99.59 | V39: 0 | W39: 0 | X39: 0 | Y39: 0 | Z39: 0 | AA39: 0 | AB39: 99.59 | AC39: 0 | AD39: 0 | AE39: 0 | AF39: 0 | AG39: 0 | AH39: 0 | AI39: 0 | AJ39: 0 | AK39: 0 | AL39: 0 | AM39: 0 | AN39: 0 | AO39: 0 | AP39: 0 | AQ39: 0 | AR39: 0 | AS39: 99.59 | AT39: 0 | AU39: 0 | AV39: 0 | AW39: 0 | AX39: 0 | AY39: 0 | AZ39: 0 | BA39: 0 | BB39: 0 | BC39: 0 | BD39: 0 | BE39: 0 | BF39: 0 | BG39: 0 | BH39: =SUM(B39:BG39) -> 298.77
A40: dfrA17_1_FJ460238 | B40: 0 | C40: 0 | D40: 0 | E40: 0 | F40: 0 | G40: 0 | H40: 0 | I40: 0 | J40: 0 | K40: 0 | L40: 0 | M40: 0 | N40: 0 | O40: 0 | P40: 0 | Q40: 0 | R40: 0 | S40: 0 | T40: 0 | U40: 0 | V40: 0 | W40: 100 | X40: 0 | Y40: 100 | Z40: 0 | AA40: 0 | AB40: 0 | AC40: 0 | AD40: 0 | AE40: 0 | AF40: 0 | AG40: 0 | AH40: 0 | AI40: 0 | AJ40: 0 | AK40: 0 | AL40: 0 | AM40: 0 | AN40: 0 | AO40: 0 | AP40: 0 | AQ40: 0 | AR40: 0 | AS40: 0 | AT40: 0 | AU40: 0 | AV40: 0 | AW40: 0 | AX40: 0 | AY40: 0 | AZ40: 0 | BA40: 0 | BB40: 0 | BC40: 0 | BD40: 0 | BE40: 0 | BF40: 0 | BG40: 0 | BH40: =SUM(B40:BG40) -> 200
A41: dfrA1_1_X00926 | B41: 0 | C41: 0 | D41: 0 | E41: 0 | F41: 0 | G41: 0 | H41: 0 | I41: 0 | J41: 0 | K41: 0 | L41: 0 | M41: 0 | N41: 0 | O41: 0 | P41: 0 | Q41: 100 | R41: 0 | S41: 0 | T41: 0 | U41: 0 | V41: 0 | W41: 0 | X41: 0 | Y41: 0 | Z41: 0 | AA41: 0 | AB41: 0 | AC41: 0 | AD41: 0 | AE41: 0 | AF41: 0 | AG41: 0 | AH41: 0 | AI41: 0 | AJ41: 0 | AK41: 0 | AL41: 0 | AM41: 0 | AN41: 0 | AO41: 0 | AP41: 0 | AQ41: 0 | AR41: 0 | AS41: 0 | AT41: 0 | AU41: 0 | AV41: 0 | AW41: 0 | AX41: 0 | AY41: 0 | AZ41: 0 | BA41: 0 | BB41: 0 | BC41: 0 | BD41: 0 | BE41: 0 | BF41: 0 | BG41: 0 | BH41: =SUM(B41:BG41) -> 100
A42: dfrA25_1_DQ267940 | B42: 0 | C42: 0 | D42: 0 | E42: 0 | F42: 0 | G42: 0 | H42: 100 | I42: 100 | J42: 100 | K42: 100 | L42: 100 | M42: 100 | N42: 0 | O42: 0 | P42: 0 | Q42: 0 | R42: 0 | S42: 0 | T42: 0 | U42: 0 | V42: 0 | W42: 0 | X42: 0 | Y42: 0 | Z42: 0 | AA42: 0 | AB42: 0 | AC42: 0 | AD42: 0 | AE42: 0 | AF42: 0 | AG42: 0 | AH42: 0 | AI42: 0 | AJ42: 0 | AK42: 0 | AL42: 0 | AM42: 0 | AN42: 0 | AO42: 0 | AP42: 0 | AQ42: 0 | AR42: 0 | AS42: 0 | AT42: 0 | AU42: 0 | AV42: 0 | AW42: 0 | AX42: 0 | AY42: 0 | AZ42: 0 | BA42: 0 | BB42: 0 | BC42: 0 | BD42: 0 | BE42: 0 | BF42: 0 | BG42: 0 | BH42: =SUM(B42:BG42) -> 600
A43: dfrA27_1_FJ459817 | B43: 0 | C43: 0 | D43: 100 | E43: 0 | F43: 0 | G43: 0 | H43: 0 | I43: 0 | J43: 0 | K43: 0 | L43: 0 | M43: 0 | N43: 0 | O43: 0 | P43: 0 | Q43: 0 | R43: 0 | S43: 0 | T43: 0 | U43: 0 | V43: 0 | W43: 0 | X43: 0 | Y43: 0 | Z43: 0 | AA43: 0 | AB43: 0 | AC43: 0 | AD43: 0 | AE43: 0 | AF43: 0 | AG43: 0 | AH43: 0 | AI43: 0 | AJ43: 0 | AK43: 0 | AL43: 0 | AM43: 0 | AN43: 0 | AO43: 100 | AP43: 0 | AQ43: 0 | AR43: 0 | AS43: 0 | AT43: 0 | AU43: 0 | AV43: 0 | AW43: 0 | AX43: 0 | AY43: 0 | AZ43: 0 | BA43: 0 | BB43: 0 | BC43: 0 | BD43: 0 | BE43: 0 | BF43: 0 | BG43: 0 | BH43: =SUM(B43:BG43) -> 200
A44: floR_2_AF118107 | B44: 0 | C44: 0 | D44: 0 | E44: 0 | F44: 0 | G44: 0 | H44: 0 | I44: 0 | J44: 0 | K44: 0 | L44: 0 | M44: 0 | N44: 0 | O44: 0 | P44: 0 | Q44: 0 | R44: 0 | S44: 0 | T44: 0 | U44: 0 | V44: 0 | W44: 0 | X44: 0 | Y44: 0 | Z44: 88.56 | AA44: 88.56 | AB44: 98.19 | AC44: 0 | AD44: 0 | AE44: 0 | AF44: 0 | AG44: 0 | AH44: 0 | AI44: 0 | AJ44: 0 | AK44: 0 | AL44: 0 | AM44: 0 | AN44: 0 | AO44: 0 | AP44: 0 | AQ44: 0 | AR44: 0 | AS44: 0 | AT44: 0 | AU44: 0 | AV44: 0 | AW44: 0 | AX44: 0 | AY44: 0 | AZ44: 0 | BA44: 0 | BB44: 0 | BC44: 0 | BD44: 0 | BE44: 0 | BF44: 0 | BG44: 0 | BH44: =SUM(B44:BG44) -> 275.31
A45: fosA_14_AB522970 | B45: 100 | C45: 100 | D45: 0 | E45: 100 | F45: 100 | G45: 0 | H45: 0 | I45: 0 | J45: 0 | K45: 0 | L45: 0 | M45: 0 | N45: 100 | O45: 100 | P45: 100 | Q45: 100 | R45: 100 | S45: 100 | T45: 100 | U45: 0 | V45: 0 | W45: 0 | X45: 100 | Y45: 0 | Z45: 0 | AA45: 0 | AB45: 100 | AC45: 100 | AD45: 100 | AE45: 100 | AF45: 100 | AG45: 100 | AH45: 100 | AI45: 100 | AJ45: 100 | AK45: 100 | AL45: 100 | AM45: 100 | AN45: 100 | AO45: 100 | AP45: 100 | AQ45: 100 | AR45: 100 | AS45: 100 | AT45: 100 | AU45: 0 | AV45: 0 | AW45: 0 | AX45: 0 | AY45: 0 | AZ45: 0 | BA45: 0 | BB45: 0 | BC45: 0 | BD45: 0 | BE45: 0 | BF45: 0 | BG45: 0 | BH45: =SUM(B45:BG45) -> 3100
A46: fosA_3_NZ_ACWO01000079 | B46: 99.27 | C46: 99.27 | D46: 99.27 | E46: 99.27 | F46: 99.27 | G46: 99.27 | H46: 99.27 | I46: 99.27 | J46: 99.27 | K46: 99.27 | L46: 99.27 | M46: 99.27 | N46: 99.27 | O46: 99.27 | P46: 99.27 | Q46: 99.27 | R46: 99.27 | S46: 99.27 | T46: 99.27 | U46: 99.27 | V46: 99.27 | W46: 99.27 | X46: 99.27 | Y46: 99.27 | Z46: 99.27 | AA46: 99.27 | AB46: 99.27 | AC46: 99.27 | AD46: 99.27 | AE46: 99.27 | AF46: 99.27 | AG46: 99.27 | AH46: 99.27 | AI46: 99.27 | AJ46: 99.27 | AK46: 99.27 | AL46: 99.27 | AM46: 99.27 | AN46: 99.27 | AO46: 99.27 | AP46: 99.27 | AQ46: 99.27 | AR46: 99.27 | AS46: 99.27 | AT46: 99.27 | AU46: 99.27 | AV46: 99.27 | AW46: 99.27 | AX46: 99.27 | AY46: 99.27 | AZ46: 99.27 | BA46: 99.27 | BB46: 99.27 | BC46: 99.27 | BD46: 99.27 | BE46: 99.27 | BF46: 99.27 | BG46: 99.27 | BH46: =SUM(B46:BG46) -> 5757.66
A47: mph(A)_2_U36578 | B47: 0 | C47: 0 | D47: 0 | E47: 0 | F47: 0 | G47: 99.67 | H47: 99.67 | I47: 99.67 | J47: 99.67 | K47: 99.67 | L47: 99.67 | M47: 99.67 | N47: 0 | O47: 0 | P47: 0 | Q47: 99.67 | R47: 0 | S47: 0 | T47: 0 | U47: 0 | V47: 0 | W47: 99.67 | X47: 0 | Y47: 99.67 | Z47: 0 | AA47: 99.67 | AB47: 0 | AC47: 0 | AD47: 0 | AE47: 0 | AF47: 0 | AG47: 0 | AH47: 0 | AI47: 0 | AJ47: 0 | AK47: 0 | AL47: 0 | AM47: 0 | AN47: 0 | AO47: 0 | AP47: 0 | AQ47: 0 | AR47: 0 | AS47: 0 | AT47: 0 | AU47: 0 | AV47: 0 | AW47: 0 | AX47: 0 | AY47: 0 | AZ47: 0 | BA47: 0 | BB47: 0 | BC47: 0 | BD47: 0 | BE47: 0 | BF47: 0 | BG47: 99.67 | BH47: =SUM(B47:BG47) -> 1196.04
A48: mph(E)_5_DQ839391 | B48: 0 | C48: 0 | D48: 0 | E48: 0 | F48: 0 | G48: 100 | H48: 100 | I48: 100 | J48: 100 | K48: 100 | L48: 100 | M48: 100 | N48: 0 | O48: 0 | P48: 0 | Q48: 0 | R48: 0 | S48: 0 | T48: 0 | U48: 0 | V48: 0 | W48: 0 | X48: 0 | Y48: 0 | Z48: 0 | AA48: 0 | AB48: 0 | AC48: 0 | AD48: 0 | AE48: 0 | AF48: 0 | AG48: 0 | AH48: 0 | AI48: 0 | AJ48: 0 | AK48: 0 | AL48: 0 | AM48: 0 | AN48: 0 | AO48: 0 | AP48: 0 | AQ48: 0 | AR48: 0 | AS48: 0 | AT48: 0 | AU48: 0 | AV48: 0 | AW48: 0 | AX48: 0 | AY48: 0 | AZ48: 0 | BA48: 0 | BB48: 0 | BC48: 0 | BD48: 0 | BE48: 0 | BF48: 0 | BG48: 0 | BH48: =SUM(B48:BG48) -> 700
A49: msr(E)_4_EU294228 | B49: 0 | C49: 0 | D49: 0 | E49: 0 | F49: 0 | G49: 100 | H49: 100 | I49: 100 | J49: 100 | K49: 100 | L49: 100 | M49: 100 | N49: 0 | O49: 0 | P49: 0 | Q49: 0 | R49: 0 | S49: 0 | T49: 0 | U49: 0 | V49: 0 | W49: 0 | X49: 0 | Y49: 0 | Z49: 0 | AA49: 0 | AB49: 0 | AC49: 0 | AD49: 0 | AE49: 0 | AF49: 0 | AG49: 0 | AH49: 0 | AI49: 0 | AJ49: 0 | AK49: 0 | AL49: 0 | AM49: 0 | AN49: 0 | AO49: 0 | AP49: 0 | AQ49: 0 | AR49: 0 | AS49: 0 | AT49: 0 | AU49: 0 | AV49: 0 | AW49: 0 | AX49: 0 | AY49: 0 | AZ49: 0 | BA49: 0 | BB49: 0 | BC49: 0 | BD49: 0 | BE49: 0 | BF49: 0 | BG49: 0 | BH49: =SUM(B49:BG49) -> 700
A50: oqxA_1_EU370913 | B50: 100 | C50: 100 | D50: 100 | E50: 100 | F50: 100 | G50: 0 | H50: 0 | I50: 0 | J50: 0 | K50: 0 | L50: 0 | M50: 0 | N50: 0 | O50: 0 | P50: 0 | Q50: 100 | R50: 0 | S50: 100 | T50: 100 | U50: 100 | V50: 100 | W50: 100 | X50: 100 | Y50: 100 | Z50: 0 | AA50: 100 | AB50: 100 | AC50: 0 | AD50: 100 | AE50: 100 | AF50: 100 | AG50: 100 | AH50: 100 | AI50: 100 | AJ50: 100 | AK50: 100 | AL50: 100 | AM50: 100 | AN50: 100 | AO50: 100 | AP50: 100 | AQ50: 100 | AR50: 100 | AS50: 0 | AT50: 100 | AU50: 0 | AV50: 0 | AW50: 0 | AX50: 0 | AY50: 0 | AZ50: 0 | BA50: 0 | BB50: 0 | BC50: 0 | BD50: 100 | BE50: 0 | BF50: 100 | BG50: 100 | BH50: =SUM(B50:BG50) -> 3400
A51: oqxB_1_EU370913 | B51: 100 | C51: 100 | D51: 100 | E51: 100 | F51: 100 | G51: 0 | H51: 0 | I51: 0 | J51: 0 | K51: 0 | L51: 0 | M51: 0 | N51: 0 | O51: 0 | P51: 0 | Q51: 100 | R51: 0 | S51: 100 | T51: 100 | U51: 100 | V51: 100 | W51: 100 | X51: 100 | Y51: 100 | Z51: 0 | AA51: 100 | AB51: 100 | AC51: 0 | AD51: 100 | AE51: 100 | AF51: 100 | AG51: 100 | AH51: 100 | AI51: 100 | AJ51: 100 | AK51: 100 | AL51: 100 | AM51: 100 | AN51: 100 | AO51: 100 | AP51: 100 | AQ51: 100 | AR51: 100 | AS51: 0 | AT51: 100 | AU51: 0 | AV51: 0 | AW51: 0 | AX51: 0 | AY51: 0 | AZ51: 0 | BA51: 0 | BB51: 0 | BC51: 0 | BD51: 100 | BE51: 0 | BF51: 100 | BG51: 100 | BH51: =SUM(B51:BG51) -> 3400
A52: rmtB_1_AB103506 | B52: 100 | C52: 100 | D52: 100 | E52: 100 | F52: 100 | G52: 0 | H52: 0 | I52: 0 | J52: 0 | K52: 0 | L52: 0 | M52: 0 | N52: 100 | O52: 0 | P52: 100 | Q52: 100 | R52: 100 | S52: 100 | T52: 100 | U52: 100 | V52: 100 | W52: 0 | X52: 100 | Y52: 0 | Z52: 100 | AA52: 100 | AB52: 100 | AC52: 100 | AD52: 100 | AE52: 100 | AF52: 100 | AG52: 100 | AH52: 100 | AI52: 100 | AJ52: 100 | AK52: 100 | AL52: 100 | AM52: 100 | AN52: 100 | AO52: 100 | AP52: 100 | AQ52: 100 | AR52: 100 | AS52: 100 | AT52: 100 | AU52: 100 | AV52: 0 | AW52: 0 | AX52: 0 | AY52: 0 | AZ52: 0 | BA52: 0 | BB52: 0 | BC52: 0 | BD52: 100 | BE52: 100 | BF52: 0 | BG52: 0 | BH52: =SUM(B52:BG52) -> 3800
A53: strA_1_M96392 | B53: 0 | C53: 0 | D53: 0 | E53: 0 | F53: 0 | G53: 0 | H53: 0 | I53: 0 | J53: 0 | K53: 0 | L53: 0 | M53: 0 | N53: 100 | O53: 100 | P53: 100 | Q53: 0 | R53: 0 | S53: 0 | T53: 0 | U53: 0 | V53: 0 | W53: 0 | X53: 0 | Y53: 0 | Z53: 0 | AA53: 0 | AB53: 0 | AC53: 0 | AD53: 0 | AE53: 0 | AF53: 0 | AG53: 0 | AH53: 0 | AI53: 0 | AJ53: 0 | AK53: 0 | AL53: 0 | AM53: 0 | AN53: 0 | AO53: 0 | AP53: 0 | AQ53: 0 | AR53: 0 | AS53: 0 | AT53: 0 | AU53: 0 | AV53: 0 | AW53: 0 | AX53: 0 | AY53: 0 | AZ53: 0 | BA53: 0 | BB53: 0 | BC53: 0 | BD53: 0 | BE53: 100 | BF53: 0 | BG53: 0 | BH53: =SUM(B53:BG53) -> 400
A54: strA_4_AF321551 | B54: 0 | C54: 0 | D54: 0 | E54: 0 | F54: 0 | G54: 100 | H54: 100 | I54: 100 | J54: 100 | K54: 100 | L54: 100 | M54: 100 | N54: 0 | O54: 0 | P54: 0 | Q54: 0 | R54: 0 | S54: 0 | T54: 0 | U54: 0 | V54: 0 | W54: 100 | X54: 0 | Y54: 100 | Z54: 100 | AA54: 0 | AB54: 0 | AC54: 0 | AD54: 0 | AE54: 0 | AF54: 0 | AG54: 0 | AH54: 0 | AI54: 0 | AJ54: 0 | AK54: 0 | AL54: 0 | AM54: 0 | AN54: 0 | AO54: 0 | AP54: 0 | AQ54: 0 | AR54: 0 | AS54: 0 | AT54: 0 | AU54: 0 | AV54: 0 | AW54: 0 | AX54: 0 | AY54: 0 | AZ54: 0 | BA54: 0 | BB54: 0 | BC54: 0 | BD54: 0 | BE54: 0 | BF54: 0 | BG54: 0 | BH54: =SUM(B54:BG54) -> 1000
A55: strB_1_M96392 | B55: 0 | C55: 0 | D55: 0 | E55: 0 | F55: 0 | G55: 100 | H55: 100 | I55: 100 | J55: 100 | K55: 100 | L55: 100 | M55: 100 | N55: 100 | O55: 100 | P55: 100 | Q55: 0 | R55: 0 | S55: 0 | T55: 0 | U55: 0 | V55: 0 | W55: 99.88 | X55: 0 | Y55: 99.88 | Z55: 100 | AA55: 0 | AB55: 100 | AC55: 0 | AD55: 0 | AE55: 0 | AF55: 0 | AG55: 0 | AH55: 0 | AI55: 0 | AJ55: 0 | AK55: 0 | AL55: 0 | AM55: 0 | AN55: 0 | AO55: 0 | AP55: 0 | AQ55: 0 | AR55: 0 | AS55: 0 | AT55: 0 | AU55: 0 | AV55: 0 | AW55: 0 | AX55: 0 | AY55: 0 | AZ55: 0 | BA55: 0 | BB55: 0 | BC55: 0 | BD55: 0 | BE55: 100 | BF55: 0 | BG55: 0 | BH55: =SUM(B55:BG55) -> 1499.76
A56: sul1_2_CP002151 | B56: 0 | C56: 0 | D56: 0 | E56: 0 | F56: 0 | G56: 100 | H56: 100 | I56: 100 | J56: 100 | K56: 100 | L56: 100 | M56: 100 | N56: 0 | O56: 99.89 | P56: 0 | Q56: 100 | R56: 0 | S56: 0 | T56: 0 | U56: 0 | V56: 0 | W56: 0 | X56: 0 | Y56: 0 | Z56: 0 | AA56: 100 | AB56: 0 | AC56: 0 | AD56: 0 | AE56: 0 | AF56: 0 | AG56: 0 | AH56: 0 | AI56: 0 | AJ56: 0 | AK56: 0 | AL56: 0 | AM56: 0 | AN56: 0 | AO56: 100 | AP56: 0 | AQ56: 0 | AR56: 0 | AS56: 0 | AT56: 0 | AU56: 99.89 | AV56: 0 | AW56: 0 | AX56: 0 | AY56: 0 | AZ56: 0 | BA56: 0 | BB56: 0 | BC56: 0 | BD56: 0 | BE56: 99.89 | BF56: 100 | BG56: 100 | BH56: =SUM(B56:BG56) -> 1499.67
A57: sul2_14_AJ514834 | B57: 0 | C57: 0 | D57: 0 | E57: 0 | F57: 0 | G57: 0 | H57: 0 | I57: 0 | J57: 0 | K57: 0 | L57: 100 | M57: 100 | N57: 0 | O57: 0 | P57: 0 | Q57: 0 | R57: 0 | S57: 0 | T57: 0 | U57: 0 | V57: 0 | W57: 0 | X57: 0 | Y57: 0 | Z57: 0 | AA57: 0 | AB57: 0 | AC57: 0 | AD57: 0 | AE57: 0 | AF57: 0 | AG57: 0 | AH57: 0 | AI57: 0 | AJ57: 0 | AK57: 0 | AL57: 0 | AM57: 0 | AN57: 0 | AO57: 0 | AP57: 0 | AQ57: 0 | AR57: 0 | AS57: 0 | AT57: 0 | AU57: 0 | AV57: 0 | AW57: 0 | AX57: 0 | AY57: 0 | AZ57: 0 | BA57: 0 | BB57: 0 | BC57: 0 | BD57: 0 | BE57: 0 | BF57: 0 | BG57: 0 | BH57: =SUM(B57:BG57) -> 200
A58: sul2_2_GQ421466 | B58: 0 | C58: 0 | D58: 100 | E58: 0 | F58: 0 | G58: 0 | H58: 0 | I58: 0 | J58: 0 | K58: 0 | L58: 0 | M58: 0 | N58: 0 | O58: 0 | P58: 0 | Q58: 0 | R58: 0 | S58: 0 | T58: 0 | U58: 0 | V58: 0 | W58: 100 | X58: 0 | Y58: 100 | Z58: 100 | AA58: 0 | AB58: 0 | AC58: 0 | AD58: 0 | AE58: 0 | AF58: 0 | AG58: 0 | AH58: 0 | AI58: 0 | AJ58: 0 | AK58: 0 | AL58: 0 | AM58: 0 | AN58: 0 | AO58: 0 | AP58: 0 | AQ58: 0 | AR58: 0 | AS58: 100 | AT58: 0 | AU58: 0 | AV58: 0 | AW58: 0 | AX58: 0 | AY58: 0 | AZ58: 0 | BA58: 0 | BB58: 0 | BC58: 0 | BD58: 0 | BE58: 0 | BF58: 0 | BG58: 0 | BH58: =SUM(B58:BG58) -> 500
A59: sul2_6_FN995456 | B59: 0 | C59: 0 | D59: 0 | E59: 0 | F59: 0 | G59: 100 | H59: 100 | I59: 100 | J59: 100 | K59: 100 | L59: 0 | M59: 0 | N59: 0 | O59: 0 | P59: 0 | Q59: 0 | R59: 0 | S59: 0 | T59: 0 | U59: 0 | V59: 0 | W59: 0 | X59: 0 | Y59: 0 | Z59: 0 | AA59: 0 | AB59: 0 | AC59: 0 | AD59: 0 | AE59: 0 | AF59: 0 | AG59: 0 | AH59: 0 | AI59: 0 | AJ59: 0 | AK59: 0 | AL59: 0 | AM59: 0 | AN59: 0 | AO59: 0 | AP59: 0 | AQ59: 0 | AR59: 0 | AS59: 0 | AT59: 0 | AU59: 0 | AV59: 0 | AW59: 0 | AX59: 0 | AY59: 0 | AZ59: 0 | BA59: 0 | BB59: 0 | BC59: 0 | BD59: 0 | BE59: 0 | BF59: 0 | BG59: 0 | BH59: =SUM(B59:BG59) -> 500
A60: sul3_2_AJ459418 | B60: 0 | C60: 0 | D60: 0 | E60: 0 | F60: 0 | G60: 0 | H60: 0 | I60: 0 | J60: 0 | K60: 0 | L60: 0 | M60: 0 | N60: 0 | O60: 0 | P60: 0 | Q60: 0 | R60: 0 | S60: 0 | T60: 0 | U60: 0 | V60: 0 | W60: 0 | X60: 0 | Y60: 0 | Z60: 0 | AA60: 0 | AB60: 100 | AC60: 0 | AD60: 0 | AE60: 0 | AF60: 0 | AG60: 0 | AH60: 0 | AI60: 0 | AJ60: 0 | AK60: 0 | AL60: 0 | AM60: 0 | AN60: 0 | AO60: 0 | AP60: 0 | AQ60: 0 | AR60: 0 | AS60: 0 | AT60: 0 | AU60: 0 | AV60: 0 | AW60: 0 | AX60: 0 | AY60: 0 | AZ60: 0 | BA60: 0 | BB60: 0 | BC60: 0 | BD60: 0 | BE60: 0 | BF60: 0 | BG60: 0 | BH60: =SUM(B60:BG60) -> 100
A61: tet(A)_3_AY196695 | B61: 0 | C61: 0 | D61: 0 | E61: 0 | F61: 0 | G61: 0 | H61: 0 | I61: 0 | J61: 0 | K61: 0 | L61: 0 | M61: 0 | N61: 0 | O61: 0 | P61: 0 | Q61: 0 | R61: 0 | S61: 0 | T61: 0 | U61: 0 | V61: 0 | W61: 0 | X61: 0 | Y61: 0 | Z61: 0 | AA61: 0 | AB61: 0 | AC61: 0 | AD61: 0 | AE61: 0 | AF61: 0 | AG61: 0 | AH61: 0 | AI61: 0 | AJ61: 0 | AK61: 0 | AL61: 0 | AM61: 0 | AN61: 0 | AO61: 99.75 | AP61: 0 | AQ61: 0 | AR61: 0 | AS61: 0 | AT61: 0 | AU61: 0 | AV61: 0 | AW61: 0 | AX61: 0 | AY61: 0 | AZ61: 0 | BA61: 0 | BB61: 0 | BC61: 0 | BD61: 0 | BE61: 0 | BF61: 0 | BG61: 0 | BH61: =SUM(B61:BG61) -> 99.75
A62: tet(A)_4_AJ517790 | B62: 0 | C62: 0 | D62: 0 | E62: 0 | F62: 0 | G62: 0 | H62: 0 | I62: 0 | J62: 0 | K62: 0 | L62: 0 | M62: 0 | N62: 0 | O62: 0 | P62: 0 | Q62: 100 | R62: 0 | S62: 0 | T62: 0 | U62: 0 | V62: 0 | W62: 100 | X62: 0 | Y62: 100 | Z62: 0 | AA62: 100 | AB62: 99.92 | AC62: 0 | AD62: 0 | AE62: 0 | AF62: 0 | AG62: 0 | AH62: 0 | AI62: 0 | AJ62: 0 | AK62: 0 | AL62: 0 | AM62: 0 | AN62: 0 | AO62: 0 | AP62: 0 | AQ62: 0 | AR62: 0 | AS62: 100 | AT62: 0 | AU62: 0 | AV62: 0 | AW62: 0 | AX62: 0 | AY62: 0 | AZ62: 0 | BA62: 0 | BB62: 0 | BC62: 0 | BD62: 0 | BE62: 0 | BF62: 0 | BG62: 0 | BH62: =SUM(B62:BG62) -> 599.92
A63: tet(G)_4_AF133140 | B63: 0 | C63: 0 | D63: 0 | E63: 0 | F63: 0 | G63: 0 | H63: 0 | I63: 0 | J63: 0 | K63: 0 | L63: 0 | M63: 0 | N63: 0 | O63: 0 | P63: 0 | Q63: 0 | R63: 0 | S63: 0 | T63: 0 | U63: 0 | V63: 0 | W63: 0 | X63: 0 | Y63: 0 | Z63: 100 | AA63: 100 | AB63: 0 | AC63: 0 | AD63: 0 | AE63: 0 | AF63: 0 | AG63: 0 | AH63: 0 | AI63: 0 | AJ63: 0 | AK63: 0 | AL63: 0 | AM63: 0 | AN63: 0 | AO63: 0 | AP63: 0 | AQ63: 0 | AR63: 0 | AS63: 0 | AT63: 0 | AU63: 0 | AV63: 0 | AW63: 0 | AX63: 0 | AY63: 0 | AZ63: 0 | BA63: 0 | BB63: 0 | BC63: 0 | BD63: 0 | BE63: 0 | BF63: 0 | BG63: 0 | BH63: =SUM(B63:BG63) -> 200
A64: total | B64: 9.9902 | C64: 9.9902 | D64: 12.9774 | E64: 9.9902 | F64: 9.9902 | G64: 14.9882 | H64: 16.9882 | I64: 16.9882 | J64: 16.9882 | K64: 15.9882 | L64: 16.9882 | M64: 16.9882 | N64: 12.9346 | O64: 12.9324 | P64: 12.9335 | Q64: 18.9375 | R64: 8.9513 | S64: 10.9513 | T64: 10.9513 | U64: 12.9472 | V64: 8.9513 | W64: 14.9845 | X64: 10.9513 | Y64: 14.9845 | Z64: 13.8737 | AA64: 17.8735 | AB64: 16.9684 | AC64: 6.9927 | AD64: 14.9415 | AE64: 9.9902 | AF64: 9.9902 | AG64: 9.9902 | AH64: 9.9902 | AI64: 9.9902 | AJ64: 9.9902 | AK64: 9.9902 | AL64: 9.9902 | AM64: 9.9902 | AN64: 10.9513 | AO64: 16.9372 | AP64: 10.9513 | AQ64: 9.9538 | AR64: 9.9538 | AS64: 12.9472 | AT64: 9.9538 | AU64: 10.9724 | AV64: 3.9513 | AW64: 3.9513 | AX64: 3.9513 | AY64: 3.9513 | AZ64: 4.9513 | BA64: 3.9513 | BB64: 4.9513 | BC64: 4.9501 | BD64: 8.9538 | BE64: 12.9335 | BF64: 9.9902 | BG64: 9.9894

Sheet S4
A1: strain | B1: ST | C1: aerobactin | D1: salmochelin | E1: hypermucoidy | F1: gapA | G1: infB | H1: mdh | I1: pgi | J1: phoE | K1: rpoB | L1: tonB | M1: ybtS | N1: ybtX | O1: ybtQ | P1: ybtP | Q1: ybtA | R1: irp2 | S1: irp1 | T1: ybtU | U1: ybtT | V1: ybtE | W1: fyuA
A2: AH10 | B2: ST11 | C2: - | D2: - | E2: - | F2: 3 | G2: 3 | H2: 1 | I2: 1 | J2: 1 | K2: 1 | L2: 4 | M2: 5* | N2: 11 | O2: 6 | P2: 5 | Q2: 1 | R2: 60 | S2: 65 | T2: 9 | U2: 5 | V2: 5 | W2: 11
A3: AH11 | B3: ST11 | C3: - | D3: - | E3: - | F3: 3 | G3: 3 | H3: 1 | I3: 1 | J3: 1 | K3: 1 | L3: 4 | M3: 5* | N3: 11 | O3: 6 | P3: 5* | Q3: 1 | R3: 60 | S3: 65 | T3: 9 | U3: 5 | V3: 5 | W3: 11
A4: AH12 | B4: ST11 | C4: - | D4: - | E4: - | F4: 3 | G4: 3 | H4: 1 | I4: 1 | J4: 1 | K4: 1 | L4: 4 | M4: 5* | N4: 11 | O4: 6 | P4: 5* | Q4: 1 | R4: 60 | S4: 65 | T4: 9 | U4: 5 | V4: 5 | W4: 11
A5: AH-29 | B5: ST11 | C5: - | D5: - | E5: - | F5: 3 | G5: 3 | H5: 1 | I5: 1 | J5: 1 | K5: 1 | L5: 4 | M5: 5* | N5: 11 | O5: 6 | P5: 5 | Q5: 1 | R5: 60 | S5: 65 | T5: 9 | U5: 5 | V5: 5 | W5: 11
A6: AH-9 | B6: ST11 | C6: - | D6: - | E6: - | F6: 3 | G6: 3 | H6: 1 | I6: 1 | J6: 1 | K6: 1 | L6: 4 | M6: 5* | N6: 11 | O6: 6 | P6: 5 | Q6: 1 | R6: 60 | S6: 65 | T6: 9 | U6: 5 | V6: 5 | W6: 11
A7: BJ-A1040 | B7: ST11 | C7: - | D7: - | E7: - | F7: 3 | G7: 3 | H7: 1 | I7: 1 | J7: 1 | K7: 1 | L7: 4 | M7: 5* | N7: 11 | O7: 6 | P7: 5 | Q7: 1 | R7: 60 | S7: 65 | T7: 9 | U7: 5 | V7: 5 | W7: 11
A8: BJK20 | B8: ST11 | C8: - | D8: - | E8: - | F8: 3 | G8: 3 | H8: 1 | I8: 1 | J8: 1 | K8: 1 | L8: 4 | M8: 5* | N8: 11 | O8: 6 | P8: 5 | Q8: 1 | R8: 60 | S8: 65 | T8: 9 | U8: 5 | V8: 5 | W8: 11
A9: BJK22 | B9: ST11 | C9: - | D9: - | E9: - | F9: 3 | G9: 3 | H9: 1 | I9: 1 | J9: 1 | K9: 1 | L9: 4 | M9: 5* | N9: 11 | O9: 6 | P9: 5 | Q9: 1 | R9: 60 | S9: 65 | T9: 9 | U9: 5 | V9: 5 | W9: 11
A10: BJK23 | B10: ST11 | C10: - | D10: - | E10: - | F10: 3 | G10: 3 | H10: 1 | I10: 1 | J10: 1 | K10: 1 | L10: 4 | M10: 5* | N10: 11 | O10: 6 | P10: 5 | Q10: 1 | R10: 60 | S10: 65 | T10: 9 | U10: 5 | V10: 5 | W10: 11
A11: BJK6 | B11: ST11 | C11: - | D11: - | E11: - | F11: 3 | G11: 3 | H11: 1 | I11: 1 | J11: 1 | K11: 1 | L11: 4 | M11: 5* | N11: 11 | O11: 6 | P11: 5 | Q11: 1 | R11: 60 | S11: 65 | T11: 9 | U11: 5 | V11: 5 | W11: 11
A12: BJK7 | B12: ST11 | C12: - | D12: - | E12: - | F12: 3 | G12: 3 | H12: 1 | I12: 1 | J12: 1 | K12: 1 | L12: 4 | M12: 5* | N12: 11 | O12: 6 | P12: 5 | Q12: 1 | R12: 60 | S12: 65 | T12: 9 | U12: 5 | V12: 5 | W12: 11
A13: BJK8 | B13: ST11 | C13: - | D13: - | E13: - | F13: 3 | G13: 3 | H13: 1 | I13: 1 | J13: 1 | K13: 1 | L13: 4 | M13: 5* | N13: 11 | O13: 6 | P13: 5 | Q13: 1 | R13: 60 | S13: 65 | T13: 9 | U13: 5 | V13: 5 | W13: 11
A14: FJ10 | B14: ST11 | C14: - | D14: - | E14: - | F14: 3 | G14: 3 | H14: 1 | I14: 1 | J14: 1 | K14: 1 | L14: 4 | M14: 5* | N14: 11 | O14: 6 | P14: 5 | Q14: 1 | R14: 60 | S14: 65 | T14: 9 | U14: 5 | V14: 5 | W14: 11
A15: FJ11 | B15: ST11 | C15: - | D15: - | E15: - | F15: 3 | G15: 3 | H15: 1 | I15: 1 | J15: 1 | K15: 1 | L15: 4 | M15: 5* | N15: 11 | O15: 6 | P15: 5 | Q15: 1 | R15: 60 | S15: 65 | T15: 9 | U15: 5 | V15: 5 | W15: 11
A16: FJ8 | B16: ST11 | C16: - | D16: - | E16: - | F16: 3 | G16: 3 | H16: 1 | I16: 1 | J16: 1 | K16: 1 | L16: 4 | M16: 5* | N16: 11 | O16: 6 | P16: 5 | Q16: 1 | R16: 60 | S16: 65 | T16: 9 | U16: 5 | V16: 5 | W16: 11
A17: GD108 | B17: ST11 | C17: - | D17: - | E17: - | F17: 3 | G17: 3 | H17: 1 | I17: 1 | J17: 1 | K17: 1 | L17: 4 | M17: 5* | N17: 11 | O17: 6 | P17: 5 | Q17: 1 | R17: 60 | S17: 65 | T17: 9 | U17: 5 | V17: 5 | W17: 11
A18: GD4 | B18: ST11 | C18: - | D18: - | E18: - | F18: 3 | G18: 3 | H18: 1 | I18: 1 | J18: 1 | K18: 1 | L18: 4 | M18: 0 | N18: 0 | O18: 6 | P18: 5 | Q18: 1 | R18: 60 | S18: 65 | T18: 9 | U18: 5 | V18: 5 | W18: 0
A19: GD-KPC30 | B19: ST11 | C19: - | D19: - | E19: - | F19: 3 | G19: 3 | H19: 1 | I19: 1 | J19: 1 | K19: 1 | L19: 4 | M19: 0 | N19: 0 | O19: 6 | P19: 5 | Q19: 1 | R19: 60 | S19: 65 | T19: 9 | U19: 5 | V19: 5 | W19: 0
A20: HA2-17 | B20: ST11 | C20: - | D20: - | E20: - | F20: 3 | G20: 3 | H20: 1 | I20: 1 | J20: 1 | K20: 1 | L20: 4 | M20: 5* | N20: 11 | O20: 6 | P20: 5 | Q20: 1 | R20: 60 | S20: 65 | T20: 9 | U20: 5 | V20: 5 | W20: 11
A21: HA-74 | B21: ST11 | C21: - | D21: - | E21: - | F21: 3 | G21: 3 | H21: 1 | I21: 1 | J21: 1 | K21: 1 | L21: 4 | M21: 5* | N21: 11 | O21: 6 | P21: 5 | Q21: 1 | R21: 60 | S21: 65 | T21: 9 | U21: 5 | V21: 5 | W21: 11
A22: HA-99 | B22: ST11 | C22: - | D22: - | E22: - | F22: 3 | G22: 3 | H22: 1 | I22: 1 | J22: 1 | K22: 1 | L22: 4 | M22: 5* | N22: 11 | O22: 6 | P22: 5 | Q22: 1 | R22: 60 | S22: 65 | T22: 9 | U22: 5 | V22: 5 | W22: 11
A23: HN-26 | B23: ST11 | C23: iucABCD | D23: - | E23: rmpA | F23: 3 | G23: 3 | H23: 1 | I23: 1 | J23: 1 | K23: 1 | L23: 4 | M23: 5* | N23: 11 | O23: 6 | P23: 5 | Q23: 1 | R23: 60 | S23: 65 | T23: 9 | U23: 5 | V23: 5 | W23: 11
A24: HN34-1 | B24: ST11 | C24: - | D24: - | E24: - | F24: 3 | G24: 3 | H24: 1 | I24: 1 | J24: 1 | K24: 1 | L24: 4 | M24: 5* | N24: 11 | O24: 6 | P24: 5 | Q24: 1 | R24: 60 | S24: 65 | T24: 9 | U24: 5 | V24: 5 | W24: 11
A25: HN34-2 | B25: ST11 | C25: iucABCD | D25: - | E25: rmpA | F25: 3 | G25: 3 | H25: 1 | I25: 1 | J25: 1 | K25: 1 | L25: 4 | M25: 5* | N25: 11 | O25: 6 | P25: 5 | Q25: 1 | R25: 60 | S25: 65 | T25: 9 | U25: 5 | V25: 5 | W25: 11
A26: HS11286 | B26: ST11 | C26: - | D26: - | E26: - | F26: 3 | G26: 3 | H26: 1 | I26: 1 | J26: 1 | K26: 1 | L26: 4 | M26: 14 | N26: 11 | O26: 14 | P26: 5 | Q26: 9 | R26: 22 | S26: 19 | T26: 10 | U26: 5 | V26: 11 | W26: 11
A27: JM45 | B27: ST11 | C27: - | D27: - | E27: - | F27: 3 | G27: 3 | H27: 1 | I27: 1 | J27: 1 | K27: 1 | L27: 4 | M27: - | N27: - | O27: - | P27: - | Q27: - | R27: - | S27: - | T27: - | U27: - | V27: - | W27: -
A28: JXR113 | B28: ST11 | C28: - | D28: - | E28: - | F28: 3 | G28: 3 | H28: 1 | I28: 1 | J28: 1 | K28: 1 | L28: 4 | M28: 5* | N28: 11 | O28: 6 | P28: 5 | Q28: 1 | R28: 60 | S28: 65 | T28: 9 | U28: 5 | V28: 5 | W28: 11
A29: JXR114 | B29: ST11 | C29: - | D29: - | E29: - | F29: 3 | G29: 3 | H29: 1 | I29: 1 | J29: 1 | K29: 1 | L29: 4 | M29: 5* | N29: 11 | O29: 6 | P29: 5 | Q29: 1 | R29: 60 | S29: 65 | T29: 9 | U29: 5 | V29: 5 | W29: 11
A30: K11 | B30: ST11 | C30: - | D30: - | E30: - | F30: 3 | G30: 3 | H30: 1 | I30: 1 | J30: 1 | K30: 1 | L30: 4 | M30: 5* | N30: 11 | O30: 6 | P30: 5 | Q30: 1 | R30: 60 | S30: 65 | T30: 9 | U30: 5 | V30: 5 | W30: 11
A31: K15 | B31: ST11 | C31: - | D31: - | E31: - | F31: 3 | G31: 3 | H31: 1 | I31: 1 | J31: 1 | K31: 1 | L31: 4 | M31: 5* | N31: 11 | O31: 6 | P31: 5 | Q31: 1 | R31: 60 | S31: 65 | T31: 9 | U31: 5 | V31: 5 | W31: 11
A32: K22-1 | B32: ST11 | C32: - | D32: - | E32: - | F32: 3 | G32: 3 | H32: 1 | I32: 1 | J32: 1 | K32: 1 | L32: 4 | M32: 5* | N32: 11 | O32: 6 | P32: 5 | Q32: 1 | R32: 60 | S32: 65 | T32: 9 | U32: 5 | V32: 5* | W32: 11
A33: K22-2 | B33: ST11 | C33: - | D33: - | E33: - | F33: 3 | G33: 3 | H33: 1 | I33: 1 | J33: 1 | K33: 1 | L33: 4 | M33: 5* | N33: 11 | O33: 6 | P33: 5 | Q33: 1 | R33: 60 | S33: 65 | T33: 9 | U33: 5 | V33: 5* | W33: 11
A34: K28-1 | B34: ST11 | C34: - | D34: - | E34: - | F34: 3 | G34: 3 | H34: 1 | I34: 1 | J34: 1 | K34: 1 | L34: 4 | M34: 5* | N34: 11 | O34: 6 | P34: 5 | Q34: 1 | R34: 60 | S34: 65 | T34: 9 | U34: 5 | V34: 5 | W34: 11
A35: K45 | B35: ST11 | C35: - | D35: - | E35: - | F35: 3 | G35: 3 | H35: 1 | I35: 1 | J35: 1 | K35: 1 | L35: 4 | M35: 5* | N35: 11 | O35: 6 | P35: 5 | Q35: 1 | R35: 60 | S35: 65 | T35: 9 | U35: 5 | V35: 5 | W35: 11
A36: K47 | B36: ST11 | C36: - | D36: - | E36: - | F36: 3 | G36: 3 | H36: 1 | I36: 1 | J36: 1 | K36: 1 | L36: 4 | M36: 5* | N36: 11 | O36: 6 | P36: 5 | Q36: 1 | R36: 60 | S36: 65 | T36: 9 | U36: 5 | V36: 5 | W36: 11
A37: K48 | B37: ST11 | C37: - | D37: - | E37: - | F37: 3 | G37: 3 | H37: 1 | I37: 1 | J37: 1 | K37: 1 | L37: 4 | M37: 5* | N37: 11 | O37: 6 | P37: 5 | Q37: 1 | R37: 60 | S37: 65 | T37: 9 | U37: 5 | V37: 5 | W37: 11
A38: K49 | B38: ST11 | C38: - | D38: - | E38: - | F38: 3 | G38: 3 | H38: 1 | I38: 1 | J38: 1 | K38: 1 | L38: 4 | M38: 5* | N38: 11 | O38: 6 | P38: 5 | Q38: 1 | R38: 60 | S38: 65 | T38: 9 | U38: 5 | V38: 5* | W38: 11
A39: K50 | B39: ST11 | C39: - | D39: - | E39: - | F39: 3 | G39: 3 | H39: 1 | I39: 1 | J39: 1 | K39: 1 | L39: 4 | M39: 5* | N39: 11 | O39: 6 | P39: 5 | Q39: 1 | R39: 60 | S39: 65 | T39: 9 | U39: 5 | V39: 5 | W39: 11
A40: K6 | B40: ST11 | C40: - | D40: - | E40: - | F40: 3 | G40: 3 | H40: 1 | I40: 1 | J40: 1 | K40: 1 | L40: 4 | M40: 5* | N40: 11 | O40: 6 | P40: 5 | Q40: 1 | R40: 60 | S40: 65 | T40: 9 | U40: 5 | V40: 5 | W40: 11
A41: kp10 | B41: ST11 | C41: - | D41: - | E41: - | F41: 3 | G41: 3 | H41: 1 | I41: 1 | J41: 1 | K41: 1 | L41: 4 | M41: 4 | N41: 4 | O41: 56 | P41: 4* | Q41: 1 | R41: 135 | S41: 137* | T41: 2 | U41: 4 | V41: 4 | W41: 60
A42: KP41 | B42: ST11 | C42: - | D42: - | E42: - | F42: 3 | G42: 3 | H42: 1 | I42: 1 | J42: 1 | K42: 1 | L42: 4 | M42: 5* | N42: 11 | O42: 6 | P42: 5 | Q42: 1 | R42: 60 | S42: 65 | T42: 9 | U42: 5 | V42: 5 | W42: 11
A43: KP6 | B43: ST11 | C43: - | D43: - | E43: - | F43: 3 | G43: 3 | H43: 1 | I43: 1 | J43: 1 | K43: 1 | L43: 4 | M43: 5* | N43: 11 | O43: 6 | P43: 5 | Q43: 1 | R43: 60 | S43: 65 | T43: 9 | U43: 5 | V43: 5 | W43: 11
A44: SH-16 | B44: ST11 | C44: iucABCD | D44: iroCDN | E44: rmpA | F44: 3 | G44: 3 | H44: 1 | I44: 1 | J44: 1 | K44: 1 | L44: 4 | M44: 5* | N44: 11 | O44: 6 | P44: 5 | Q44: 1 | R44: 60 | S44: 65 | T44: 9 | U44: 5 | V44: 5 | W44: 11
A45: SH-1 | B45: ST11 | C45: iucABCD | D45: iroCDN | E45: rmpA | F45: 3 | G45: 3 | H45: 1 | I45: 1 | J45: 1 | K45: 1 | L45: 4 | M45: 5* | N45: 11 | O45: 6 | P45: 5 | Q45: 1 | R45: 60 | S45: 65 | T45: 9 | U45: 5 | V45: 5 | W45: 11
A46: SH-2 | B46: ST11 | C46: iucABCD | D46: - | E46: rmpA | F46: 3 | G46: 3 | H46: 1 | I46: 1 | J46: 1 | K46: 1 | L46: 4 | M46: 5* | N46: 11 | O46: 6 | P46: 5 | Q46: 1 | R46: 60 | S46: 65 | T46: 9 | U46: 5 | V46: 5 | W46: 11
A47: SH-9 | B47: ST11 | C47: iucABCD | D47: iroCDN | E47: rmpA | F47: 3 | G47: 3 | H47: 1 | I47: 1 | J47: 1 | K47: 1 | L47: 4 | M47: 5* | N47: 11 | O47: 6 | P47: 5 | Q47: 1 | R47: 60 | S47: 65 | T47: 9 | U47: 5 | V47: 5 | W47: 11
A48: SWU01 | B48: ST11 | C48: - | D48: - | E48: - | F48: 3 | G48: 3 | H48: 1 | I48: 1 | J48: 1 | K48: 1 | L48: 4 | M48: 0 | N48: 11 | O48: 6 | P48: 5 | Q48: 1 | R48: 60 | S48: 65 | T48: 9 | U48: 5 | V48: 5 | W48: 0
A49: TR187 | B49: ST11 | C49: - | D49: - | E49: - | F49: 3 | G49: 3 | H49: 1 | I49: 1 | J49: 1 | K49: 1 | L49: 4 | M49: 5* | N49: 11 | O49: 6 | P49: 5 | Q49: 1 | R49: 60 | S49: 65 | T49: 9 | U49: 5 | V49: 5 | W49: 11
A50: TR191 | B50: ST11 | C50: - | D50: - | E50: - | F50: 3 | G50: 3 | H50: 1 | I50: 1 | J50: 1 | K50: 1 | L50: 4 | M50: 5* | N50: 11 | O50: 6 | P50: 5 | Q50: 1 | R50: 60 | S50: 65 | T50: 9 | U50: 5 | V50: 5 | W50: 11
A51: TR198 | B51: ST11 | C51: - | D51: - | E51: - | F51: 3 | G51: 3 | H51: 1 | I51: 1 | J51: 1 | K51: 1 | L51: 4 | M51: 5* | N51: 11 | O51: 6 | P51: 5 | Q51: 1 | R51: 60 | S51: 65 | T51: 9 | U51: 5 | V51: 5 | W51: 11
A52: TR200 | B52: ST11 | C52: - | D52: - | E52: - | F52: 3 | G52: 3 | H52: 1 | I52: 1 | J52: 1 | K52: 1 | L52: 4 | M52: 5* | N52: 11 | O52: 6 | P52: 5 | Q52: 1 | R52: 60 | S52: 65 | T52: 9 | U52: 5 | V52: 5 | W52: 11
A53: TR262 | B53: ST11 | C53: - | D53: - | E53: - | F53: 3 | G53: 3 | H53: 1 | I53: 1 | J53: 1 | K53: 1 | L53: 4 | M53: 5* | N53: 11 | O53: 6 | P53: 5 | Q53: 1 | R53: 60 | S53: 65 | T53: 9 | U53: 5 | V53: 5 | W53: 11
A54: TRqt-37 | B54: ST11 | C54: - | D54: - | E54: - | F54: 3 | G54: 3 | H54: 1 | I54: 1 | J54: 1 | K54: 1 | L54: 4 | M54: 5* | N54: 11 | O54: 6 | P54: 5 | Q54: 1 | R54: 60 | S54: 65 | T54: 9 | U54: 5 | V54: 5 | W54: 11
A55: TRqt-41 | B55: ST11 | C55: - | D55: - | E55: - | F55: 3 | G55: 3 | H55: 1 | I55: 1 | J55: 1 | K55: 1 | L55: 4 | M55: 5* | N55: 11 | O55: 6 | P55: 5 | Q55: 1 | R55: 60 | S55: 65 | T55: 9 | U55: 5 | V55: 5 | W55: 11
A56: TRqt-49 | B56: ST11 | C56: - | D56: - | E56: - | F56: 3 | G56: 3 | H56: 1 | I56: 1 | J56: 1 | K56: 1 | L56: 4 | M56: 5* | N56: 11 | O56: 6 | P56: 5 | Q56: 1 | R56: 60 | S56: 65 | T56: 9 | U56: 5 | V56: 5 | W56: 11
A57: WCHKP649 | B57: ST11 | C57: - | D57: - | E57: - | F57: 3 | G57: 3 | H57: 1 | I57: 1 | J57: 1 | K57: 1 | L57: 4 | M57: 5* | N57: 11 | O57: 6 | P57: 5 | Q57: 1 | R57: 60 | S57: 65 | T57: 9 | U57: 5 | V57: 5 | W57: 11
A58: XJ126 | B58: ST11 | C58: - | D58: - | E58: - | F58: 3 | G58: 3 | H58: 1 | I58: 1 | J58: 1 | K58: 1 | L58: 4 | M58: 0 | N58: 11 | O58: 6 | P58: 5 | Q58: 1 | R58: 60 | S58: 65 | T58: 9 | U58: 5 | V58: 5 | W58: 0
A59: XL-1 | B59: ST11 | C59: - | D59: - | E59: - | F59: 3 | G59: 3 | H59: 1 | I59: 1 | J59: 1 | K59: 1 | L59: 4 | M59: 16 | N59: 12 | O59: 4 | P59: 3 | Q59: 3 | R59: 35 | S59: 33 | T59: 3 | U59: 10 | V59: 9 | W59: 2
